Workbook

Sheet Title Page
B2: Project: | C2: ='00. Contents'!B1 -> Expenditure and Performance Review - Human Settlements Programmes
B3: Client: | C3: ='00. Contents'!B2 -> National Treasury
B4: Version: | C4: ='00. Contents'!B3 -> Step 3 Logframe V.1.0 Client (Draft)
B5: Date: | C5: ='00. Contents'!B4 -> 2013-10-31
B9: EXPENDITURE PERFORMANCE REVIEW ANALYSIS MODEL
B10: ON
B11: HUMAN SETTLEMENTS PROGRAMMES
C12: Step 3: Logic Framework
C13: Project Team | D13: Andreas Bertoldi
D14: David Gardner
D15: Karen Hague
D16: Robert McGloughlin
D17: Gemey Abrahams
D18: Ros Gordon

Sheet 00. Contents
A1: Project: | B1: Expenditure and Performance Review - Human Settlements Programmes
A2: Client: | B2: National Treasury
A3: Version: | B3: Step 3 Logframe V.1.0 Client (Draft)
A4: Date: | B4: 2013-10-31
A6: 00. TABLE OF CONTENTS | E6: Link to Sheet
A8: SECTION O: OVERVIEW
A10: Sheet 00: | B10: Contents | C10: Table of Contents | E10: 00. Contents
A12: Sheet 01: | B12: Introduction | C12: Overview of Selected Human Settlements Programmes Under Review | E12: 01. Introduction
A14: Sheet 02: | B14: Human Settlements Programmes | C14: Master List of All Human Settlements Programmes | E14: 02. HS Progs
A16: Sheet 03: | B16: Consolidated Elements | C16: Elements at National, Provincial, Metro/Municipal and State Entity Level | E16: 03. Elements
A18: Sheet 04: | B18: Assumptions Matrix | C18: Assumptions Matrix:allocation of provincial expenditure to HS Programme Elements | E18: 04. Assumpts
A20: SECTION 1: LOGIC FRAMEWORK & EXPENDITURE MAPPING FOR HUMAN SETTLEMENTS PROGRAMMES
A22: Sheet 1.1 | B22: Expenditure Summary | C22: Expenditure Summary Per Province Per Programme (Consolidated: BAS & HSS Data) | E22: 1.1 Exp Per Prov
A24: Sheet 1.2 | B24: National Expenditure Allocation | C24: Allocation of National BAS Data to Core Funding Streams and Elements (HSS Data) | E24: 1.2 National Elements
A26: Sheet 1.3 | B26: Elements Allocation (Programmes) | C26: Allocation of Expenditure Per Programme to Provincial Elements (BAS & HSS Data, Assumptions) | E26: 1.3 Prog Elements
A28: Sheet 1.4 | B28: Elements Allocation (Province) | C28: Allocation of Expenditure Per Programme, Per Province, Per Element (HSS Data) | E28: 1.4 Prog/Prov
A30: ='02. Hum Settlmt Programmes'!D17 -> FINANCIAL INTERVENTIONS (FI)
A32: Sheet L1.5a | B32: Logic Model for FI-RRDP | C32: Logic Model for Programme 1.5a: Financial Interventions: Rectification of RDP Housing (1994 to 2002) | E32: L1.5a. FI-RRDP
A34: Sheet L1.10: | B34: Logic Model for FI-OpsCap | C34: Logic Model for Programme 1.10: Financial Interventions: Operational Capital Budget Programme | E34: L1.7. FI-OpsCap
A36: ='02. Hum Settlmt Programmes'!D40 -> INCREMENTAL INTERVENTIONS (II)
A38: Sheet L2.2: | B38: Logic Model for II-RDP | C38: Logic Model for Programme 2.2: Incremental Interventions: Integrated Residential Development Programme | E38: L2.2. II-IRDP
A40: Sheet L2.5: | B40: Logic Model for II-ISUP | C40: Logic model for Programme 2.5: Incremental Interventions: Informal Settlements Upgrading Programme | E40: L2.5. II-ISUP
A42: ='02. Hum Settlmt Programmes'!D63 -> Institutional Subsidies Programme
A44: Sheet L3.2: | B44: Logic Model for SR-SH | C44: Logic Model for Programme 3.2: Social & Rental Housing: Social Housing Programme | E44: L3.2. SR-SH
A46: Sheet L3.3: | B46: Logic Model for SR-CRU | C46: Logic Model for Programme 3.3: Social & Rental Housing: Community Residential Units | E46: L3.3. SH-CRU
A48: SECTION 2: SCENARIO MODELLING
A50: Sheet 2.1 | B50: National Modelling Scenario | C50: National Modelling Scenario of Backlogs, Programme Prioritisation and Expenditure | E50: 2.1 National Scenario
A52: Sheet 2.2a | B52: Provincial Comparison | C52: National Modelling with Overview Per Province | E52: 2.2a Prov Comp
A54: Sheet 2.2b | B54: Unit Costs Per Province | C54: Calculation of Average Unit Costs Per Province Per Programme | E54: 2.2b Unit Cost
A56: Sheet 2.2c | B56: Eastern Cape Scenario | C56: Eastern Cape Province Modelling Scenario | E56: 2.2c EC
A58: Sheet 2.2d | B58: Free State Scenario | C58: Free State Province Modelling Scenario | E58: 2.2d FS
A60: Sheet 2.2e | B60: Gauteng Scenario | C60: Gauteng Province Modelling Scenario | E60: 2.2e GP
A62: Sheet 2.2f | B62: KwaZulu Natal Scenario | C62: KwaZulu Natal Province Modelling Scenario | E62: 2.2f KZN
A64: Sheet 2.2g | B64: Limpopo Scenario | C64: Limpopo Province Modelling Scenario | E64: 2.2g LP
A66: Sheet 2.2h | B66: Mpumalanaga Scenario | C66: Mpumalanga Province Modelling Scenario | E66: 2.2i MP
A68: Sheet 2.2i | B68: Northern Cape Scenario | C68: Northern Cape Province Modelling Scenario | E68: 2.2i NC
A70: Sheet 2.2j | B70: North West Scenario | C70: North West Province Modelling Scenario | E70: 2.2j NW
A72: Sheet 2.2k | B72: Western Cape Scenario | C72: Western Cape Province Modelling Scenario | E72: 2.2 WC
A74: SECTION 3: DATA INPUTS (MANIPULATED
A76: Sheet 3.1 | B76: BAS & HSS Consolidated Data | C76: Summary table showing BAS and HSS allocations to Human Settlements Programmes per Province | E76: 3.1 BAS & HSS
A78: Sheet 3.2 | B78: Consolidated Practice Note Data | C78: Summary table showing consolidated data from three years' Practice Note Data (Exp & Delivery) | E78: 3.2 PN Data'!A1
A80: Sheet 3.3 | B80: Backlog Data | C80: Calculation of Backlog Per Province, Per Programme (From Census 2011) | E80: 3.3 Backlog Data'!A1
A82: SECTION 4: PRIMARY DATA SOURCES
A84: NOTE: These are not listed here as they link to other tables and should not be accessed.

Sheet 01. Introduction
A1: Project: | B1: Expenditure and Performance Review - Human Settlements Programmes
A2: Client | B2: National Treasury | F2: RETURN TO CONTENTS
A3: Version: | B3: V.2.0 Client (Final)
A4: Date: | B4: 2013-10-30
A6: 01. INTRODUCTION
A7: 1. This Expenditure Performance Review (EPR) analysis is the first phase of a full analysis of all Human Settlements Programmes. This EPR covers six core Human Settlements Programmes.
A8: 2. The six Human Settlements Programmes included in this analysis are outlined below. This sheet provides the name, number and a brief description of the programme; its concomitant naming in the National Housing Code (2009).
A9: 3. The Housing Programme Name, the Short Name and the Universal Code have been used throughout the model to ensure consistency. Note that there are differences between these names and the programme names used in certain DHS documentation.
A10: 4. These six programmes are highlighted in yellow in sheets that include the full list of Human Settlements Programmes
A11: Prog No. | B11: Universal Housing Programme Name | C11: Short Name | D11: Universal Code | E11: Housing Code Chapter & Name | F11: Notes
A13: 1.0 | B13: FINANCIAL INTERVENTIONS (FI) | D13: FI
A15: 1.5 a | B15: Rectification of Certain Residential Properties (1994 -2002) | C15: Rectification of RDP Stock (1994-2002) | D15: FI-RRDP | E15: No Chapter in Housing Code. | F15: This Programme does not yet have a Chapter in the Housing Code. A regulatory framework has been developed by the Department of Human Settlements
B16: AIM: To provide for the rectification (minor repair, major repair or replacement) of subsidised serviced sites and/or RDP houses constructed between 1994 and 2002.
B17: FOCUS: To undertake minor or major repairs, or to completely replace defective subsidised units
B18: RESPONSIBILITY: Implementation by provinces and/or municipalities who access the funding from the Department of Human Settlements via the Human Settlements Development Grant (HSDG)
A20: 1.7 | B20: Operational Capital Budget | C20: OpsCap Budget | D20: FI-OpsCap | E20: Operational Capital Budget | F20: This programme does not create new housing stock. It facilitates the processes of project implementation.
B21: AIM: To provide funds for facilitating the implementation of human settlements projects funded by other approved National Human Settlements Programmes by Provinces, Municipalities and State Entities.
B22: FOCUS: Funding for additional costs required to plan and implement housing projects, with a specific focus on professional fees not include d in national subsidy quantums. Intended to be used primariliy for professional fees requirements, but used for a wide range of expenditure.
B23: RESPONSIBILITY: Used on a discretionary basis by Provinces, Metros, Municipalities and certain State Entities. Sourced from Provinces via HSDG.
A25: 2.0 | B25: INCREMENTAL INTERVENTIONS (II) | D25: II
A27: 2.2 | B27: Integrated Residential Development Programme | C27: Integrated Residential Development | D27: II-IRDP | E27: 1. Integrated Residential Development Programme | F27: This is currently the major human settlements delivery programme implemented by the Department of Human Settlements
B28: AIM: To facilitate the development of integrated human settlements in well-located areas that provide convenient access to urban amenities, including places of employment.
B29: FOCUS: Identification and planning of vacant land, and development of serviced sites and top structures to national (and provincial) norms and standards.
B30: RESPONSIBILITY: Implemented by municipalities who access the funding from Provincial Human Settlements Departments via the HSDG.
A32: 2.5 | B32: Upgrading of Informal Settlement Programme | C32: Informal Settlement Upgrading | D32: II-UISP | E32: 2. Upgrading of Informal Settlements | F32: This programme has become a major focus of the national human settlements delivery programme, since its inclusion in Outcome 8 targets.
B33: AIM: To facilitate and fund the upgrading of informal settlements in order to upgrade the living conditions of poor people by providing secure tenure and access to basic services and housing
B34: FOCUS: Regularisation of informal settlements, provision of secure tenure, installation of basic services and building of housing structures.
B35: RESPONSIBILITY: Implementation by municipalities who access the funding from Provinces via the HSDG
A37: 3.0 | B37: SOCIAL & RENTAL INTERVENTIONS (SR) | D37: SR
A39: 3.2 | B39: Social Housing Programme | C39: Social Housing | D39: SR-SH | E39: 5. Social Housing Programme | F39: The Social Housing Programme is receiving significant increases in capital, due to its restructuring agenda. This is the only Human Settlements programme implemented by a State Entity (Social Housing Regulatory Authority)
B40: AIM: To establish, capacitate and capitalise social housing institutions which may develop, hold and administer affordable rental units within identified restructuring zones.
B41: FOCUS: Urban integration and re-structuring, through the provision of affordable rental. Grants must be invested by Social Housing Institutions accredited by SHRA, that develop projects within designated Restructuring Zones.
B42: RESPONSIBILITY: Implemented by the Social Housing Regulatory Authority who accredits, regulates and provides funding to social housing institutions, and facilitates, approves and provides Restructuring Capital Grant Funds for social rental housing projects. Funds transferred directly to SHRA.
A44: 3.3 | B44: Community Residential Units Programme (Conversion or New) | C44: Community Residential Units | D44: SR-CRU | E44: 7. Community Residential Units Programme | F44: The CRU Programme currently lacks controls at a national level, and is implemented in various ways within and across provinces.
B45: AIM: To facilitate the provision of secure, stable rental tenure for lower income persons/households earning below R3 500 pm. Includes conversion of public hostels, public rental stock, existing dysfunctional, abandoned or distressed buildings.
B46: FOCUS: The programme provides a framework for dealing with the many different forms of existing public sector residential accommodation. Focus is on redevelopment of single-gender public hostels and development of new, affordable subsidised rental stock
B47: RESPONSIBILITY: Implementation by provinces or municipalities accessing funding for approved projects from Provincial Human Settlements Departments via the HSDG.

Sheet 02. Hum Settlmt Programmes
A1: Project: | B1: ='00. Contents'!B1 -> Expenditure and Performance Review - Human Settlements Programmes
A2: Client | B2: ='00. Contents'!B2 -> National Treasury | E2: RETURN TO CONTENTS
A3: Version: | B3: ='00. Contents'!B3 -> Step 3 Logframe V.1.0 Client (Draft)
A4: Date: | B4: ='00. Contents'!B4 -> 2013-10-31 | D4: RETURN TO CONTENTS
A6: 02a. HUMAN SETTLEMENTS PROGRAMMES - MASTER LIST | H6: Relevance of Programme Per Province
A7: Sheet Ref | B7: Hsng Code | C7: No. | D7: Intervention Area & Universal Programme Name | E7: Short Name | F7: Universal Code | H7: EC | I7: FS | J7: GP | K7: KZN | L7: LP | M7: MP | N7: NC | O7: NW | P7: WC
A8: Worksheet | B8: Chapter No. | C8: PN No. | D8: HUMAN SETTLEMENTS PROGRAMMES | E8: SHORT NAME | F8: CODE
D9: TBA
C17: 1.0 | D17: FINANCIAL INTERVENTIONS (FI) | E17: =D17 -> FINANCIAL INTERVENTIONS (FI) | F17: FI
C18: 1.1 | D18: Individual Housing Subsidies | E18: Individual Subsidies | F18: FI-IS
C19: 1.1 a | D19: Individual Housing Subsidies (Credit Linked) <R3 500 | E19: Individual Subsidy Credit Linked | F19: FI-IHSCL | L19: I.H.S
C20: 1.1 b | D20: Individual Housing Subsidies (Non-Credit Linked) < R3 500 | E20: Individual Subsidy Non-Credit Linked | F20: FI-IHSNCL | L20: I.H.S
C21: 1.2 a | D21: Housing Finance Linked Individual Subsidy (R3500-R7000) | E21: Finance Linked Individual Subsidy | F21: FI-FLISP
C22: 1.3.1 | D22: Inclusionary Housing | E22: Inclusionary Housing | F22: FI-INH
C23: 1.3.2 | D23: Enhanced Extended Discount Benefit Scheme (Properties Transferred) | E23: Discount Benefit Scheme | F23: FI-EEDBS
C24: 1.3.3 | D24: Relocation Assistance (Defunct) | E24: Relocation Assistance | F24: FI-RA
C25: 1.4 | D25: State Asset Maintenance Programme | E25: State Asset Maintenance | F25: FI-SAM
C26: 1.5 | D26: Rectification of Certain Residential Properties | E26: Rectification | F26: FI-R
A27: L1.5a | B27: N/A | C27: 1.5 a | D27: Rectification of Certain Residential Properties (1994 -2002) | E27: Rectification of RDP Stock (1994-2002) | F27: FI-RRDP
C28: 1.5 b | D28: Rectification of Certain Residential Properties (pre-1994) | E28: Rectification of Housing Stock (Pre 1994) | F28: FI-RHS
C29: 1.6 | D29: Provision of Social and Economic Facilities | E29: Social & Economic Facilities | F29: FI-SEF | H29: 1.6
A30: L1.7 | B30: TBA | C30: 1.7 | D30: Operational Capital Budget | E30: OpsCap Budget | F30: FI-OpsCap
C31: 1.8 | D31: Unblocking of Blocked Projects | E31: Unblocking Blocked Projects | F31: FI-UBP
C32: 1.9 | D32: NHBRC Enrolment Fees | E32: NHBRC Enrolment Fees | F32: FI-NHBRC
C33: 1.10 | D33: Land Parcels Procured | E33: Land Procured | F33: FI-LP
C34: 1.10 a | D34: Land Parcels Procured (IHAHSD Grant) | E34: Land Procured (IHAHSD) | F34: FI-LPIHA
C35: 1.10 b | D35: Land Parcels Procured (Other Funding) | E35: Land Procured (Other) | F35: FI-LPO
C36: 1.11 | D36: Housing Chapters of an Integrated Development Plan | E36: Housing Chapters of IDPs | F36: FI-HCIDP
C37: 1.12 | D37: Accreditation of Municipalities | E37: Accreditation of Municipalities | F37: FI-AOM | H37: Yes
C38: 1.12 a | D38: Accredited Municipalities (Level 1& 2): Hsng Progs to be Approved & Funded | E38: Accredited Municipalities (L1&2) | F38: FI-AM1&2
C39: ? | D39: NHFC Mortgage Guarantee Scheme | E39: Mortgage Guarantee | F39: FI-MGS
C40: 2.0 | D40: INCREMENTAL INTERVENTIONS (II) | E40: =D40 -> INCREMENTAL INTERVENTIONS (II) | F40: II
C41: 2.1 a | D41: Project-Linked Subsidies (Sites & Units Approved to 03/2007) | E41: Project-Linked Subsidies Sites<2007) | F41: II-PLSS
C42: 2.1 b | D42: Project-Linked Subsidies (Units Approved to 03/2007) | E42: Project-Linked Subsidies Houses<2007 | F42: II-PLSH
A43: L2.2 | B43: Chapter 1 | C43: 2.2 | D43: Integrated Residential Development Programme | E43: Integrated Residential Development | F43: II-IRDP
C44: 2.2 a | D44: IRDP Phase 1 (Planning & Services) | E44: IRDP-Planning & Services | F44: II-IRDP P1
C45: 2.2 b | D45: IRDP Phase 2 (Top Structure) | E45: IRDP-Top Structure? | F45: ii-IRDP P2
C46: 2.2 c | D46: UISP Phase 4 (Top Structure Construction) - UISP | E46: UISP-Top Structure | F46: II-UISP P4 | Q46: Included in UISP
C47: 2.3 | D47: Enhanced Peoples Housing Process | E47: Enhanced Peoples Housing Process | F47: II-EPHP
C48: 2.4 | D48: Consolidation Subsidy Programme | E48: Consolidation Subsidy | F48: II-CS
C49: 2.4 a | D49: Consolidation Subsidy Programme (Excluding Blocked Projects) | E49: Consolidation Subsidy (Not Blocked) | F49: II-CSPA
C50: 2.4 b | D50: Consolidation Subsidy Programme (Blocked Projects) | E50: Consolidation Subsidy (Blocked) | F50: II-CSPB
A51: L2.5 | B51: Chapter 2 | C51: 2.5 | D51: Upgrading of Informal Settlement Programme | E51: Informal Settlement Upgrading | F51: II-UISP | H51: ISU
C52: 2.5 a | D52: UISP Phase 1: Planning | E52: UISP Phase1: Planning | F52: II-UISP P1
C53: 2.5 b | D53: UISP Phase 2: Temporary Services | E53: UISP Phase 2: Temporary Services | F53: II-UISP P2
C54: 2.5 c | D54: UISP Phase 3: Permanent Site & Services | E54: UISP Phase 3: Site & Services | F54: II-UISP-P3
C55: 2.5 d | D55: UISP Phase 4: Top Structure | E55: UISP: Phase 4: Top Structure | F55: II-UISP-P4
C56: 2.7 | D56: Housing Assistance in Emergency Circumstances | E56: Emergency Housing | F56: II-EH
C57: 2.7 a | D57: Emergency Housing (Current Commitments -sites & houses) | E57: Emergency Housing (Current) | F57: II-EHC
C58: 2.7 b | D58: Emergency Housing (planned projects -possible disaster areas) | E58: Emergency Housing (Disasters) | F58: II-EHD
C59: 2.8 | D59: Township Establishment (Mpumalanga) | E59: Township Establishment | F59: II-TE
C60: ? | D60: Gauteng Inclusionary Housing Programme? | E60: Gauteng Inclusionary Housing | F60: II-GIH
C61: Gap | D61: Transitional Housing Programme | E61: Transitional Housing | F61: II-TH
C62: 3.0 | D62: SOCIAL & RENTAL INTERVENTIONS (SR) | E62: =D62 -> SOCIAL & RENTAL INTERVENTIONS (SR) | F62: SR
C63: 3.1 | D63: Institutional Subsidies Programme | E63: Institutional Subsidies | F63: SR-IS
A64: L3.2 | B64: Chapter 5 | C64: 3.2 | D64: Social Housing Programme | E64: Social Housing | F64: SR-SH
C65: 3.2 a | D65: Social Housing Programme: Operational Support | E65: Social Housing: Operational Support | F65: SR-SHOS
C66: 3.2 b | D66: Social Housing Programme: Capital Grants for Rental Housing | E66: Social Housing: Capital Grants | F66: SR-SHCG
A67: L3.3 | B67: Chapter 7 | C67: 3.3 | D67: Community Residential Units Programme (Conversion or New) | E67: Community Residential Units | F67: SR-CRU
C68: 3.3 a | D68: CRU Conversion | E68: CRU Conversion
C69: 3.3 b | D69: CRU New | E69: CRU New
C70: 3.4 | D70: Gauteng Backyard Rental Programme | E70: Gauteng Backyard Rental | F70: SR-GBY
C71: Gap | D71: Backyard Intervention Programme | E71: Backyard Programme | F71: SR-BY
C72: 4.0 | D72: RURAL INTERVENTIONS (RI) | E72: =D72 -> RURAL INTERVENTIONS (RI) | F72: RI
C73: 4.1 | D73: Rural Housing: Farm Residents Housing Assistance Programme | E73: Rural: Farm Residents | F73: RI-FR
C74: 4.2 | D74: Rural Housing: Communal Land Rights | E74: Rural: Communal Land | F74: RI-CLR
C75: 4.2 a | D75: Rural Housing: Communal Land Rights (Serviced Sites) | E75: Rural: Communal Land (Sites) | F75: RI-CL P1
C76: 4.2 b | D76: Rural Housing: Communal Land Rights (Planning) | E76: Rural: Communal Land (Planning) | F76: RI-CL P2
C77: 4.2 c | D77: Rural Housing: Communal Land Rights (Housing Units Completed) | E77: Rural: Communal Land (Units) | F77: RI-CLP3
C78: 5.0 | D78: NATIONAL SPATIAL PROGRAMMES | E78: =D78 -> NATIONAL SPATIAL PROGRAMMES | F78: NS
C79: 5.1 | D79: Provision for Vulnerable Groups | E79: Vulnerable Groups | F79: NS-VG
C80: 5.2 | D80: Housing Assistance to Provincial Military Veterans | E80: Military Veterans | F80: NS-MV
C81: 5.3 | D81: Housing Assistance to Households Affected by Death of Guardians | E81: Death of Guardians | F81: NS-DG
A83: 02b. NATIONAL HUMAN SETTLEMENTS FUNDING FLOWS TO PROVINCES AND METROS
A84: Sheet Ref: | B84: Prog No. | D84: Intervention Area and Programme Name
D85: OTHER PROGRAMMES
C86: A | D86: Human Settlements Development Grant | F86: N-HSDG
C87: B | D87: Urban Services Development Grant | F87: N-USDG
C88: C | D88: Rural Housing Infrastructure Grant | F88: N-RHIG
C89: D | D89: Disaster Relief Grant | F89: N-DRG
C90: E | D90: Conditional Funding Allocation to Province or Municipality | F90: N-CF
A91: KEY:
B92: Programme &/or Sub-Programme included in this analysis
B93: Programme or Sub-Programme included in National and Provincial reporting formats (Practice Notes), but is a part of another identified programme
B94: Programme identified in official documentation (e.g. Practice Notes) but not universally reported on or formally identified as a National Programme
B95: Programme Gap identified by the Consulting Team
B96: Active link to Programme Logframe Sheet
A97: NOTES:
A98: 1. Programme descriptions are matched as closely as possible to the National Housing Code (2008) and Practice Note Framework. However, discrepancies in names do occur.
A99: 2. Programme Numbers are based on the Practice Note format to facilitate comparison and compatibility between programmes and intervention areas.
A100: 3. Programmes marked in orange are used in Practice Note Reporting, but are formally linked to another programmes
A101: 4. Programmes marked in purple were identified in certain information (e.g. Practice Notes), but are not universally identified or reported on in other documents (Business Plans, other Practice Notes)
A102: 5. Programmes marked in blue are identified gaps in the national human settlements framework.

Sheet 03. Consolidated Elements
A1: Project: | B1: ='00. Contents'!B1 -> Expenditure and Performance Review - Human Settlements Programmes
A2: Client | B2: ='00. Contents'!B2 -> National Treasury
A3: Version: | B3: ='00. Contents'!B3 -> Step 3 Logframe V.1.0 Client (Draft)
A4: Date: | B4: ='00. Contents'!B4 -> 2013-10-31
B6: RETURN TO CONTENTS
A7: 03. CONSOLIDATED HUMAN SETTLEMENT PROGRAMME ELEMENTS AT NATIONAL, PROVINCIAL, METRO/MUNICIPAL AND STATE CORPORATE LEVEL
E9: National Department Management & Administration | F9: Research, Analysis & Policy Development | G9: Legislation & Regulation Development | H9: Programme Administration & Oversight (National level) | I9: Programme Implementation Planning & Support | J9: Programme Costing & Budgeting | K9: Capacity Establishment & Development (National, Provinces, Municipalities & State Entities) | L9: Inter-Government Communication & Coordination | M9: Development Support at National & Provincial Level | N9: Oversight of State Entities | O9: Performance Monitoring & Evaluation | P9: Performance Reporting | Q9: Other National 1? | R9: Other National 2? | T9: Provincial Department Management & Administration | U9: Inter-Government Communication & Coordination | V9: Provincial Research, Analysis & Policy Development | W9: Provincial Legislation & Regulation Development | X9: Programme Administration & Oversight (National & Provincial Programmes) | Y9: Programme Implementation Planning & Support (Province, Municipal & State Entity) | Z9: Programme Costing and Budgeting | AA9: Capacity Establishment & Development (Provincial, Municipal & State Entities) | AB9: xx | AC9: Development Support at Municipal Level | AD9: Funding Systems & Disbursement | AE9: Beneficiary Identification, Recording & Management | AF9: State Asset Management & Maintenance | AG9: Project Implementation (By Province) | AH9: Entities Oversight (Provincial) | AI9: Performance Monitoring & Evaluation | AJ9: Performance Reporting | AL9: Municipal Department Management & Administration | AM9: Inter-Government Communication & Coordination | AN9: Municipal Research & Analysis | AO9: Policy & Bylaw Development | AP9: Project Planning & Budgeting | AQ9: Funding Systems & Funds Disbursement | AR9: Capacity Development | AS9: Appointment of Implementing Agents / Service Providers | AT9: Implementation Planning & (Project) Management | AU9: Beneficiary Identification, Approval & Management | AV9: Alternative / Emergency Accommodation Arrangements | AW9: Land Assembly (Identification & Acquisition) | AX9: Township Proclamation (Design, Establishment, Deeds Registry) | AY9: Statutory Approvals & Enrolments | AZ9: (Internal) Engineering Services Installation | BA9: Top Structure Construction | BB9: Post-Construction Support | BC9: Post-Construction Tneighbourhood Maintenance | BD9: Property Asset Management | BE9: Entities Oversight (Metro)? | BF9: Performance Monitoring & Evaluation | BG9: Performance Reporting | BI9: Research & Policy Development | BJ9: Contribution to Legislation & Regulations | BK9: Strategic Engagement / Implementation Planning | BL9: Regulation of Institutions / Stock | BM9: Costing and Budgeting | BN9: Investment' of Public Funds (Funding Systems & Disbursement) | BO9: Capacity Development (Institutions, projects) | BP9: Implementation Planning | BQ9: Funding Systems & Disbursement | BR9: Beneficiary Management | BS9: Performance Monitoring & Evaluation | BT9: Performance Reporting
E10: A.1 | F10: A.2 | G10: A.3 | H10: A.4 | I10: A.5 | J10: A.6 | K10: A.7 | L10: A.8 | M10: A.9 | N10: A.10 | O10: A.11 | P10: A.12 | Q10: A.13 | R10: A.14 | T10: B.1 | U10: B.2 | V10: B.3 | W10: B.4 | X10: B.5 | Y10: B.6 | Z10: B.7 | AA10: B.8 | AB10: B.9 | AC10: B.10 | AD10: B.11 | AE10: B.12 | AF10: B.13 | AG10: B.14 | AH10: B.15 | AI10: B.16 | AJ10: B.17 | AL10: C.1 | AM10: C.2 | AN10: C.3 | AO10: C.4 | AP10: C.5 | AQ10: C.6 | AR10: C.7 | AS10: C.8 | AT10: C.9 | AU10: C.10 | AV10: C.11 | AW10: C.12 | AX10: C.13 | AY10: C.14 | AZ10: C15 | BA10: C.16 | BB10: C.17 | BC10: C.18 | BD10: C.19 | BE10: C.20 | BF10: C.21 | BG10: C.22 | BI10: D.1 | BJ10: D.2 | BK10: D.3 | BL10: D.4 | BM10: D.5 | BN10: D.6 | BO10: D.7 | BP10: D.8 | BQ10: D.9 | BR10: D.10 | BS10: D.11 | BT10: D.12
A11: Section | B11: Programme Short Name | C11: Prog Code | E11: A. NATIONAL-LEVEL ELEMENTS (NATIONAL DEPARTMENT OF HUMAN SETTLEMENTS) | T11: B. PROVINCIAL-LEVEL ELEMENTS (PROVINCIAL DEPARTMENTS OF HUMAN SETTLEMENTS, HOUSING & COOPERATIVE GOVERNANCE | AL11: C. METROPOLITAN / MUNICIPAL-LEVEL ELEMENTS | BI11: D. NATIONAL, PROVINCIAL AND MUNICIPAL STATE ENTITIES: ELEMENTS
A12: 1.0 | B12: FINANCIAL INTERVENTIONS (FI) | C12: FI | P12: .12
A13: 1.1 | B13: Individual Subsidies | C13: FI-IS
A14: 1.1 a | B14: Individual Subsidy Credit Linked | C14: FI-IHSCL
A15: 1.1 b | B15: Individual Subsidy Non-Credit Linked | C15: FI-IHSNCL
A16: 1.2 a | B16: Finance Linked Individual Subsidy | C16: FI-FLISP
A17: 1.3.1 | B17: Inclusionary Housing | C17: FI-INH
A18: 1.3.2 | B18: Discount Benefit Scheme | C18: FI-EEDBS
A20: 1.3.3 | B20: Relocation Assistance | C20: FI-RA
A21: 1.4 | B21: State Asset Maintenance | C21: FI-SAM
A22: 1.5 | B22: Rectification | C22: FI-R
A23: 1.5 a | B23: Rectification of RDP Stock (1994-2002) | C23: FI-RRDP | E23: N/A | F23: =F$9 -> Research, Analysis & Policy Development | G23: Legislation & Regulation Development | H23: Programme Administration & Oversight (National level) | I23: Programme Implementation Planning & Support | J23: Programme Costing & Budgeting | K23: Capacity Establishment & Development (National, Provinces, Municipalities & State Entities) | L23: Inter-Government Communication & Coordination | M23: N/A | N23: =N$9 -> Oversight of State Entities | O23: =O$9 -> Performance Monitoring & Evaluation | P23: =P$9 -> Performance Reporting | Q23: N/A | R23: N/A | T23: N/A | U23: N/A | V23: =V$9 -> Provincial Research, Analysis & Policy Development | W23: N/A | X23: =X$9 -> Programme Administration & Oversight (National & Provincial Programmes) | Y23: =Y$9 -> Programme Implementation Planning & Support (Province, Municipal & State Entity) | Z23: =Z$9 -> Programme Costing and Budgeting | AA23: =AA$9 -> Capacity Establishment & Development (Provincial, Municipal & State Entities) | AB23: N/A | AC23: =AC$9 -> Development Support at Municipal Level | AD23: =AD$9 -> Funding Systems & Disbursement | AE23: =AE$9 -> Beneficiary Identification, Recording & Management | AF23: N/A | AG23: =AG$9 -> Project Implementation (By Province) | AH23: N/A | AI23: =AI$9 -> Performance Monitoring & Evaluation | AJ23: =AJ$9 -> Performance Reporting | AL23: N/A | AM23: =AM$9 -> Inter-Government Communication & Coordination | AN23: =AN$9 -> Municipal Research & Analysis | AO23: N/A | AP23: =AP$9 -> Project Planning & Budgeting | AR23: N/A | AS23: =AS$9 -> Appointment of Implementing Agents / Service Providers | AT23: =AT$9 -> Implementation Planning & (Project) Management | AU23: =AU$9 -> Beneficiary Identification, Approval & Management | AV23: =AV$9 -> Alternative / Emergency Accommodation Arrangements | AW23: N/A | AX23: N/A | AY23: =AY$9 -> Statutory Approvals & Enrolments | AZ23: =AZ$9 -> (Internal) Engineering Services Installation | BA23: =BA$9 -> Top Structure Construction | BB23: N/A | BC23: =BC$9 -> Post-Construction Tneighbourhood Maintenance | BD23: N/A | BE23: N/A | BF23: =BF$9 -> Performance Monitoring & Evaluation | BG23: =BG$9 -> Performance Reporting | BI23: =BI$9 -> Research & Policy Development | BJ23: Contribution to Legislation & Regulations | BK23: Strategic Engagement / Implementation Planning | BL23: Regulation of Institutions / Stock | BM23: Costing and Budgeting | BN23: Investment' of Public Funds (Funding Systems & Disbursement) | BO23: Capacity Development (Institutions, projects) | BP23: Implementation Planning | BQ23: Funding Systems & Disbursement | BR23: N/A | BS23: =BS$9 -> Performance Monitoring & Evaluation | BT23: =BT$9 -> Performance Reporting
A24: 1.5 b | B24: Rectification of Housing Stock (Pre 1994) | C24: FI-RHS
A25: 1.6 | B25: Social & Economic Facilities | C25: FI-SEF
A26: 1.7 | B26: OpsCap Budget | C26: FI-OpsCap | E26: N/A | F26: =F$9 -> Research, Analysis & Policy Development | G26: =G$9 -> Legislation & Regulation Development | H26: =H$9 -> Programme Administration & Oversight (National level) | I26: =I$9 -> Programme Implementation Planning & Support | J26: =J$9 -> Programme Costing & Budgeting | K26: ?? | L26: =L$9 -> Inter-Government Communication & Coordination | M26: ?? | N26: N/A | O26: =O$9 -> Performance Monitoring & Evaluation | P26: =P$9 -> Performance Reporting | Q26: N/A | R26: N/A | T26: N/A | U26: N/A | V26: N/A | W26: N/A | X26: =X$9 -> Programme Administration & Oversight (National & Provincial Programmes) | Y26: =Y$9 -> Programme Implementation Planning & Support (Province, Municipal & State Entity) | Z26: =Z$9 -> Programme Costing and Budgeting | AA26: =AA$9 -> Capacity Establishment & Development (Provincial, Municipal & State Entities) | AB26: N/A | AC26: =AC$9 -> Development Support at Municipal Level | AD26: =AD$9 -> Funding Systems & Disbursement | AE26: N/A | AF26: N/A | AG26: =AG$9 -> Project Implementation (By Province) | AH26: N/A | AI26: =AI$9 -> Performance Monitoring & Evaluation | AJ26: =AJ$9 -> Performance Reporting | AL26: N/A | AM26: N/A | AN26: =AN$9 -> Municipal Research & Analysis | AO26: =AO$9 -> Policy & Bylaw Development | AP26: =AP$9 -> Project Planning & Budgeting | AR26: =AR$9 -> Capacity Development | AS26: =AS$9 -> Appointment of Implementing Agents / Service Providers | AT26: =AT$9 -> Implementation Planning & (Project) Management | AU26: N/A | AV26: N/A | AW26: N/A | AX26: N/A | AY26: N/A | AZ26: N/A | BA26: N/A | BB26: N/A | BC26: N/A | BD26: N/A | BE26: N/A | BF26: =BF$9 -> Performance Monitoring & Evaluation | BG26: =BG$9 -> Performance Reporting | BI26: N/A | BJ26: N/A | BM26: N/A | BN26: N/A | BO26: N/A | BP26: N/A | BQ26: N/A | BR26: N/A | BS26: =BS$9 -> Performance Monitoring & Evaluation | BT26: =BT$9 -> Performance Reporting
A27: 1.8 | B27: Unblocking Blocked Projects | C27: FI-UBP
A28: 1.9 | B28: NHBRC Enrolment Fees | C28: FI-NHBRC
A29: 1.10 | B29: Land Procured | C29: FI-LP
A30: 1.10 a | B30: Land Procured (IHAHSD) | C30: FI-LPIHA
A31: 1.10 b | B31: Land Procured (Other) | C31: FI-LPO
A32: 1.11 | B32: Housing Chapters of IDPs | C32: FI-HCIDP
A33: 1.12 | B33: Accreditation of Municipalities | C33: FI-AOM
A34: 1.12 a | B34: Accredited Municipalities (L1&2) | C34: FI-AM1&2
A35: ? | B35: Mortgage Guarantee | C35: FI-MGS
A36: 2.0 | B36: INCREMENTAL INTERVENTIONS (II) | C36: II
A37: 2.1 a | B37: Project-Linked Subsidies Sites<2007) | C37: II-PLSS
A38: 2.1 b | B38: Project-Linked Subsidies Houses<2007 | C38: II-PLSH
A39: 2.2 | B39: Integrated Residential Development | C39: II-IRDP | E39: N/A | F39: =F$9 -> Research, Analysis & Policy Development | G39: Legislation & Regulation Development | H39: Programme Administration & Oversight (National level) | I39: Programme Implementation Planning & Support | J39: Programme Costing & Budgeting | K39: Capacity Establishment & Development (National, Provinces, Municipalities & State Entities) | L39: Inter-Government Communication & Coordination | M39: ?? | N39: N/A | O39: =O$9 -> Performance Monitoring & Evaluation | P39: =P$9 -> Performance Reporting | Q39: N/A | R39: N/A | T39: N/A | U39: =U$9 -> Inter-Government Communication & Coordination | V39: =V$9 -> Provincial Research, Analysis & Policy Development | W39: N/A | X39: =X$9 -> Programme Administration & Oversight (National & Provincial Programmes) | Y39: =Y$9 -> Programme Implementation Planning & Support (Province, Municipal & State Entity) | Z39: =Z$9 -> Programme Costing and Budgeting | AA39: =AA$9 -> Capacity Establishment & Development (Provincial, Municipal & State Entities) | AB39: N/A | AC39: =AC$9 -> Development Support at Municipal Level | AD39: =AD$9 -> Funding Systems & Disbursement | AE39: =AE$9 -> Beneficiary Identification, Recording & Management | AF39: N/A | AG39: =AG$9 -> Project Implementation (By Province) | AH39: N/A | AI39: =AI$9 -> Performance Monitoring & Evaluation | AJ39: =AJ$9 -> Performance Reporting | AL39: N/A | AM39: =AM$9 -> Inter-Government Communication & Coordination | AN39: =AN$9 -> Municipal Research & Analysis | AO39: N/A | AP39: =AP$9 -> Project Planning & Budgeting | AR39: =AR$9 -> Capacity Development | AS39: =AS$9 -> Appointment of Implementing Agents / Service Providers | AT39: =AT$9 -> Implementation Planning & (Project) Management | AU39: =AU$9 -> Beneficiary Identification, Approval & Management | AV39: N/A | AW39: =AW$9 -> Land Assembly (Identification & Acquisition) | AX39: Township Proclamation (Design, Establishment, Deeds Registry) | AY39: Statutory Approvals & Enrolments | AZ39: (Internal) Engineering Services Installation | BA39: Top Structure Construction | BB39: Post-Construction Support | BC39: Post-Construction Tneighbourhood Maintenance | BD39: N/A | BE39: N/A | BF39: =BF$9 -> Performance Monitoring & Evaluation | BG39: =BG$9 -> Performance Reporting | BI39: =BI$9 -> Research & Policy Development | BJ39: N/A | BK39: =BK$9 -> Strategic Engagement / Implementation Planning | BL39: =BL$9 -> Regulation of Institutions / Stock | BM39: =BM$9 -> Costing and Budgeting | BN39: N/A | BO39: N/A | BP39: N/A | BQ39: N/A | BR39: N/A | BS39: =BS$9 -> Performance Monitoring & Evaluation | BT39: =BT$9 -> Performance Reporting
A40: 2.2 a | B40: IRDP-Planning & Services | C40: II-IRDP P1
A41: 2.2 b | B41: IRDP-Top Structure? | C41: ii-IRDP P2
A42: 2.2 c | B42: UISP-Top Structure | C42: II-UISP P4
A43: 2.3 | B43: Enhanced Peoples Housing Process | C43: II-EPHP
A44: 2.4 | B44: Consolidation Subsidy | C44: II-CS
A45: 2.4 a | B45: Consolidation Subsidy (Not Blocked) | C45: II-CSPA
A46: 2.4 b | B46: Consolidation Subsidy (Blocked) | C46: II-CSPB
A47: 2.5 | B47: Informal Settlement Upgrading | C47: II-UISP | E47: N/A | F47: =F$9 -> Research, Analysis & Policy Development | G47: Legislation & Regulation Development | H47: Programme Administration & Oversight (National level) | I47: Programme Implementation Planning & Support | J47: Programme Costing & Budgeting | K47: Capacity Establishment & Development (National, Provinces, Municipalities & State Entities) | L47: Inter-Government Communication & Coordination | M47: Development Support at National & Provincial Level | N47: Oversight of State Entities | O47: Performance Monitoring & Evaluation | P47: Performance Reporting | Q47: N/A | R47: N/A | T47: N/A | U47: =U$9 -> Inter-Government Communication & Coordination | V47: =V$9 -> Provincial Research, Analysis & Policy Development | W47: N/A | X47: =X$9 -> Programme Administration & Oversight (National & Provincial Programmes) | Y47: =Y$9 -> Programme Implementation Planning & Support (Province, Municipal & State Entity) | Z47: =Z$9 -> Programme Costing and Budgeting | AA47: =AA$9 -> Capacity Establishment & Development (Provincial, Municipal & State Entities) | AB47: N/A | AC47: =AC$9 -> Development Support at Municipal Level | AD47: =AD$9 -> Funding Systems & Disbursement | AE47: =AE$9 -> Beneficiary Identification, Recording & Management | AF47: N/A | AG47: =AG$9 -> Project Implementation (By Province) | AH47: N/A | AI47: =AI$9 -> Performance Monitoring & Evaluation | AJ47: =AJ$9 -> Performance Reporting | AL47: N/A | AM47: =AM$9 -> Inter-Government Communication & Coordination | AN47: =AN$9 -> Municipal Research & Analysis | AO47: N/A | AP47: =AP$9 -> Project Planning & Budgeting | AR47: =AR$9 -> Capacity Development | AS47: =AS$9 -> Appointment of Implementing Agents / Service Providers | AT47: =AT$9 -> Implementation Planning & (Project) Management | AU47: =AU$9 -> Beneficiary Identification, Approval & Management | AV47: =AV$9 -> Alternative / Emergency Accommodation Arrangements | AY47: =AY$9 -> Statutory Approvals & Enrolments | AZ47: =AZ$9 -> (Internal) Engineering Services Installation | BA47: =BA$9 -> Top Structure Construction | BB47: =BB$9 -> Post-Construction Support | BC47: =BC$9 -> Post-Construction Tneighbourhood Maintenance | BD47: N/A | BE47: N/A | BF47: =BF$9 -> Performance Monitoring & Evaluation | BG47: =BG$9 -> Performance Reporting | BI47: =BI$9 -> Research & Policy Development | BJ47: N/A | BK47: =BK$9 -> Strategic Engagement / Implementation Planning | BL47: Regulation of Institutions / Stock | BM47: Costing and Budgeting | BN47: Investment' of Public Funds (Funding Systems & Disbursement) | BO47: Capacity Development (Institutions, projects) | BP47: Implementation Planning | BQ47: Funding Systems & Disbursement | BR47: Beneficiary Management | BS47: Performance Monitoring & Evaluation | BT47: Performance Reporting
A48: 2.5 a | B48: UISP Phase1: Planning | C48: II-UISP P1
A49: 2.5 b | B49: UISP Phase 2: Temporary Services | C49: II-UISP P2
A50: 2.7 | B50: Emergency Housing | C50: II-EH
A51: 2.7 a | B51: Emergency Housing (Current) | C51: II-EHC
A52: 2.7 b | B52: Emergency Housing (Disasters) | C52: II-EHD
A53: 2.8 | B53: Township Establishment | C53: II-TE
A54: ? | B54: Gauteng Inclusionary Housing | C54: II-GIH
A55: Gap | B55: Transitional Housing | C55: II-TH
A56: 3.0 | B56: SOCIAL & RENTAL INTERVENTIONS (SR) | C56: SR
A57: 3.1 | B57: Institutional Subsidies | C57: SR-IS
A58: 3.2 | B58: Social Housing | C58: SR-SH | E58: N/A | F58: =F$9 -> Research, Analysis & Policy Development | G58: Legislation & Regulation Development | H58: Programme Administration & Oversight (National level) | I58: Programme Implementation Planning & Support | J58: Programme Costing & Budgeting | K58: Capacity Establishment & Development (National, Provinces, Municipalities & State Entities) | L58: Inter-Government Communication & Coordination | M58: Development Support at National & Provincial Level | N58: Oversight of State Entities | O58: Performance Monitoring & Evaluation | P58: Performance Reporting | Q58: N/A | R58: N/A | T58: N/A | U58: =U$9 -> Inter-Government Communication & Coordination | V58: =V$9 -> Provincial Research, Analysis & Policy Development | W58: N/A | X58: =X$9 -> Programme Administration & Oversight (National & Provincial Programmes) | Y58: =Y$9 -> Programme Implementation Planning & Support (Province, Municipal & State Entity) | Z58: =Z$9 -> Programme Costing and Budgeting | AA58: =AA$9 -> Capacity Establishment & Development (Provincial, Municipal & State Entities) | AB58: N/A | AC58: =AC$9 -> Development Support at Municipal Level | AD58: =AD$9 -> Funding Systems & Disbursement | AE58: N/A | AF58: N/A | AG58: =AG$9 -> Project Implementation (By Province) | AH58: N/A | AI58: =AI$9 -> Performance Monitoring & Evaluation | AJ58: =AJ$9 -> Performance Reporting | AL58: N/A | AM58: =AM$9 -> Inter-Government Communication & Coordination | AN58: =AN$9 -> Municipal Research & Analysis | AO58: =AO$9 -> Policy & Bylaw Development | AP58: =AP$9 -> Project Planning & Budgeting | AR58: =AR$9 -> Capacity Development | AS58: N/A | AT58: =AT$9 -> Implementation Planning & (Project) Management | AU58: N/A | AV58: N/A | AW58: =AW$9 -> Land Assembly (Identification & Acquisition) | AX58: =AX$9 -> Township Proclamation (Design, Establishment, Deeds Registry) | AY58: N/A | AZ58: =AZ$9 -> (Internal) Engineering Services Installation | BA58: N/A | BB58: N/A | BC58: =BC$9 -> Post-Construction Tneighbourhood Maintenance | BD58: N/A | BE58: N/A | BF58: =BF$9 -> Performance Monitoring & Evaluation | BG58: =BG$9 -> Performance Reporting | BI58: =BI$9 -> Research & Policy Development | BJ58: Contribution to Legislation & Regulations | BK58: Strategic Engagement / Implementation Planning | BL58: Regulation of Institutions / Stock | BM58: Costing and Budgeting | BN58: Investment' of Public Funds (Funding Systems & Disbursement) | BO58: Capacity Development (Institutions, projects) | BP58: Implementation Planning | BQ58: Funding Systems & Disbursement | BR58: Beneficiary Management | BS58: Performance Monitoring & Evaluation | BT58: Performance Reporting
A59: 3.2 a | B59: Social Housing: Operational Support | C59: SR-SHOS
A60: 3.2 b | B60: Social Housing: Capital Grants | C60: SR-SHCG
A61: 3.3 | B61: Community Residential Units | C61: SR-CRU | E61: N/A | F61: =F$9 -> Research, Analysis & Policy Development | G61: Legislation & Regulation Development | H61: Programme Administration & Oversight (National level) | I61: Programme Implementation Planning & Support | J61: Programme Costing & Budgeting | K61: Capacity Establishment & Development (National, Provinces, Municipalities & State Entities) | L61: Inter-Government Communication & Coordination | M61: Development Support at National & Provincial Level | N61: N/A | O61: =O$9 -> Performance Monitoring & Evaluation | P61: =P$9 -> Performance Reporting | Q61: N/A | R61: N/A | T61: N/A | U61: =U$9 -> Inter-Government Communication & Coordination | V61: =V$9 -> Provincial Research, Analysis & Policy Development | W61: N/A | X61: =X$9 -> Programme Administration & Oversight (National & Provincial Programmes) | Y61: =Y$9 -> Programme Implementation Planning & Support (Province, Municipal & State Entity) | Z61: =Z$9 -> Programme Costing and Budgeting | AA61: =AA$9 -> Capacity Establishment & Development (Provincial, Municipal & State Entities) | AB61: N/A | AC61: =AC$9 -> Development Support at Municipal Level | AD61: =AD$9 -> Funding Systems & Disbursement | AE61: N/A | AF61: =AF$9 -> State Asset Management & Maintenance | AG61: =AG$9 -> Project Implementation (By Province) | AH61: N/A | AI61: =AI$9 -> Performance Monitoring & Evaluation | AJ61: =AJ$9 -> Performance Reporting | AL61: N/A | AM61: =AM$9 -> Inter-Government Communication & Coordination | AN61: =AN$9 -> Municipal Research & Analysis | AO61: =AO$9 -> Policy & Bylaw Development | AP61: =AP$9 -> Project Planning & Budgeting | AR61: =AR$9 -> Capacity Development | AS61: =AS$9 -> Appointment of Implementing Agents / Service Providers | AT61: =AT$9 -> Implementation Planning & (Project) Management | AU61: N/A | AV61: =AV$9 -> Alternative / Emergency Accommodation Arrangements | AW61: Land Assembly (Identification & Acquisition) | AX61: Township Proclamation (Design, Establishment, Deeds Registry) | AY61: Statutory Approvals & Enrolments | AZ61: (Internal) Engineering Services Installation | BA61: Top Structure Construction | BB61: Post-Construction Support | BC61: Post-Construction Tneighbourhood Maintenance | BD61: Property Asset Management | BE61: N/A | BF61: =BF$9 -> Performance Monitoring & Evaluation | BG61: =BG$9 -> Performance Reporting | BI61: =BI$9 -> Research & Policy Development | BJ61: Contribution to Legislation & Regulations | BK61: Strategic Engagement / Implementation Planning | BL61: Regulation of Institutions / Stock | BM61: Costing and Budgeting | BN61: Investment' of Public Funds (Funding Systems & Disbursement) | BO61: Capacity Development (Institutions, projects) | BP61: Implementation Planning | BQ61: Funding Systems & Disbursement | BR61: Beneficiary Management | BS61: Performance Monitoring & Evaluation | BT61: Performance Reporting
A62: 3.4 | B62: Gauteng Backyard Rental | C62: SR-GBY
A63: Gap | B63: Backyard Programme | C63: SR-BY
A64: 4.0 | B64: RURAL INTERVENTIONS (RI) | C64: RI
A65: 4.1 | B65: Rural: Farm Residents | C65: RI-FR
A66: 4.2 | B66: Rural: Communal Land | C66: RI-CLR
A67: 4.2 a | B67: Rural: Communal Land (Sites) | C67: RI-CL P1
A68: 4.2 b | B68: Rural: Communal Land (Planning) | C68: RI-CL P2
A69: 4.2 c | B69: Rural: Communal Land (Units) | C69: RI-CLP3
A70: 5.0 | B70: NATIONAL SPATIAL PROGRAMMES | C70: NS
A71: 5.1 | B71: Vulnerable Groups | C71: NS-VG
A72: 5.2 | B72: Military Veterans | C72: NS-MV
A73: 5.3 | B73: Death of Guardians | C73: NS-DG
A74: KEY
B75: Programme Included in Analysis
B76: Not Applicable to Programme
B77: Applicable to Programme, well executed
B78: Applicable to Programme, poorly executed
B79: Relevance to Programme to be determined
B80: Applicable to Programme, provincial variation in execution
A81: NOTES:
A82: 1. Elements developed per programme independently, then consolidated to ensure consistency and non-duplication across all Human Settlements Programmes
A83: 2. "N/A" indicates elements that are Not Applicable to a specific programme
A84: 3. Relevance of Provincial Elements to programmes considered generically in Section B above. It is probable that specific programmes are implemented differently per province. This may require an Element Mapping exercise per province
A85: 4. Provincial variations may require an element mapping exercise per Province.
A86: 5. Consolidated elements to be mapped back to Programme Worksheets for final EPR product.
A87: 6. Coding of applicability and level of execution (colour codes in Key above) are initial assessments by the Consultng Team based on personal knowledge and availble information

Sheet 04. Assumptions Matrix
A1: Project: | B1: ='00. Contents'!B1 -> Expenditure and Performance Review - Human Settlements Programmes
A2: Client | B2: ='00. Contents'!B2 -> National Treasury | N2: RETURN TO CONTENTS
A3: Version: | B3: ='00. Contents'!B3 -> Step 3 Logframe V.1.0 Client (Draft)
A4: Date: | B4: ='00. Contents'!B4 -> 2013-10-31
B6: RETURN TO CONTENTS
A7: 04. ASSUMPTIONS MATRIX (ALLOCATION OF PROGRAMME EXPENDITURE TO ELEMENTS
C9: ='03. Consolidated Elements'!E9 -> National Department Management & Administration | D9: ='03. Consolidated Elements'!F9 -> Research, Analysis & Policy Development | E9: ='03. Consolidated Elements'!G9 -> Legislation & Regulation Development | F9: ='03. Consolidated Elements'!H9 -> Programme Administration & Oversight (National level) | G9: ='03. Consolidated Elements'!I9 -> Programme Implementation Planning & Support | H9: ='03. Consolidated Elements'!J9 -> Programme Costing & Budgeting | I9: ='03. Consolidated Elements'!K9 -> Capacity Establishment & Development (National, Provinces, Municipalities & State Entities) | J9: ='03. Consolidated Elements'!L9 -> Inter-Government Communication & Coordination | K9: ='03. Consolidated Elements'!M9 -> Development Support at National & Provincial Level | L9: ='03. Consolidated Elements'!N9 -> Oversight of State Entities | M9: ='03. Consolidated Elements'!O9 -> Performance Monitoring & Evaluation | N9: ='03. Consolidated Elements'!P9 -> Performance Reporting | O9: ='03. Consolidated Elements'!Q9 -> Other National 1? | P9: ='03. Consolidated Elements'!R9 -> Other National 2? | S9: ='03. Consolidated Elements'!T9 -> Provincial Department Management & Administration | T9: ='03. Consolidated Elements'!U9 -> Inter-Government Communication & Coordination | U9: ='03. Consolidated Elements'!V9 -> Provincial Research, Analysis & Policy Development | V9: ='03. Consolidated Elements'!W9 -> Provincial Legislation & Regulation Development | W9: ='03. Consolidated Elements'!X9 -> Programme Administration & Oversight (National & Provincial Programmes) | X9: ='03. Consolidated Elements'!Y9 -> Programme Implementation Planning & Support (Province, Municipal & State Entity) | Y9: ='03. Consolidated Elements'!Z9 -> Programme Costing and Budgeting | Z9: ='03. Consolidated Elements'!AA9 -> Capacity Establishment & Development (Provincial, Municipal & State Entities) | AA9: ='03. Consolidated Elements'!AB9 -> xx | AB9: ='03. Consolidated Elements'!AC9 -> Development Support at Municipal Level | AC9: ='03. Consolidated Elements'!AD9 -> Funding Systems & Disbursement | AD9: ='03. Consolidated Elements'!AE9 -> Beneficiary Identification, Recording & Management | AE9: ='03. Consolidated Elements'!AF9 -> State Asset Management & Maintenance | AF9: ='03. Consolidated Elements'!AG9 -> Project Implementation (By Province) | AG9: ='03. Consolidated Elements'!AH9 -> Entities Oversight (Provincial) | AH9: ='03. Consolidated Elements'!AI9 -> Performance Monitoring & Evaluation | AI9: ='03. Consolidated Elements'!AJ9 -> Performance Reporting | AL9: ='03. Consolidated Elements'!AL9 -> Municipal Department Management & Administration | AM9: ='03. Consolidated Elements'!AM9 -> Inter-Government Communication & Coordination | AN9: ='03. Consolidated Elements'!AN9 -> Municipal Research & Analysis | AO9: ='03. Consolidated Elements'!AO9 -> Policy & Bylaw Development | AP9: ='03. Consolidated Elements'!AP9 -> Project Planning & Budgeting | AQ9: ='03. Consolidated Elements'!AQ9 -> Funding Systems & Funds Disbursement | AR9: ='03. Consolidated Elements'!AR9 -> Capacity Development | AS9: ='03. Consolidated Elements'!AS9 -> Appointment of Implementing Agents / Service Providers | AT9: ='03. Consolidated Elements'!AT9 -> Implementation Planning & (Project) Management | AU9: ='03. Consolidated Elements'!AU9 -> Beneficiary Identification, Approval & Management | AV9: ='03. Consolidated Elements'!AV9 -> Alternative / Emergency Accommodation Arrangements | AW9: ='03. Consolidated Elements'!AW9 -> Land Assembly (Identification & Acquisition) | AX9: ='03. Consolidated Elements'!AX9 -> Township Proclamation (Design, Establishment, Deeds Registry) | AY9: ='03. Consolidated Elements'!AY9 -> Statutory Approvals & Enrolments | AZ9: ='03. Consolidated Elements'!AZ9 -> (Internal) Engineering Services Installation | BA9: ='03. Consolidated Elements'!BA9 -> Top Structure Construction | BB9: ='03. Consolidated Elements'!BB9 -> Post-Construction Support | BC9: ='03. Consolidated Elements'!BC9 -> Post-Construction Tneighbourhood Maintenance | BD9: ='03. Consolidated Elements'!BD9 -> Property Asset Management | BE9: ='03. Consolidated Elements'!BE9 -> Entities Oversight (Metro)? | BF9: ='03. Consolidated Elements'!BF9 -> Performance Monitoring & Evaluation | BG9: ='03. Consolidated Elements'!BG9 -> Performance Reporting | BJ9: ='03. Consolidated Elements'!BI9 -> Research & Policy Development | BK9: ='03. Consolidated Elements'!BJ9 -> Contribution to Legislation & Regulations | BL9: ='03. Consolidated Elements'!BK9 -> Strategic Engagement / Implementation Planning | BM9: ='03. Consolidated Elements'!BL9 -> Regulation of Institutions / Stock | BN9: ='03. Consolidated Elements'!BM9 -> Costing and Budgeting | BO9: ='03. Consolidated Elements'!BN9 -> Investment' of Public Funds (Funding Systems & Disbursement) | BP9: ='03. Consolidated Elements'!BO9 -> Capacity Development (Institutions, projects) | BQ9: ='03. Consolidated Elements'!BP9 -> Implementation Planning | BR9: ='03. Consolidated Elements'!BQ9 -> Funding Systems & Disbursement | BS9: ='03. Consolidated Elements'!BR9 -> Beneficiary Management | BT9: ='03. Consolidated Elements'!BS9 -> Performance Monitoring & Evaluation | BU9: ='03. Consolidated Elements'!BT9 -> Performance Reporting
A10: No. | B10: HOUSING PROGRAMME NAME | C10: ='03. Consolidated Elements'!E10 -> A.1 | D10: ='03. Consolidated Elements'!F10 -> A.2 | E10: ='03. Consolidated Elements'!G10 -> A.3 | F10: ='03. Consolidated Elements'!H10 -> A.4 | G10: ='03. Consolidated Elements'!I10 -> A.5 | H10: ='03. Consolidated Elements'!J10 -> A.6 | I10: ='03. Consolidated Elements'!K10 -> A.7 | J10: ='03. Consolidated Elements'!L10 -> A.8 | K10: ='03. Consolidated Elements'!M10 -> A.9 | L10: ='03. Consolidated Elements'!N10 -> A.10 | M10: ='03. Consolidated Elements'!O10 -> A.11 | N10: ='03. Consolidated Elements'!P10 -> A.12 | O10: ='03. Consolidated Elements'!Q10 -> A.13 | P10: ='03. Consolidated Elements'!R10 -> A.14 | Q10: Sub-Total | R10: ='03. Consolidated Elements'!S10 -> 0 | S10: ='03. Consolidated Elements'!T10 -> B.1 | T10: ='03. Consolidated Elements'!U10 -> B.2 | U10: ='03. Consolidated Elements'!V10 -> B.3 | V10: ='03. Consolidated Elements'!W10 -> B.4 | W10: ='03. Consolidated Elements'!X10 -> B.5 | X10: ='03. Consolidated Elements'!Y10 -> B.6 | Y10: ='03. Consolidated Elements'!Z10 -> B.7 | Z10: ='03. Consolidated Elements'!AA10 -> B.8 | AA10: ='03. Consolidated Elements'!AB10 -> B.9 | AB10: ='03. Consolidated Elements'!AC10 -> B.10 | AC10: ='03. Consolidated Elements'!AD10 -> B.11 | AD10: ='03. Consolidated Elements'!AE10 -> B.12 | AE10: ='03. Consolidated Elements'!AF10 -> B.13 | AF10: ='03. Consolidated Elements'!AG10 -> B.14 | AG10: ='03. Consolidated Elements'!AH10 -> B.15 | AH10: ='03. Consolidated Elements'!AI10 -> B.16 | AI10: ='03. Consolidated Elements'!AJ10 -> B.17 | AJ10: Sub-Total | AK10: ='03. Consolidated Elements'!AK10 -> 0 | AL10: ='03. Consolidated Elements'!AL10 -> C.1 | AM10: ='03. Consolidated Elements'!AM10 -> C.2 | AN10: ='03. Consolidated Elements'!AN10 -> C.3 | AO10: ='03. Consolidated Elements'!AO10 -> C.4 | AP10: ='03. Consolidated Elements'!AP10 -> C.5 | AQ10: ='03. Consolidated Elements'!AQ10 -> C.6 | AR10: ='03. Consolidated Elements'!AR10 -> C.7 | AS10: ='03. Consolidated Elements'!AS10 -> C.8 | AT10: ='03. Consolidated Elements'!AT10 -> C.9 | AU10: ='03. Consolidated Elements'!AU10 -> C.10 | AV10: ='03. Consolidated Elements'!AV10 -> C.11 | AW10: ='03. Consolidated Elements'!AW10 -> C.12 | AX10: ='03. Consolidated Elements'!AX10 -> C.13 | AY10: ='03. Consolidated Elements'!AY10 -> C.14 | AZ10: ='03. Consolidated Elements'!AZ10 -> C15 | BA10: ='03. Consolidated Elements'!BA10 -> C.16 | BB10: ='03. Consolidated Elements'!BB10 -> C.17 | BC10: ='03. Consolidated Elements'!BC10 -> C.18 | BD10: ='03. Consolidated Elements'!BD10 -> C.19 | BE10: ='03. Consolidated Elements'!BE10 -> C.20 | BF10: ='03. Consolidated Elements'!BF10 -> C.21 | BG10: ='03. Consolidated Elements'!BG10 -> C.22 | BH10: Sub-Total | BI10: ='03. Consolidated Elements'!BH10 -> 0 | BJ10: ='03. Consolidated Elements'!BI10 -> D.1 | BK10: ='03. Consolidated Elements'!BJ10 -> D.2 | BL10: ='03. Consolidated Elements'!BK10 -> D.3 | BM10: ='03. Consolidated Elements'!BL10 -> D.4 | BN10: ='03. Consolidated Elements'!BM10 -> D.5 | BO10: ='03. Consolidated Elements'!BN10 -> D.6 | BP10: ='03. Consolidated Elements'!BO10 -> D.7 | BQ10: ='03. Consolidated Elements'!BP10 -> D.8 | BR10: ='03. Consolidated Elements'!BQ10 -> D.9 | BS10: ='03. Consolidated Elements'!BR10 -> D.10 | BT10: ='03. Consolidated Elements'!BS10 -> D.11 | BU10: ='03. Consolidated Elements'!BT10 -> D.12 | BV10: Sub-Total | BX10: Sub-Total
C11: NATIONAL | Q11: National | S11: PROVINCIAL | AJ11: Province | AL11: METRO & LOCAL | BH11: Local | BJ11: STATE ENTITIY | BV11: State Entity | BX11: State Entity
A12: ='02. Hum Settlmt Programmes'!C17 -> 1.0 | B12: ='02. Hum Settlmt Programmes'!D17 -> FINANCIAL INTERVENTIONS (FI)
A13: ='02. Hum Settlmt Programmes'!C19 -> 1.1 a | B13: ='02. Hum Settlmt Programmes'!E19 -> Individual Subsidy Credit Linked
A14: ='02. Hum Settlmt Programmes'!C20 -> 1.1 b | B14: ='02. Hum Settlmt Programmes'!E20 -> Individual Subsidy Non-Credit Linked
A15: ='02. Hum Settlmt Programmes'!C21 -> 1.2 a | B15: ='02. Hum Settlmt Programmes'!E21 -> Finance Linked Individual Subsidy
A16: ='02. Hum Settlmt Programmes'!C22 -> 1.3.1 | B16: ='02. Hum Settlmt Programmes'!E22 -> Inclusionary Housing
A17: ='02. Hum Settlmt Programmes'!C23 -> 1.3.2 | B17: ='02. Hum Settlmt Programmes'!E23 -> Discount Benefit Scheme
A18: ='02. Hum Settlmt Programmes'!C24 -> 1.3.3 | B18: ='02. Hum Settlmt Programmes'!E24 -> Relocation Assistance
A19: ='02. Hum Settlmt Programmes'!#REF! ->  | B19: ='02. Hum Settlmt Programmes'!#REF! -> 
A20: ='02. Hum Settlmt Programmes'!C25 -> 1.4 | B20: ='02. Hum Settlmt Programmes'!E25 -> State Asset Maintenance
A21: ='02. Hum Settlmt Programmes'!C26 -> 1.5 | B21: ='02. Hum Settlmt Programmes'!E26 -> Rectification
A22: ='02. Hum Settlmt Programmes'!C27 -> 1.5 a | B22: ='02. Hum Settlmt Programmes'!E27 -> Rectification of RDP Stock (1994-2002)
A23: ='02. Hum Settlmt Programmes'!C27 -> 1.5 a | B23: ='02. Hum Settlmt Programmes'!E27 -> Rectification of RDP Stock (1994-2002) | C23: ='03. Consolidated Elements'!E23 -> N/A | K23: ='03. Consolidated Elements'!M23 -> N/A | O23: ='03. Consolidated Elements'!Q23 -> N/A | P23: ='03. Consolidated Elements'!R23 -> N/A | Q23: =SUM(C23:P23) -> 0 | S23: ='03. Consolidated Elements'!T23 -> N/A | T23: ='03. Consolidated Elements'!U23 -> N/A | U23: 0.05 | V23: ='03. Consolidated Elements'!W23 -> N/A | W23: 0.025 | X23: 0.05 | Y23: 0.025 | Z23: 0.025 | AA23: ='03. Consolidated Elements'!AB23 -> N/A | AB23: 0.05 | AC23: 0.01 | AD23: 0.015 | AE23: ='03. Consolidated Elements'!AF23 -> N/A | AF23: 0.72 | AG23: ='03. Consolidated Elements'!AH23 -> N/A | AH23: 0.02 | AI23: 0.01 | AJ23: =SUM(S23:AI23) -> 1 | AL23: ='03. Consolidated Elements'!AL23 -> N/A | AO23: ='03. Consolidated Elements'!AO23 -> N/A | AQ23: ='03. Consolidated Elements'!AQ23 -> 0 | AR23: ='03. Consolidated Elements'!AR23 -> N/A | AW23: ='03. Consolidated Elements'!AW23 -> N/A | AX23: ='03. Consolidated Elements'!AX23 -> N/A | BB23: ='03. Consolidated Elements'!BB23 -> N/A | BD23: ='03. Consolidated Elements'!BD23 -> N/A | BE23: ='03. Consolidated Elements'!BE23 -> N/A | BH23: =SUM(AL23:BG23) -> 0 | BS23: ='03. Consolidated Elements'!BR23 -> N/A | BV23: =SUM(BJ23:BU23) -> 0 | BX23: =BV23+BH23+AJ23+Q23 -> 1
A24: ='02. Hum Settlmt Programmes'!C29 -> 1.6 | B24: ='02. Hum Settlmt Programmes'!E29 -> Social & Economic Facilities | Q24: =SUM(C24:P24) -> 0 | AJ24: =SUM(S24:AI24) -> 0 | BH24: =SUM(AL24:BG24) -> 0 | BV24: 0 | BX24: =BV24+BH24+AJ24+Q24 -> 0
A25: ='02. Hum Settlmt Programmes'!C30 -> 1.7 | B25: ='02. Hum Settlmt Programmes'!E30 -> OpsCap Budget | Q25: 0 | AJ25: 0 | BH25: 0 | BV25: 0 | BX25: 0
A26: ='02. Hum Settlmt Programmes'!C30 -> 1.7 | B26: ='02. Hum Settlmt Programmes'!E30 -> OpsCap Budget | C26: ='03. Consolidated Elements'!E26 -> N/A | I26: ='03. Consolidated Elements'!K26 -> ?? | K26: ='03. Consolidated Elements'!M26 -> ?? | L26: ='03. Consolidated Elements'!N26 -> N/A | O26: ='03. Consolidated Elements'!Q26 -> N/A | P26: ='03. Consolidated Elements'!R26 -> N/A | Q26: 0 | S26: ='03. Consolidated Elements'!T26 -> N/A | T26: ='03. Consolidated Elements'!U26 -> N/A | U26: ='03. Consolidated Elements'!V26 -> N/A | V26: ='03. Consolidated Elements'!W26 -> N/A | W26: 0.05 | X26: 0.02 | Y26: 0.02 | Z26: 0.05 | AA26: ='03. Consolidated Elements'!AB26 -> N/A | AB26: 0.2 | AC26: 0.02 | AD26: ='03. Consolidated Elements'!AE26 -> N/A | AE26: ='03. Consolidated Elements'!AF26 -> N/A | AF26: 0.61 | AG26: ='03. Consolidated Elements'!AH26 -> N/A | AH26: 0.02 | AI26: 0.01 | AJ26: 1 | AL26: ='03. Consolidated Elements'!AL26 -> N/A | AM26: ='03. Consolidated Elements'!AM26 -> N/A | AQ26: ='03. Consolidated Elements'!AQ26 -> 0 | AU26: ='03. Consolidated Elements'!AU26 -> N/A | AV26: ='03. Consolidated Elements'!AV26 -> N/A | AW26: ='03. Consolidated Elements'!AW26 -> N/A | AX26: ='03. Consolidated Elements'!AX26 -> N/A | AY26: ='03. Consolidated Elements'!AY26 -> N/A | AZ26: ='03. Consolidated Elements'!AZ26 -> N/A | BA26: ='03. Consolidated Elements'!BA26 -> N/A | BB26: ='03. Consolidated Elements'!BB26 -> N/A | BC26: ='03. Consolidated Elements'!BC26 -> N/A | BD26: ='03. Consolidated Elements'!BD26 -> N/A | BE26: ='03. Consolidated Elements'!BE26 -> N/A | BH26: 0 | BJ26: ='03. Consolidated Elements'!BI26 -> N/A | BK26: ='03. Consolidated Elements'!BJ26 -> N/A | BL26: ='03. Consolidated Elements'!BK26 -> 0 | BM26: ='03. Consolidated Elements'!BL26 -> 0 | BN26: ='03. Consolidated Elements'!BM26 -> N/A | BO26: ='03. Consolidated Elements'!BN26 -> N/A | BP26: ='03. Consolidated Elements'!BO26 -> N/A | BQ26: ='03. Consolidated Elements'!BP26 -> N/A | BR26: ='03. Consolidated Elements'!BQ26 -> N/A | BS26: ='03. Consolidated Elements'!BR26 -> N/A | BV26: 0 | BX26: 1
A27: ='02. Hum Settlmt Programmes'!C32 -> 1.9 | B27: ='02. Hum Settlmt Programmes'!E32 -> NHBRC Enrolment Fees | Q27: 0 | AJ27: 0 | BH27: 0 | BV27: 0 | BX27: 0
A28: ='02. Hum Settlmt Programmes'!C33 -> 1.10 | B28: ='02. Hum Settlmt Programmes'!E33 -> Land Procured | Q28: 0 | AJ28: 0 | BH28: 0 | BV28: 0 | BX28: 0
A29: ='02. Hum Settlmt Programmes'!C34 -> 1.10 a | B29: ='02. Hum Settlmt Programmes'!E34 -> Land Procured (IHAHSD) | Q29: 0 | AJ29: 0 | BH29: 0 | BV29: 0 | BX29: 0
A30: ='02. Hum Settlmt Programmes'!C35 -> 1.10 b | B30: ='02. Hum Settlmt Programmes'!E35 -> Land Procured (Other) | Q30: 0 | AJ30: 0 | BH30: 0 | BV30: 0 | BX30: 0
A31: ='02. Hum Settlmt Programmes'!C36 -> 1.11 | B31: ='02. Hum Settlmt Programmes'!E36 -> Housing Chapters of IDPs | Q31: 0 | AJ31: 0 | BH31: 0 | BV31: 0 | BX31: 0
A32: ='02. Hum Settlmt Programmes'!C37 -> 1.12 | B32: ='02. Hum Settlmt Programmes'!E37 -> Accreditation of Municipalities | Q32: 0 | AJ32: 0 | BH32: 0 | BV32: 0 | BX32: 0
A33: ='02. Hum Settlmt Programmes'!C38 -> 1.12 a | B33: ='02. Hum Settlmt Programmes'!E38 -> Accredited Municipalities (L1&2) | Q33: 0 | AJ33: 0 | BH33: 0 | BV33: 0 | BX33: 0
A34: ='02. Hum Settlmt Programmes'!C39 -> ? | B34: ='02. Hum Settlmt Programmes'!E39 -> Mortgage Guarantee | Q34: 0 | AJ34: 0 | BH34: 0 | BV34: 0 | BX34: 0
A35: ='02. Hum Settlmt Programmes'!C40 -> 2.0 | B35: ='02. Hum Settlmt Programmes'!E40 -> INCREMENTAL INTERVENTIONS (II) | Q35: 0 | AJ35: 0 | BH35: 0 | BV35: 0 | BX35: 0
A36: ='02. Hum Settlmt Programmes'!C40 -> 2.0 | B36: ='02. Hum Settlmt Programmes'!D40 -> INCREMENTAL INTERVENTIONS (II)
A37: ='02. Hum Settlmt Programmes'!C41 -> 2.1 a | B37: ='02. Hum Settlmt Programmes'!E42 -> Project-Linked Subsidies Houses<2007 | Q37: 0 | AJ37: 0 | BH37: 0 | BV37: =SUM(BJ37:BU37) -> 0 | BX37: 0
A38: ='02. Hum Settlmt Programmes'!C42 -> 2.1 b | B38: ='02. Hum Settlmt Programmes'!E43 -> Integrated Residential Development | Q38: 0 | AJ38: 0 | BH38: 0 | BV38: 0 | BX38: 0
A39: ='02. Hum Settlmt Programmes'!C43 -> 2.2 | B39: ='02. Hum Settlmt Programmes'!E43 -> Integrated Residential Development | C39: ='03. Consolidated Elements'!E39 -> N/A | K39: ='03. Consolidated Elements'!M39 -> ?? | L39: ='03. Consolidated Elements'!N39 -> N/A | O39: ='03. Consolidated Elements'!Q39 -> N/A | P39: ='03. Consolidated Elements'!R39 -> N/A | Q39: 0 | S39: ='03. Consolidated Elements'!T39 -> N/A | T39: 0.05 | U39: 0.025 | V39: ='03. Consolidated Elements'!W39 -> N/A | W39: 0.025 | X39: 0.025 | Y39: 0.025 | Z39: 0.05 | AA39: ='03. Consolidated Elements'!AB39 -> N/A | AB39: 0.05 | AC39: 0.02 | AD39: 0.015 | AE39: ='03. Consolidated Elements'!AF39 -> N/A | AF39: 0.685 | AG39: ='03. Consolidated Elements'!AH39 -> N/A | AH39: 0.02 | AI39: 0.01 | AJ39: 1 | AL39: ='03. Consolidated Elements'!AL39 -> N/A | AO39: ='03. Consolidated Elements'!AO39 -> N/A | AV39: ='03. Consolidated Elements'!AV39 -> N/A | BD39: ='03. Consolidated Elements'!BD39 -> N/A | BE39: ='03. Consolidated Elements'!BE39 -> N/A | BH39: 0 | BK39: ='03. Consolidated Elements'!BJ39 -> N/A | BO39: ='03. Consolidated Elements'!BN39 -> N/A | BP39: ='03. Consolidated Elements'!BO39 -> N/A | BQ39: ='03. Consolidated Elements'!BP39 -> N/A | BR39: ='03. Consolidated Elements'!BQ39 -> N/A | BS39: ='03. Consolidated Elements'!BR39 -> N/A | BV39: 0 | BX39: 1
A40: ='02. Hum Settlmt Programmes'!C45 -> 2.2 b | B40: ='02. Hum Settlmt Programmes'!E45 -> IRDP-Top Structure? | Q40: 0 | AJ40: 0 | BH40: 0 | BV40: 0 | BX40: 0
A41: ='02. Hum Settlmt Programmes'!C46 -> 2.2 c | B41: ='02. Hum Settlmt Programmes'!E46 -> UISP-Top Structure | Q41: 0 | AJ41: 0 | BH41: 0 | BV41: 0 | BX41: 0
A42: ='02. Hum Settlmt Programmes'!C47 -> 2.3 | B42: ='02. Hum Settlmt Programmes'!E47 -> Enhanced Peoples Housing Process | Q42: 0 | AJ42: 0 | BH42: 0 | BV42: 0 | BX42: 0
A43: ='02. Hum Settlmt Programmes'!C48 -> 2.4 | B43: ='02. Hum Settlmt Programmes'!E48 -> Consolidation Subsidy | Q43: 0 | AJ43: 0 | BH43: 0 | BV43: 0 | BX43: 0
A44: ='02. Hum Settlmt Programmes'!C49 -> 2.4 a | B44: ='02. Hum Settlmt Programmes'!E49 -> Consolidation Subsidy (Not Blocked) | Q44: 0 | AJ44: 0 | BH44: 0 | BV44: 0 | BX44: 0
A45: ='02. Hum Settlmt Programmes'!C50 -> 2.4 b | B45: ='02. Hum Settlmt Programmes'!E50 -> Consolidation Subsidy (Blocked) | Q45: 0 | AJ45: 0 | BH45: 0 | BV45: 0 | BX45: 0
A46: ='02. Hum Settlmt Programmes'!C51 -> 2.5 | B46: ='02. Hum Settlmt Programmes'!E51 -> Informal Settlement Upgrading | Q46: 0 | AJ46: 0 | BH46: 0 | BV46: 0 | BX46: 0
A47: ='02. Hum Settlmt Programmes'!C51 -> 2.5 | B47: ='02. Hum Settlmt Programmes'!E51 -> Informal Settlement Upgrading | C47: ='03. Consolidated Elements'!E47 -> N/A | O47: ='03. Consolidated Elements'!Q47 -> N/A | P47: ='03. Consolidated Elements'!R47 -> N/A | Q47: 0 | S47: ='03. Consolidated Elements'!T47 -> N/A | T47: 0.025 | U47: 0.025 | V47: ='03. Consolidated Elements'!W47 -> N/A | W47: 0.025 | X47: 0.025 | Y47: 0.025 | Z47: 0.05 | AA47: ='03. Consolidated Elements'!AB47 -> N/A | AB47: 0.05 | AC47: 0.02 | AD47: 0.015 | AE47: ='03. Consolidated Elements'!AF47 -> N/A | AF47: 0.71 | AG47: ='03. Consolidated Elements'!AH47 -> N/A | AH47: 0.02 | AI47: 0.01 | AJ47: 1 | AL47: ='03. Consolidated Elements'!AL47 -> N/A | AO47: ='03. Consolidated Elements'!AO47 -> N/A | AW47: ='03. Consolidated Elements'!AW47 -> 0 | AX47: ='03. Consolidated Elements'!AX47 -> 0 | BD47: ='03. Consolidated Elements'!BD47 -> N/A | BE47: ='03. Consolidated Elements'!BE47 -> N/A | BH47: 0 | BK47: ='03. Consolidated Elements'!BJ47 -> N/A | BV47: 0 | BX47: 1
A48: ='02. Hum Settlmt Programmes'!C53 -> 2.5 b | B48: ='02. Hum Settlmt Programmes'!E53 -> UISP Phase 2: Temporary Services | Q48: 0 | AJ48: 0 | BH48: 0 | BV48: 0 | BX48: 0
A49: ='02. Hum Settlmt Programmes'!C54 -> 2.5 c | B49: ='02. Hum Settlmt Programmes'!E54 -> UISP Phase 3: Site & Services | Q49: 0 | AJ49: 0 | BH49: 0 | BV49: 0 | BX49: 0
A50: ='02. Hum Settlmt Programmes'!C57 -> 2.7 a | B50: ='02. Hum Settlmt Programmes'!E57 -> Emergency Housing (Current) | Q50: 0 | AJ50: 0 | BH50: 0 | BV50: 0 | BX50: 0
A51: ='02. Hum Settlmt Programmes'!C58 -> 2.7 b | B51: ='02. Hum Settlmt Programmes'!E58 -> Emergency Housing (Disasters) | Q51: 0 | AJ51: 0 | BH51: 0 | BV51: 0 | BX51: 0
A52: ='02. Hum Settlmt Programmes'!C59 -> 2.8 | B52: ='02. Hum Settlmt Programmes'!E59 -> Township Establishment | Q52: 0 | AJ52: 0 | BH52: 0 | BV52: 0 | BX52: 0
A53: ='02. Hum Settlmt Programmes'!C60 -> ? | B53: ='02. Hum Settlmt Programmes'!E60 -> Gauteng Inclusionary Housing | Q53: 0 | AJ53: 0 | BH53: 0 | BV53: 0 | BX53: 0
A54: ='02. Hum Settlmt Programmes'!C61 -> Gap | B54: ='02. Hum Settlmt Programmes'!E61 -> Transitional Housing | Q54: 0 | AJ54: 0 | BH54: 0 | BV54: 0 | BX54: 0
A55: ='02. Hum Settlmt Programmes'!C62 -> 3.0 | B55: ='02. Hum Settlmt Programmes'!E62 -> SOCIAL & RENTAL INTERVENTIONS (SR) | Q55: 0 | AJ55: 0 | BH55: 0 | BV55: 0 | BX55: 0
A56: ='02. Hum Settlmt Programmes'!C62 -> 3.0 | B56: ='02. Hum Settlmt Programmes'!D62 -> SOCIAL & RENTAL INTERVENTIONS (SR)
A57: ='02. Hum Settlmt Programmes'!C64 -> 3.2 | B57: ='02. Hum Settlmt Programmes'!E64 -> Social Housing | Q57: 0 | AJ57: 0 | BH57: 0 | BV57: =SUM(BJ57:BU57) -> 0 | BX57: 0
A58: ='02. Hum Settlmt Programmes'!C64 -> 3.2 | B58: ='02. Hum Settlmt Programmes'!D64 -> Social Housing Programme | C58: ='03. Consolidated Elements'!E58 -> N/A | O58: ='03. Consolidated Elements'!Q58 -> N/A | P58: ='03. Consolidated Elements'!R58 -> N/A | Q58: 0 | S58: ='03. Consolidated Elements'!T58 -> N/A | T58: 0.01 | U58: 0.05 | V58: ='03. Consolidated Elements'!W58 -> N/A | W58: 0.025 | X58: 0.025 | Y58: 0.1 | Z58: 0.2 | AA58: ='03. Consolidated Elements'!AB58 -> N/A | AB58: 0.2 | AC58: 0.01 | AD58: ='03. Consolidated Elements'!AE58 -> N/A | AE58: ='03. Consolidated Elements'!AF58 -> N/A | AF58: 0.35 | AG58: ='03. Consolidated Elements'!AH58 -> N/A | AH58: 0.02 | AI58: 0.01 | AJ58: 1 | AL58: ='03. Consolidated Elements'!AL58 -> N/A | AQ58: ='03. Consolidated Elements'!AQ58 -> 0 | AS58: ='03. Consolidated Elements'!AS58 -> N/A | AU58: ='03. Consolidated Elements'!AU58 -> N/A | AV58: ='03. Consolidated Elements'!AV58 -> N/A | AY58: ='03. Consolidated Elements'!AY58 -> N/A | BA58: ='03. Consolidated Elements'!BA58 -> N/A | BB58: ='03. Consolidated Elements'!BB58 -> N/A | BD58: ='03. Consolidated Elements'!BD58 -> N/A | BE58: ='03. Consolidated Elements'!BE58 -> N/A | BH58: 0 | BV58: 0 | BX58: 1
A59: ='02. Hum Settlmt Programmes'!C66 -> 3.2 b | B59: ='02. Hum Settlmt Programmes'!E66 -> Social Housing: Capital Grants | Q59: 0 | AJ59: 0 | BH59: 0 | BV59: 0 | BX59: 0
A60: ='02. Hum Settlmt Programmes'!C67 -> 3.3 | B60: ='02. Hum Settlmt Programmes'!E67 -> Community Residential Units | Q60: 0 | AJ60: 0 | BH60: 0 | BV60: 0 | BX60: 0
A61: ='02. Hum Settlmt Programmes'!C67 -> 3.3 | B61: ='02. Hum Settlmt Programmes'!E67 -> Community Residential Units | C61: ='03. Consolidated Elements'!E61 -> N/A | O61: ='03. Consolidated Elements'!Q61 -> N/A | P61: ='03. Consolidated Elements'!R61 -> N/A | Q61: 0 | S61: ='03. Consolidated Elements'!T61 -> N/A | T61: 0.01 | U61: 0.025 | V61: ='03. Consolidated Elements'!W61 -> N/A | W61: 0.025 | X61: 0.025 | Y61: 0.025 | Z61: 0.09 | AA61: ='03. Consolidated Elements'!AB61 -> N/A | AB61: 0.075 | AC61: 0.02 | AD61: ='03. Consolidated Elements'!AE61 -> N/A | AE61: 0.075 | AF61: 0.6 | AG61: ='03. Consolidated Elements'!AH61 -> N/A | AH61: 0.02 | AI61: 0.01 | AJ61: 1 | AL61: ='03. Consolidated Elements'!AL61 -> N/A | AU61: ='03. Consolidated Elements'!AU61 -> N/A | BE61: ='03. Consolidated Elements'!BE61 -> N/A | BH61: 0 | BV61: 0 | BX61: 1
A62: ='02. Hum Settlmt Programmes'!C71 -> Gap | B62: ='02. Hum Settlmt Programmes'!E71 -> Backyard Programme | Q62: 0 | AJ62: 0 | BH62: 0 | BV62: 0 | BX62: 0
A63: ='02. Hum Settlmt Programmes'!C72 -> 4.0 | B63: ='02. Hum Settlmt Programmes'!E72 -> RURAL INTERVENTIONS (RI) | Q63: 0 | AJ63: 0 | BH63: 0 | BV63: 0 | BX63: 0
A64: ='02. Hum Settlmt Programmes'!C72 -> 4.0 | B64: ='02. Hum Settlmt Programmes'!D72 -> RURAL INTERVENTIONS (RI) | BV64: 0 | BX64: 0
A65: ='02. Hum Settlmt Programmes'!C74 -> 4.2 | B65: ='02. Hum Settlmt Programmes'!D74 -> Rural Housing: Communal Land Rights | Q65: 0 | AJ65: 0 | BH65: 0 | BV65: 0 | BX65: =SUM(BL65:BW65) -> 0
A66: ='02. Hum Settlmt Programmes'!C75 -> 4.2 a | B66: ='02. Hum Settlmt Programmes'!D75 -> Rural Housing: Communal Land Rights (Serviced Sites) | Q66: 0 | AJ66: 0 | BH66: 0 | BV66: 0 | BX66: =SUM(BL66:BW66) -> 0
A67: ='02. Hum Settlmt Programmes'!C76 -> 4.2 b | B67: ='02. Hum Settlmt Programmes'!D76 -> Rural Housing: Communal Land Rights (Planning) | Q67: 0 | AJ67: 0 | BH67: 0 | BV67: 0 | BX67: =SUM(BL67:BW67) -> 0
A68: ='02. Hum Settlmt Programmes'!C77 -> 4.2 c | B68: ='02. Hum Settlmt Programmes'!D77 -> Rural Housing: Communal Land Rights (Housing Units Completed) | Q68: 0 | AJ68: 0 | BH68: 0 | BV68: 0 | BX68: =SUM(BL68:BW68) -> 0
A69: ='02. Hum Settlmt Programmes'!C78 -> 5.0 | B69: ='02. Hum Settlmt Programmes'!D78 -> NATIONAL SPATIAL PROGRAMMES | Q69: 0 | AJ69: 0 | BH69: 0 | BV69: 0 | BX69: =SUM(BL69:BW69) -> 0
A70: ='02. Hum Settlmt Programmes'!C78 -> 5.0 | B70: ='02. Hum Settlmt Programmes'!D78 -> NATIONAL SPATIAL PROGRAMMES
A71: ='02. Hum Settlmt Programmes'!C80 -> 5.2 | B71: ='02. Hum Settlmt Programmes'!E80 -> Military Veterans | BH71: 0
A72: ='02. Hum Settlmt Programmes'!C81 -> 5.3 | B72: ='02. Hum Settlmt Programmes'!E81 -> Death of Guardians | BH72: 0
A73: ='02. Hum Settlmt Programmes'!C82 -> 0 | B73: ='02. Hum Settlmt Programmes'!E82 -> 0 | BH73: 0
A74: KEY
B75: Programme Included in Analysis
B76: Not Applicable to Programme
B77: Applicable to Programme, well executed
B78: Applicable to Programme, poorly executed
B79: Relevance to Programme to be determined
B80: Applicable to Programme, provincial variation in execution
A82: NOTES
A83: 1. Red numbers can be changed in the model
A84: 2. N/A Elements drawn from 03. Consolidated Elements. Not automated
A85: 3. Social Housing: Note RCG transferred directly to SHRA. Provincial function is supportive, not investment
S90: GRAPH INPUT
S91: =S9 -> Provincial Department Management & Administration | T91: =T9 -> Inter-Government Communication & Coordination | U91: Provincial Research, Analysis & Policy Development | V91: Provincial Legislation & Regulation Development | W91: Programme Administration & Oversight (National & Provincial Programmes) | X91: Programme Implementation Planning & Support (Province, Municipal & State Entity) | Y91: Programme Costing and Budgeting | Z91: Capacity Establishment & Development (Provincial, Municipal & State Entities) | AA91: xx | AB91: Development Support at Municipal Level | AC91: Funding Systems & Disbursement | AD91: Beneficiary Identification, Recording & Management | AE91: State Asset Management & Maintenance | AF91: Project Implementation (By Province) | AG91: Entities Oversight (Provincial) | AH91: Performance Monitoring & Evaluation | AI91: Performance Reporting
R92: =B23 -> Rectification of RDP Stock (1994-2002) | S92: =S23 -> N/A | T92: =T23 -> N/A | U92: 0.05 | V92: N/A | W92: 0.025 | X92: 0.05 | Y92: 0.025 | Z92: 0.025 | AA92: N/A | AB92: 0.05 | AC92: 0.01 | AD92: 0.015 | AE92: N/A | AF92: 0.72 | AG92: N/A | AH92: 0.02 | AI92: 0.01
R93: =B26 -> OpsCap Budget | S93: =S26 -> N/A | T93: =T26 -> N/A | U93: N/A | V93: N/A | W93: 0.05 | X93: 0.02 | Y93: 0.02 | Z93: 0.05 | AA93: N/A | AB93: 0.2 | AC93: 0.02 | AD93: N/A | AE93: N/A | AF93: 0.61 | AG93: N/A | AH93: 0.02 | AI93: 0.01
R94: =B39 -> Integrated Residential Development | S94: =S39 -> N/A | T94: =T39 -> 0.05 | U94: 0.025 | V94: N/A | W94: 0.025 | X94: 0.025 | Y94: 0.025 | Z94: 0.05 | AA94: N/A | AB94: 0.05 | AC94: 0.02 | AD94: 0.015 | AE94: N/A | AF94: 0.685 | AG94: N/A | AH94: 0.02 | AI94: 0.01
R95: =B47 -> Informal Settlement Upgrading | S95: =S47 -> N/A | T95: =T47 -> 0.025 | U95: 0.025 | V95: N/A | W95: 0.025 | X95: 0.025 | Y95: 0.025 | Z95: 0.05 | AA95: N/A | AB95: 0.05 | AC95: 0.02 | AD95: 0.015 | AE95: N/A | AF95: 0.71 | AG95: N/A | AH95: 0.02 | AI95: 0.01
R96: =B58 -> Social Housing Programme | S96: =S58 -> N/A | T96: =T58 -> 0.01 | U96: 0.05 | V96: N/A | W96: 0.025 | X96: 0.025 | Y96: 0.1 | Z96: 0.2 | AA96: N/A | AB96: 0.2 | AC96: 0.01 | AD96: N/A | AE96: N/A | AF96: 0.35 | AG96: N/A | AH96: 0.02 | AI96: 0.01
R97: =B61 -> Community Residential Units | S97: =S61 -> N/A | T97: =T61 -> 0.01 | U97: 0.025 | V97: N/A | W97: 0.025 | X97: 0.025 | Y97: 0.025 | Z97: 0.09 | AA97: N/A | AB97: 0.075 | AC97: 0.02 | AD97: N/A | AE97: 0.075 | AF97: 0.6 | AG97: N/A | AH97: 0.02 | AI97: 0.01

Sheet L1.5a. FI-RRDP
A1: ='00. Contents'!A1 -> Project: | B1: ='00. Contents'!B1 -> Expenditure and Performance Review - Human Settlements Programmes
A2: ='00. Contents'!A2 -> Client: | B2: ='00. Contents'!B2 -> National Treasury | H2: RETURN TO CONTENTS
A3: ='00. Contents'!A3 -> Version: | B3: ='00. Contents'!B3 -> Step 3 Logframe V.1.0 Client (Draft)
A4: ='00. Contents'!A4 -> Date: | B4: ='00. Contents'!B4 -> 2013-10-31
A6: ='00. Contents'!C32 -> Logic Model for Programme 1.5a: Financial Interventions: Rectification of RDP Housing (1994 to 2002)
A7: Sphere | C7: National | P7: Provincial | AD7: Local | AQ7: National & Provincial
C8: National Department of Human Settlements | P8: Provincial Departments of Human Settlements | AD8: Metro's, District & Local Municipalities | AQ8: Public Entities
A10: Impacts | C10: Improvement of housing units and municipal infrastructure where they do not meet current standards, and reconstruction of blocked projects
A11: Indicator / Measure | C11: No. of projects unblocked | D11: Number of units completed | E11: Number of units repaired
A12: Data Sources | C12: DoHS DB | D12: DoHS DB
A13: Outcomes | C13: Beneficaries can ocupy safe, acceptable standard housing | D13: Housing under NHBRC authority
A14: Indicator / Measure | C14: Reduction in number of projects and houses requiring rectification
A15: Data Sources | C15: HSS? Special Reports?
A16: Outputs | C16: VIP / Flush Toilet | D16: Potable Water with Metered Connection | E16: Paved or Gravel Road | F16: Storm Water System | G16: Functioning Street Lights | H16: NHBRC Approved Dwellings | I16: NHBRC Approved Dwellings | J16: NHBRC Approved Dwellings
A17: Indicator / Measure | C17: Functional sanitation system | D17: Access to metered water connection supplying consumable water | E17: Access via gravel or paved road | F17: Connected to functional storm water management system | G17: Served by adequate street lighting | H17: Dwellings must comply with minimum safety and health conditions | I17: Dwellings must be structurally sound | J17: Dwellings must consist of quality materials, building parctices executed ito minimum standards
A18: Data Sources | C18: Ministerial Norms and Standards in respect of Municipal Engineering Services
A19: Intermediate Outputs | C19: Bllocked projects list | D19: Stalled projects list | E19: Defective services and units list
A20: Indicator / Measure | C20: Number of projects | D20: Number of projects | E20: Number of Stands / units
A21: Data Sources | C21: Special Investigation? | D21: Special Investigation? | E21: Special Investigation?
A23: Process / Activities | C23: Maintain RP policy | E23: Maintain programme oversight | F23: Assess reports and develop statistics on blocked and stalled projects and defective units | J23: Provide implementation assistance to provinces and municipalities | K23: Monitor implementation of RP | Q23: Develop provnicial guidelines for RP | S23: Receeive project applications from Municipalities | T23: Reserve funds from annual budget allocation (Programme 4) for RP | Y23: xx | Z23: Monitor RP in collaboration with Municipalties | AF23: Identify projects and properties requiring recrification | AG23: Provision of temporary accommodation during recrification | AH23: Plan, allocate and register land as per project specifications | AI23: Install upgrade or replace as per project specifications | AJ23: Build, upgrade or replace as per project specifications | AL23: workshops | AM23: overisght of entities | AN23: Monitor Implementation of CRU projects
A24: Process / Activities | C24: Interpretation of RP policy | Q24: Prescribe process and nature of project funding applications | S24: Submit recommendations to MEC for approval | T24: Administer release of funds to approved RP projects. | Y24: Act in developer role where capacity does not exist at Municipal level | AF24: Compile project applications for submission to PD for approval | AG24: Procure Implementing Agents | AH24: Relocate houses or erven ifin inappropriate location, as per project specifications | AJ24: Register house with NHBRC | AL24: capacity building | AM24: rental sto ck
A25: Process / Activities | S25: Approve RP project funding applications | T25: Obtain MEC Aprpoval for Rectification amounts | AF25: Consider uitlisation of MIG/USDG funds prior to commitment of RP funds | AG25: Approve implementing agents | AL25: ward councillor training | AM25: land
A26: Process / Activities | AG26: Complete contractual arrangements | AL26: waiting lists
A27: Process / Activities
A28: Process / Activities
A29: Process / Activities
A30: Process / Activities
A31: Process / Activities
A32: Process / Activities
A33: Inputs | C33: PDs and Munis | E33: Project Lists / Database | F33: Municipal plans | G33: Munis | H33: Plans & Procurement | I33: ? | J33: PD & Muni Plans | K33: Engineering / Project reports | M33: Project reviews
A34: Responsbility | C34: NDoHS | D34: NDoHS | E34: NDoHS & PDs | F34: PDs | G34: PDs | H34: PDs | I34: ? | J34: NDoHs | K34: NDoHs & PDs | M34: NDoHs
A36: Current Programme Elements | C36: Policy development | D36: Legislation | E36: Programme Administration | F36: Implementation planning | G36: Costing and budgeting | H36: Establish capacity | I36: Communication | J36: Capacity Development Support | K36: Monitoring | L36: Entities Oversight | M36: Evaluation | N36: Reporting | P36: Establish capacity | Q36: Policy development | R36: Legislation | S36: Implementation planning | T36: Funding Systems & Disbursement | U36: Beneficiary Management | V36: Communication | W36: Capacity Development Support | X36: Asset Management | Y36: Implementation | Z36: Monitoring | AA36: Entities Oversight | AB36: Evaluation | AD36: Capacity | AE36: Policy Development | AF36: Planning & Budgeting | AG36: Implementation Planning & Mgt | AH36: Land | AI36: Services | AJ36: Top-structure Construction | AK36: Post--Construction Support | AL36: Beneficiary Management | AM36: Asset Management | AN36: Monitoring | AO36: Reporting | AQ36: Capacity | AR36: Implementation planning | AS36: Funding Systems & Disbursement | AT36: Beneficiary Management | AU36: Communication | AV36: Capacity Development Support | AW36: Implementation | AX36: Monitoring | AY36: Evaluation | AZ36: Reporting
A39: Eastern Cape Programme Elements
A41: Free State Programme Elements
A43: Gauteng Programme Elements
A45: KwaZulu-Natal Programme Elements
A47: Limpopo Programme Elements
A49: Mpumalanga Programme Elements
A51: Northern Cape Programme Elements
A53: North West Programme Elements
A55: Western Cape Programme Elements
A57: Budget Allocations (R millions) | C57: Note: Expenditure Allocation against ideal elements are included in other tables
A58: 2011/12
A59: 2012/13
A60: 2013/14
A61: 2014/15
C64: Tracing rectification?
C65: Chief Director Exec support (wanda Nkosi) handed over to DDG of PMU | D65: Appointed NHBRC to do assessment of houes in EC and KZN - to identify how much is required | E65: Have information from official programme via provinces | F65: Dr Awalani Malada - NHBRC - knows Rectification | G65: NHBRC - act not applicable to these houses, should not be invoilved
C66: Policy developed by Julie / Mr Nkosi -
C67: 1994 and 2002: new policy
C68: NHBRC

Sheet L1.7. FI-OpsCap
A1: ='00. Contents'!A1 -> Project: | B1: ='00. Contents'!B1 -> Expenditure and Performance Review - Human Settlements Programmes
A2: ='00. Contents'!A2 -> Client: | B2: ='00. Contents'!B2 -> National Treasury | H2: RETURN TO CONTENTS
A3: ='00. Contents'!A3 -> Version: | B3: ='00. Contents'!B3 -> Step 3 Logframe V.1.0 Client (Draft)
A4: ='00. Contents'!A4 -> Date: | B4: ='00. Contents'!B4 -> 2013-10-31
A7: ='00. Contents'!C34 -> Logic Model for Programme 1.10: Financial Interventions: Operational Capital Budget Programme
A9: The OpsCap Programme (as set out in Part 3, Volume 3 of the Housing Code) provides provincial governments with a mechanism for the reservation of a certain percentage (5% ucurrently) \of the annual housing funding allocated by the Minister for purposes of appointing external capacity to assist in the implementation of the National Housing Programmes.
A10: The main objective of the OPS/CAP Programme is to provide for a funding framework for the reservation and application of a percentage of the annual housing allocation to provincial governments for the appointment of external capacity to support the implementation of the National and Provincial Housing Programmes.
A11: The Programme therefore provides funding for the appointment of external expertise by the Provincial Departments and accredited municipalities to augment their capacity required for housing delivery at scale, with particular emphasis on the following programmes but not limited to:
A12: • The Upgrading of Informal Settlements Programme (II-UISP)
A13: • Projects that promote integration and the creation of a non-racial society i.e. Integrated Residential Development Programme (II-IRDP)
A14: • The provision of primary social and economic amenities.
A15: • The unblocking of stalled projects (in part via the Rectification of RDP Stock (FI-RRDP).
A16: • The provision of affordable, subsidised rental accommodation (Via the Social Housing Regulatory Authority (SR-SH)
A17: The OpsCap allocation is at the discretion of the respective Provincial MEC’s and Accounting Officers based on the confirmed and agreed needs of the province.
A18: The implications of the above are as follows:
A19: • The programme is not implemented as a “housing programme” as understood with the other housing programmes identified. Instead it is supplementary budget “top-sliced” and allocated to specific housing programmes on a province-by-province basis.
A20: • Accordingly there are no programme elements identifiable for this “programme”, while a review of BAS indicates that it is not accounted for outside of the specific delivery programmes, e.g. UISP etc.
A21: • It is therefore recommend that (wherever possible) the OpsCap funding allocated to the specific five programmes being analysed (a noted in 1.1 above) be identified and tracked.
A22: • In addition it is suggested that a separate analysis be undertaken of the funding flows of OpsCap from National to Provincial to Municipal (possibly to project level). This will provide insight into the overall quantum of OpsCap being spent and track its direction and distribution.
A24: OpsCap Framework for Analysis
A25: 1) Provincial / Assigned Metro / Municipal Distribution:
A26: National | C26: Provincial | E26: Municipal | G26: Projects | H26: State Entities
A28: NDoHS
H29: SHRA
C30: Eastern Cape
E31: Muni 1
C32: Free State
E33: Muni 2 | G33: Project A
C34: Gauteng
E35: Muni … | G35: Project …
C36: KwaZulu-Natal
C38: Limpopo
C40: Mpumalanga
C42: Northern Cape
C44: North West
C46: Western Cape
G51: Project A
G53: Project …
A55: 2) Programme Distribution:
A56: National | C56: Provincial | E56: Programmes
A58: NDoHS
C60: Eastern Cape
E61: FI-RRDP
C62: Free State
E63: II-IRDP
C64: Gauteng
E65: II-ISUP
C66: KwaZulu-Natal
E67: SR-CRU
C68: Limpopo
E69: (Other)
C70: Mpumalanga
C72: Northern Cape
C74: North West
C76: Western Cape
A78: 3) National State Entity Distribution
A79: National | C79: Provincial | E79: Municipal | G79: Institutions / Projects | H79: State Entities
A81: NDoHS
H82: SHRA
E83: SR-SH
G85: Project A
G87: Project …

Sheet L2.2. II-IRDP
A1: ='00. Contents'!A1 -> Project: | B1: ='00. Contents'!B1 -> Expenditure and Performance Review - Human Settlements Programmes
A2: ='00. Contents'!A2 -> Client: | B2: ='00. Contents'!B2 -> National Treasury | H2: RETURN TO CONTENTS
A3: ='00. Contents'!A3 -> Version: | B3: ='00. Contents'!B3 -> Step 3 Logframe V.1.0 Client (Draft)
A4: ='00. Contents'!A4 -> Date: | B4: ='00. Contents'!B4 -> 2013-10-31
A6: ='00. Contents'!C38 -> Logic Model for Programme 2.2: Incremental Interventions: Integrated Residential Development Programme
A7: Sphere | C7: National | P7: Provincial | AH7: Local | BE7: National & Provincial
C8: National Department of Human Settlements | P8: Provincial Departments of Human Settlements | AH8: Metro's, District & Local Municipalities | BE8: Public Entities
BE9: Not applicable for IRDP
A10: Impacts | C10: Holistic and integrated human settlements with a mix of land uses and homes for a range of income groups in well located areas
A11: Indicator / Measure | C11: Project are well located | D11: Projects have a mix of housing options (rental, PHP etc) | E11: Projects have a mix of beneficiary incomes | F11: Projects have a range of facilities - number of sites for creches (ECD), schools, clinics and community halls
A12: Data Sources | C12: Municipal reports and H.D.A assessments?? Confirm this | D12: Municipal and Provincial Project reports | E12: National Housing Subsidy Data Base | F12: Project reports and layout plans
A13: Outcomes | C13: low income housing in well located areas | D13: improved access to transport | E13: mixed residential areas | F13: economic activities and social facilities within low income areas
A14: Indicator / Measure | C14: Location / distance of project from main town, or main areas of employment | D14: distance to public transport facilities | E14: number of stands for each type of residential use (Res 1, Res 2 and 3) | F14: number of commencial and business stands provided in project | G14: number of stands provided for community facilities (creches, schools, clinics, community halls, etc) provided in IRDP projects
A15: Data Sources | C15: Project Plans, SDF | D15: Project Plans, SDF | E15: Approved township layout plans | F15: Approved township layout plans | G15: Approved township layout plans
A16: Outputs | C16: Increasing number of IRDP projects approved | D16: increasing number of land parcels or hectares developed for IRDP | E16: serviced sites for subsidy beneficiaries in IRDP projects | F16: top structures for susidy beneficiaries in IRDP projects | G16: Residential units provided in IRDP projects | H16: community facilities (creches, schools, clinics, community halls, etc) provided in IRDP projects | J16: Economic activities integrated in developments
A17: Indicator / Measure | C17: number of IRDP projects approved | D17: number of hectares and land portions approved for IRDP | E17: number of serviced sites for subsidy beneficiaries in IRDP projects | F17: number of completed top structures for susidy beneficiaries in IRDP projects | G17: Number of residential units (social and rental included) provided in IRDP projects | H17: Number of sites for community facilities (creches, schools, clinics, community halls, etc) provided in IRDP projects | I17: Number of and type of community facilities (creches, schools, clinics, community halls, etc) provided in IRDP projects | J17: number of sites allocated for economic activities (business and commercial)
A18: Data Sources | C18: Municipal and provincial reports | D18: Municipal and provincial reports | E18: Municipal and provincial reports | F18: Municipal and provincial reports | G18: Municipal and provincial reports | H18: Approved layout plans | I18: Approved layout plans | J18: Approved layout plans
A19: Intermediate Outputs | C19: well located land | E19: Stands with services to approved standard (water, sanitation, electricity and roads) | F19: Constructiion of subsidy houses | G19: Sale of non-residential stands | H19: Construction of social and community facilities
A20: Indicator / Measure | C20: Location / distance of project from main town, or main areas of employment | D20: distance to public transport facilities | E20: number of serviced sites for subsidy beneficiaries in IRDP projects | F20: number of completed top structures for susidy beneficiaries in IRDP projects | G20: number of non-residential stands | H20: Number of sites for community facilities (creches, schools, clinics, community halls, etc) provided in IRDP projects | I20: Number of and type of community facilities (creches, schools, clinics, community halls, etc) provided in IRDP projects | J20: number of sites allocated for economic activities (business and commercial)
A21: Data Sources | C21: Project Plans, Spatial Development Framework (SDF) | D21: Project Plans, SDF | E21: Approved layout plans | F21: Municipal and provincial reports | G21: Approved layout plans | H21: Approved layout plans | I21: Approved layout plans | J21: Approved layout plans
A23: Process / Activities | C23: research and draft policy | D23: Draft legislation | E23: Develop implementaiton plan | F23: Determine cost inputs (guidelines) | G23: Develop overall resourcing plan | H23: Develop communication strategy for IRDP | I23: Assess capacity needs | L23: Define oversight requriements | M23: Undertake baseline study, develop monitoring system | N23: Develop monitoring system | P23: Develop overall resourcing plan | Q23: research and draft policy | R23: Draft legislation | S23: Develop implementaiton plan | T23: Receives transfer from National Dept of HS | U23: Agrees the subsidy numbers with municipality | V23: Develop communication strategy for municipalities | W23: Assess capacity needs of municipalities | X23: nil | Y23: If Province is developer: see municipality process | Z23: Develop monitoring system for municipalities | AA23: nil specifically for IRDP except enagage with NHBRC if required | AF23: Undertake baseline study of IRDP projects | AH23: Develop overall resourcing plan for IRDP projects | AI23: Consider national and provincial policies | AJ23: Undertake research on IRDP projects and comparative costs | AK23: Municipality is the developer of IRDP projects and must follow the 2 - stage process: | AL23: Municipality identifies possible land parcels or makes a public call for land proposals | AM23: Municipality to confirm availability of bulk services or plan for them | AN23: Phase 2 of IRDP - construction of top structures for subsidy beneficiaries only | AO23: After top structure construction, engage with partners who deliver social and other community facilities | AP23: identification of qualifying beneficiaries in Phase 1 | AQ23: After services handover, municipality responible for services assets and municipal-owned sites such as public open space | AR23: Put in place monitoring processes | BC23: Agree a reporting system with Province | BE23: Develop overall resourcing plan | BF23: Develop implementation plan | BG23: Determine cost inputs | BH23: Sign participation agreements with provinces and municipalities | BI23: Develop communication strategy | BJ23: Assess capacity needs | BK23: Develop terms of reference | BL23: Put in place monitoring processes | BM23: Identify data sources | BP23: Receive reports
A24: Process / Activities | C24: Stakeholder engagement | D24: Stakeholder enaggement | E24: intergovernmental coordination | F24: Develop budgets | G24: Create posts | H24: Undertake communication | I24: Develop capacity plan | L24: Put in place oversight processes | M24: Identify data sources | N24: Put in place monitoring processes | P24: Create posts | Q24: Stakeholder engagement | R24: Stakeholder enaggement | S24: intergovernmental coordination | T24: Approves project funding (MEC) of municipality | U24: Revises subsidy number with municipality during project roll out | V24: Undertake communication with municipalities | W24: Develop capacity plan, if required | Y24: Conventional Provincial Role outlined below: | Z24: Put in place monitoring processes | AF24: Identify data sources | AH24: Create posts, if required | AI24: Develop municipal specific policies | AJ24: Develop input into the Housing Chapter of the Integrated Development Plan | AK24: Phase 1: prepare a project description and send to Province. | AL24: Municipality undertakes feasibility and embarks on land acquisition | AM24: Municipality to confirm availability of connector services or plan for them | AN24: Contractors erect structures | AP24: Revision of qualifiying beneficiaries at implementation initiation | AQ24: Register assets on municipal assets list | AR24: Providing training on system and process | BC24: Prepare and submit regular reports to Province and to Council, | BE24: Create posts | BF24: Stakeholder coordination | BG24: Develop budgets | BH24: Ongoing engagement | BI24: Undertake communication | BJ24: Develop capacity plan | BK24: Appoint service provider | BL24: Providing training on system and process | BM24: Undertake evaluation | BP24: Consolidate
A25: Process / Activities | C25: Pilot | D25: Legislative process | E25: Finalise implementaiton plan | F25: Determine provincial allocations | G25: Fill posts | I25: Provide support, if required | L25: Manage oversight process | M25: Undertake evaluation | N25: Put in place monitoring processes | P25: Fill posts | Q25: Pilot IRDP projects | R25: Legislative process | S25: Finalise implementaiton plan | T25: Confirms the subsidy amount with municipality | U25: Check beneficiaries are added to the NHSDB | W25: Provide support to municipalities | Y25: 1 Approves project description from municipality -receives the project plan from the municipality | Z25: Providing training on system and process | AF25: Undertake evaluation | AH25: Fill posts | AI25: Test and get approved by Council | AJ25: Determine cost inputs | AK25: Follow all processes needed to secure land for the project | AL25: Municipality undertakes legal steps to secure land and informs Province | AM25: Municipality to determine standards for internal services and plan for them | AN25: Municipality signs sales agreement with beneficiary | AP25: Compile lists through engagement with beneficiaries | AQ25: Allocate an operations and maintenance budget to asset management | AR25: Submit reports to Province, as required | BC25: Review processes and amend, if necessary | BE25: Fill posts | BF25: Finalise implementation plan | BG25: Obtain approval | BJ25: Provide support | BK25: Manage implementation | BL25: Submit reports as required | BM25: Review processes and amend | BP25: Submit reports to stakeholders as required
A26: Process / Activities | C26: Finalise review and approve policy | D26: Promulgation | E26: Develop IRDP guidelines - in Housing Code | L26: Manage exceptions | M26: Review processes and amend | N26: Providing training on system and process | P26: Assess municipal capacity to do IRDP projects | Q26: Finalise review and approve policy | R26: Promulgation | S26: Develop IRDP guidelines - in Housing Code | T26: makes progress payments to developer/municipality | Y26: 2 MEC allocates project number | Z26: Receive monitoring reports | AF26: Review processes and amend | AJ26: Develop budgets for projects | AK26: Undertake feasibility study for project and submit project plan to Province | AL26: Non-residential land sales: funds go to NDHS but is ring-fenced for housing | AM26: Installation of internal services as per project needs | AN26: Register house with NHBRC | AP26: Ensure names are entered on national HSDB | BF26: Obtain approval
A27: Process / Activities | D27: Regulations | R27: Regulations | Y27: 3 Land acquistion processes | AJ27: plan for IRDP projects in terms of the IDP and MTEF | AK27: Obtain project enrolment with NHBRC | AL27: All the above steps are included in Step 1 of the implementation of IRDP projects | AM27: handover of internal services at completion of project | AN27: Beneficiary signs 'happy letter' and house handed over to beneficiary | AP27: transfer of serviced sites to qualifying beneficiaries
A28: Process / Activities | Y28: 4 NHBRC enrolment | AK28: Sign MOU with Province and developers | AM28: Ongoing maintenance of internal services
Y29: 5 township establishment | AK29: Township establishment
Y30: 6 Services installation | AK30: Services installation
Y31: ph 2 - top structure construction | AK31: Allocation of stands to beneficiaries and sale of non-residential stands
AK32: Transfer of properties
A33: Process / Activities | AK33: Phase 2: Construction Construct houses for subsidy beneficiaries
A34: Inputs | C34: land | D34: feasibility studies | E34: project plans | F34: township establishment and environmental approvals | G34: infrastructure services | H34: beneficiary administration | I34: top structure construction | J34: social, economic and community infrastructure
A35: Responsbility | C35: policy and guidelines for IRDP | D35: allocate subsidy amounts to Provinces | E35: Verification of beneficiaries on NHSDB | P35: Receive applications and allocate funds | Q35: receive project descrption and project plans | R35: Provide capacity support | S35: Enter into MOU for development with municipality and partners | T35: Receive project reports | U35: Assist with beneficiary administration | V35: Process project payments | AH35: IRDP planning across the municipality in HSP and IDP and SDF | AI35: Identify projects and submit project description ot Province | AJ35: Undertake feasibility study | AK35: Prepare Project Plan and submit to Province | AL35: Undertake land acquisition steps | AM35: Community particiaption and social contract and beneficiary identification | AN35: Township establishment processes and project approval | AO35: Servicing of project to produce serviced sites | AP35: Transfer of sites to beneficiaries. Sale of non-residential sites | AQ35: Construction of top structures | AR35: Transfer of assets to municipality | BC35: Reporting to province, and programme management
A37: Current Programme Elements | C37: Policy development | D37: Legislation & Regulations | E37: Implementation support & planning | F37: Costing and budgeting | G37: Establish capacity | H37: Communication | I37: Capacity Development Support | J37: Monitoring | K37: Entities Oversight | N37: Monitoring | P37: Establish capacity | Q37: Policy development | R37: Legislation | S37: Implementation planning | T37: Funding Systems & Disbursement | U37: Beneficiary Management | V37: Communication | W37: Capacity Development Support | X37: Asset Management | Y37: Implementation | Z37: Monitoring | AA37: Entities Oversight | AF37: Evaluation | AH37: Capacity | AI37: Policy Development | AJ37: Planning & Budgeting | AK37: Implementation Planning & Mgt | AL37: Land | AM37: Services | AN37: Top-structure Construction | AO37: Post--Construction Support | AP37: Beneficiary Management | AQ37: Asset Management | AR37: Monitoring | BC37: Reporting | BE37: Capacity | BF37: Implementation planning | BG37: Funding Systems & Disbursement | BH37: Beneficiary Management | BI37: Communication | BJ37: Capacity Development Support | BK37: Implementation | BL37: Monitoring | BM37: Evaluation | BP37: Reporting
A38: Universal Element Name | C38: ='03. Consolidated Elements'!E9 -> National Department Management & Administration | D38: ='03. Consolidated Elements'!F9 -> Research, Analysis & Policy Development | E38: ='03. Consolidated Elements'!G9 -> Legislation & Regulation Development | F38: ='03. Consolidated Elements'!H9 -> Programme Administration & Oversight (National level) | G38: ='03. Consolidated Elements'!I9 -> Programme Implementation Planning & Support | H38: ='03. Consolidated Elements'!J9 -> Programme Costing & Budgeting | I38: ='03. Consolidated Elements'!K9 -> Capacity Establishment & Development (National, Provinces, Municipalities & State Entities) | J38: ='03. Consolidated Elements'!L9 -> Inter-Government Communication & Coordination | K38: ='03. Consolidated Elements'!M9 -> Development Support at National & Provincial Level | L38: ='03. Consolidated Elements'!N9 -> Oversight of State Entities | M38: ='03. Consolidated Elements'!O9 -> Performance Monitoring & Evaluation | N38: ='03. Consolidated Elements'!P9 -> Performance Reporting | P38: ='03. Consolidated Elements'!T9 -> Provincial Department Management & Administration | Q38: ='03. Consolidated Elements'!U9 -> Inter-Government Communication & Coordination | R38: ='03. Consolidated Elements'!V9 -> Provincial Research, Analysis & Policy Development | S38: ='03. Consolidated Elements'!W9 -> Provincial Legislation & Regulation Development | T38: ='03. Consolidated Elements'!X9 -> Programme Administration & Oversight (National & Provincial Programmes) | U38: ='03. Consolidated Elements'!Y9 -> Programme Implementation Planning & Support (Province, Municipal & State Entity) | V38: ='03. Consolidated Elements'!Z9 -> Programme Costing and Budgeting | W38: ='03. Consolidated Elements'!AA9 -> Capacity Establishment & Development (Provincial, Municipal & State Entities) | X38: ='03. Consolidated Elements'!AB9 -> xx | Y38: ='03. Consolidated Elements'!AC9 -> Development Support at Municipal Level | Z38: ='03. Consolidated Elements'!AD9 -> Funding Systems & Disbursement | AA38: ='03. Consolidated Elements'!AE9 -> Beneficiary Identification, Recording & Management | AB38: ='03. Consolidated Elements'!AF9 -> State Asset Management & Maintenance | AC38: ='03. Consolidated Elements'!AG9 -> Project Implementation (By Province) | AD38: ='03. Consolidated Elements'!AH9 -> Entities Oversight (Provincial) | AE38: ='03. Consolidated Elements'!AI9 -> Performance Monitoring & Evaluation | AF38: ='03. Consolidated Elements'!AJ9 -> Performance Reporting | AH38: ='03. Consolidated Elements'!AL9 -> Municipal Department Management & Administration | AI38: ='03. Consolidated Elements'!AM9 -> Inter-Government Communication & Coordination | AJ38: ='03. Consolidated Elements'!AN9 -> Municipal Research & Analysis | AK38: ='03. Consolidated Elements'!AO9 -> Policy & Bylaw Development | AL38: ='03. Consolidated Elements'!AP9 -> Project Planning & Budgeting | AM38: ='03. Consolidated Elements'!AQ9 -> Funding Systems & Funds Disbursement | AN38: ='03. Consolidated Elements'!AR9 -> Capacity Development | AO38: ='03. Consolidated Elements'!AS9 -> Appointment of Implementing Agents / Service Providers | AP38: ='03. Consolidated Elements'!AT9 -> Implementation Planning & (Project) Management | AQ38: ='03. Consolidated Elements'!AU9 -> Beneficiary Identification, Approval & Management | AR38: ='03. Consolidated Elements'!AV9 -> Alternative / Emergency Accommodation Arrangements | AS38: ='03. Consolidated Elements'!AW9 -> Land Assembly (Identification & Acquisition) | AT38: ='03. Consolidated Elements'!AX9 -> Township Proclamation (Design, Establishment, Deeds Registry) | AU38: ='03. Consolidated Elements'!AY9 -> Statutory Approvals & Enrolments | AV38: ='03. Consolidated Elements'!AZ9 -> (Internal) Engineering Services Installation | AW38: ='03. Consolidated Elements'!BA9 -> Top Structure Construction | AX38: ='03. Consolidated Elements'!BB9 -> Post-Construction Support | AY38: ='03. Consolidated Elements'!BC9 -> Post-Construction Tneighbourhood Maintenance | AZ38: ='03. Consolidated Elements'!BD9 -> Property Asset Management | BA38: ='03. Consolidated Elements'!BE9 -> Entities Oversight (Metro)? | BB38: ='03. Consolidated Elements'!BF9 -> Performance Monitoring & Evaluation | BC38: ='03. Consolidated Elements'!BG9 -> Performance Reporting | BE38: ='03. Consolidated Elements'!BI9 -> Research & Policy Development | BF38: ='03. Consolidated Elements'!BJ9 -> Contribution to Legislation & Regulations | BG38: ='03. Consolidated Elements'!BK9 -> Strategic Engagement / Implementation Planning | BH38: ='03. Consolidated Elements'!BL9 -> Regulation of Institutions / Stock | BI38: ='03. Consolidated Elements'!BM9 -> Costing and Budgeting | BJ38: ='03. Consolidated Elements'!BN9 -> Investment' of Public Funds (Funding Systems & Disbursement) | BK38: ='03. Consolidated Elements'!BO9 -> Capacity Development (Institutions, projects) | BL38: ='03. Consolidated Elements'!BP9 -> Implementation Planning | BM38: ='03. Consolidated Elements'!BQ9 -> Funding Systems & Disbursement | BN38: ='03. Consolidated Elements'!BR9 -> Beneficiary Management | BO38: ='03. Consolidated Elements'!BS9 -> Performance Monitoring & Evaluation | BP38: ='03. Consolidated Elements'!BT9 -> Performance Reporting
A39: Universal Element No. | C39: ='03. Consolidated Elements'!E10 -> A.1 | D39: ='03. Consolidated Elements'!F10 -> A.2 | E39: ='03. Consolidated Elements'!G10 -> A.3 | F39: ='03. Consolidated Elements'!H10 -> A.4 | G39: ='03. Consolidated Elements'!I10 -> A.5 | H39: ='03. Consolidated Elements'!J10 -> A.6 | I39: ='03. Consolidated Elements'!K10 -> A.7 | J39: ='03. Consolidated Elements'!L10 -> A.8 | K39: ='03. Consolidated Elements'!M10 -> A.9 | L39: ='03. Consolidated Elements'!N10 -> A.10 | M39: ='03. Consolidated Elements'!O10 -> A.11 | N39: ='03. Consolidated Elements'!P10 -> A.12 | P39: ='03. Consolidated Elements'!T10 -> B.1 | Q39: ='03. Consolidated Elements'!U10 -> B.2 | R39: ='03. Consolidated Elements'!V10 -> B.3 | S39: ='03. Consolidated Elements'!W10 -> B.4 | T39: ='03. Consolidated Elements'!X10 -> B.5 | U39: ='03. Consolidated Elements'!Y10 -> B.6 | V39: ='03. Consolidated Elements'!Z10 -> B.7 | W39: ='03. Consolidated Elements'!AA10 -> B.8 | X39: ='03. Consolidated Elements'!AB10 -> B.9 | Y39: ='03. Consolidated Elements'!AC10 -> B.10 | Z39: ='03. Consolidated Elements'!AD10 -> B.11 | AA39: ='03. Consolidated Elements'!AE10 -> B.12 | AB39: ='03. Consolidated Elements'!AF10 -> B.13 | AC39: ='03. Consolidated Elements'!AG10 -> B.14 | AD39: ='03. Consolidated Elements'!AH10 -> B.15 | AE39: ='03. Consolidated Elements'!AI10 -> B.16 | AF39: ='03. Consolidated Elements'!AJ10 -> B.17 | AH39: ='03. Consolidated Elements'!AL10 -> C.1 | AI39: ='03. Consolidated Elements'!AM10 -> C.2 | AJ39: ='03. Consolidated Elements'!AN10 -> C.3 | AK39: ='03. Consolidated Elements'!AO10 -> C.4 | AL39: ='03. Consolidated Elements'!AP10 -> C.5 | AM39: ='03. Consolidated Elements'!AQ10 -> C.6 | AN39: ='03. Consolidated Elements'!AR10 -> C.7 | AO39: ='03. Consolidated Elements'!AS10 -> C.8 | AP39: ='03. Consolidated Elements'!AT10 -> C.9 | AQ39: ='03. Consolidated Elements'!AU10 -> C.10 | AR39: ='03. Consolidated Elements'!AV10 -> C.11 | AS39: ='03. Consolidated Elements'!AW10 -> C.12 | AT39: ='03. Consolidated Elements'!AX10 -> C.13 | AU39: ='03. Consolidated Elements'!AY10 -> C.14 | AV39: ='03. Consolidated Elements'!AZ10 -> C15 | AW39: ='03. Consolidated Elements'!BA10 -> C.16 | AX39: ='03. Consolidated Elements'!BB10 -> C.17 | AY39: ='03. Consolidated Elements'!BC10 -> C.18 | AZ39: ='03. Consolidated Elements'!BD10 -> C.19 | BA39: ='03. Consolidated Elements'!BE10 -> C.20 | BB39: ='03. Consolidated Elements'!BF10 -> C.21 | BC39: ='03. Consolidated Elements'!BG10 -> C.22 | BE39: ='03. Consolidated Elements'!BI10 -> D.1 | BF39: ='03. Consolidated Elements'!BJ10 -> D.2 | BG39: ='03. Consolidated Elements'!BK10 -> D.3 | BH39: ='03. Consolidated Elements'!BL10 -> D.4 | BI39: ='03. Consolidated Elements'!BM10 -> D.5 | BJ39: ='03. Consolidated Elements'!BN10 -> D.6 | BK39: ='03. Consolidated Elements'!BO10 -> D.7 | BL39: ='03. Consolidated Elements'!BP10 -> D.8 | BM39: ='03. Consolidated Elements'!BQ10 -> D.9 | BN39: ='03. Consolidated Elements'!BR10 -> D.10 | BO39: ='03. Consolidated Elements'!BS10 -> D.11 | BP39: ='03. Consolidated Elements'!BT10 -> D.12
A40: Applicability to Prog | C40: ='04. Assumptions Matrix'!C39 -> N/A | D40: ='04. Assumptions Matrix'!D39 -> 0 | E40: ='04. Assumptions Matrix'!E39 -> 0 | F40: ='04. Assumptions Matrix'!F39 -> 0 | G40: ='04. Assumptions Matrix'!G39 -> 0 | H40: ='04. Assumptions Matrix'!H39 -> 0 | I40: ='04. Assumptions Matrix'!I39 -> 0 | J40: ='04. Assumptions Matrix'!J39 -> 0 | K40: ='04. Assumptions Matrix'!K39 -> ?? | L40: ='04. Assumptions Matrix'!L39 -> N/A | M40: ='04. Assumptions Matrix'!M39 -> 0 | N40: ='04. Assumptions Matrix'!N39 -> 0 | P40: ='04. Assumptions Matrix'!S39 -> N/A | Q40: ='04. Assumptions Matrix'!T39 -> 0.05 | R40: ='04. Assumptions Matrix'!U39 -> 0.025 | S40: ='04. Assumptions Matrix'!V39 -> N/A | T40: ='04. Assumptions Matrix'!W39 -> 0.025 | U40: ='04. Assumptions Matrix'!X39 -> 0.025 | V40: ='04. Assumptions Matrix'!Y39 -> 0.025 | W40: ='04. Assumptions Matrix'!Z39 -> 0.05 | X40: ='04. Assumptions Matrix'!AA39 -> N/A | Y40: ='04. Assumptions Matrix'!AB39 -> 0.05 | Z40: ='04. Assumptions Matrix'!AC39 -> 0.02 | AA40: ='04. Assumptions Matrix'!AD39 -> 0.015 | AB40: ='04. Assumptions Matrix'!AE39 -> N/A | AC40: ='04. Assumptions Matrix'!AF39 -> 0.685 | AD40: ='04. Assumptions Matrix'!AG39 -> N/A | AE40: ='04. Assumptions Matrix'!AH39 -> 0.02 | AF40: ='04. Assumptions Matrix'!AI39 -> 0.01 | AH40: ='04. Assumptions Matrix'!AL39 -> N/A | AI40: ='04. Assumptions Matrix'!AM39 -> 0 | AJ40: ='04. Assumptions Matrix'!AN39 -> 0 | AK40: ='04. Assumptions Matrix'!AO39 -> N/A | AL40: ='04. Assumptions Matrix'!AP39 -> 0 | AM40: ='04. Assumptions Matrix'!AQ39 -> 0 | AN40: ='04. Assumptions Matrix'!AR39 -> 0 | AO40: ='04. Assumptions Matrix'!AS39 -> 0 | AP40: ='04. Assumptions Matrix'!AT39 -> 0 | AQ40: ='04. Assumptions Matrix'!AU39 -> 0 | AR40: ='04. Assumptions Matrix'!AV39 -> N/A | AS40: ='04. Assumptions Matrix'!AW39 -> 0 | AT40: ='04. Assumptions Matrix'!AX39 -> 0 | AU40: ='04. Assumptions Matrix'!AY39 -> 0 | AV40: ='04. Assumptions Matrix'!AZ39 -> 0 | AW40: ='04. Assumptions Matrix'!BA39 -> 0 | AX40: ='04. Assumptions Matrix'!BB39 -> 0 | AY40: ='04. Assumptions Matrix'!BC39 -> 0 | AZ40: ='04. Assumptions Matrix'!BD39 -> N/A | BA40: ='04. Assumptions Matrix'!BE39 -> N/A | BB40: ='04. Assumptions Matrix'!BF39 -> 0 | BC40: ='04. Assumptions Matrix'!BG39 -> 0 | BE40: ='04. Assumptions Matrix'!BJ39 -> 0 | BF40: ='04. Assumptions Matrix'!BK39 -> N/A | BG40: ='04. Assumptions Matrix'!BL39 -> 0 | BH40: ='04. Assumptions Matrix'!BM39 -> 0 | BI40: ='04. Assumptions Matrix'!BN39 -> 0 | BJ40: ='04. Assumptions Matrix'!BO39 -> N/A | BK40: ='04. Assumptions Matrix'!BP39 -> N/A | BL40: ='04. Assumptions Matrix'!BQ39 -> N/A | BM40: ='04. Assumptions Matrix'!BR39 -> N/A | BN40: ='04. Assumptions Matrix'!BS39 -> N/A | BO40: ='04. Assumptions Matrix'!BT39 -> 0 | BP40: ='04. Assumptions Matrix'!BU39 -> 0
A42: Eastern Cape Programme Elements
A44: Free State Programme Elements
A46: Gauteng Programme Elements
A48: KwaZulu-Natal Programme Elements
A50: Limpopo Programme Elements
A52: Mpumalanga Programme Elements
A54: Northern Cape Programme Elements
A56: North West Programme Elements
A58: Western Cape Programme Elements
A59: Location of budget
A61: Budget Allocations (R millions) | C61: Note: Expenditure Allocation against ideal elements are included in other tables
A62: 2011/12
A63: 2012/13
A64: 2013/14
A65: 2014/15
A68: Money going to
A69: NHFC: FLISP
A70: NHBRC: Enrolment fees | C70: Comes off the grant, but not debited off each subsidy (eg. Like land costs) | D70: Quarterly reports
A71: H.D.A | C71: Transfers: e.g. free state xferred R340m? For land | D71: Some can be tracked, others not there. BAS | E71: Specific land issues in projects | F71: GP?
A72: SHRA
A73: NURCHA | C73: FS has appointed as project managers
A75: IRDP: | C75: Was approval date.
C76: Project initalistion takes multiple years. No budget should be allocated until it absorbs spending | D76: Little relation between original IRDP project and specific elements. Load project with /1, or /2 if more than one phase | E76: Planned units may bear no resemblance to phases approved for subsidies
C77: Some provinces: muni must prove sites available, then budget for top structure approved (NC, WC do this) | D77: If province is implementor, then first phase must be land, services, etc to devp serviced sites. P5 top structure | E77: Gauteng withdrew from Metros, wanted to be IA of choice. NW 'lost' money allocated, did not produce concomitant outputs
C78: Data on milestones very dirty.
C79: SDIs: when is it a serviced site? What was politicl imperative for delivery? | D79: New defn of serviced site: Water and sanitation delivered to the site. But variations amongst munis | E79: Nw - VIP and access was basis of defn | F79: Ekhuruleni: "Interim services". Will GP report these separately
C80: USDG: Metro allocations | F80: Individual services, shared services
C81: Gap house: costs less than RDP house | F81: KZN implementing block sanitation.
A82: Community-wide approach, all income groups, commercial, etc. Project linked was only focused on beneficiaries | C82: Assess and obtain mandate to amend or adjust. HSDG does not fund these - practice note will indicate | D82: Housing Act and Code | E82: Chief directorate Implementation support If requested from provinces. Agree with certain programme priorities at gentlemens agreement | F82: DORA allocates in terms of approved alloction formula. Provinces now divide DORA allocation in terms of programmes | G82: Capacity Chief Directorate:

Sheet L2.5. II-ISUP
A1: ='00. Contents'!A1 -> Project: | B1: ='00. Contents'!B1 -> Expenditure and Performance Review - Human Settlements Programmes
A2: ='00. Contents'!A2 -> Client: | B2: ='00. Contents'!B2 -> National Treasury | H2: RETURN TO CONTENTS
A3: ='00. Contents'!A3 -> Version: | B3: ='00. Contents'!B3 -> Step 3 Logframe V.1.0 Client (Draft)
A4: ='00. Contents'!A4 -> Date: | B4: ='00. Contents'!B4 -> 2013-10-31
A6: ='00. Contents'!C40 -> Logic model for Programme 2.5: Incremental Interventions: Informal Settlements Upgrading Programme
A7: Sphere | C7: National | O7: Provincial | AC7: Local | AP7: National & Provincial
C8: National Department of Human Settlements | O8: Provincial Departments of Human Settlements | AC8: Metro's, District & Local Municipalities | AP8: Public Entities
A10: Impact | C10: The quality of life of households living in informal settlements is improved
A11: Indicator / Measure | C11: Households living in informal settlements have improved access to basic services (water, sanitation, refuse collection, electricity) | D11: Households living in informal settlements are provided with secure tenure | E11: Number of social protests in informal settlements decreases | F11: Number of waterborne diseases and infant mortality rates in informal settlements decrease | G11: Crime statistics in informal settlements decrease
A12: Data Sources | C12: Reports from provinces and accredited metropolitan municipalities | D12: Reports from provinces and accredited metropolitan municipalities | E12: Reports from provinces and accredited metropolitan municipalities | F12: Census | G12: Police reports
A13: Outcome | C13: Well located informal settlements in South Africa are upgraded in situ, as opposed to relocation
A14: Indicator / Measure | C14: Number of informal settlements upgraded in situ | D14: Number of households/ individuals in an informal settlement who are recognised (shack numbered or on an official municipal list) | E14: Number of households/ individuals in an informal settlement who receive registered title | F14: Number of households in informal settlements who access services (water, sanitation, electricity, refuse) | G14: Number of households in informal settlements who participate in an empowerment/ participation process
A15: Data Sources | C15: Reports from provinces and accredited metropolitan municipalities | D15: Reports from provinces and accredited metropolitan municipalities | E15: Register of Deeds/ Reports from provinces and accredited metropolitan municipalities | F15: Reports from provinces and accredited metropolitan municipalities | G15: Reports from provinces and accredited metropolitan municipalities
A16: Output | C16: 400,000 households living in informal settlements in South Africa are assisted by 2014
A17: Indicator / Measure | C17: Number of households living in informal settlements
A18: Data Sources | C18: Census
A19: Intermediate Outputs | C19: National Upgrading Support Programme (NUSP) supports 49 priority municipalities with their informal settlement upgrading plans
A20: Indicator / Measure | C20: Upgrading plans developed for 49 municipalities
A21: Data Sources | C21: NUSP reports
A23: Process / Activities | C23: Research and draft policy | D23: Draft legislation | E23: Develop implementation plan | F23: Determine cost inputs | G23: Develop overall resourcing plan | H23: Develop communication strategy | I23: Assess capacity needs | J23: Develop monitoring system | K23: Define oversight requirements | L23: Oversee the undertaking of baseline studies | M23: Receive reports | O23: Develop overall resourcing plan | P23: Review national policy | Q23: Review national policy | R23: Receive informal settlement upgrading plans from Municipalities | S23: Determine cost inputs | T23: Receive beneficiary lists from municipalities | U23: Develop communication strategy | V23: Assess capacity needs | W23: Identify assets | X23: Develop implementation plan | Y23: Put in place monitoring processes | Z23: Define oversight requirements | AA23: Undertake baseline studies | AC23: Develop overall resourcing plan | AD23: Review national policy | AE23: Undertake research | AF23: Undertake community residents surveys of all informal settlements | AG23: Land identification | AH23: Bulk services | AI23: Detailed design | AJ23: Community engagement | AK23: Undertake community engagement | AL23: Identify assets | AM23: Define oversight requirements | AN23: Undertake baseline studies | AP23: Develop overall resourcing plan | AQ23: Develop implementation plan | AR23: Determine cost inputs | AS23: Sign participation agreements with provinces and municipalities | AT23: Develop communication strategy | AU23: Assess capacity needs | AV23: Develop terms of reference | AW23: Put in place monitoring processes | AX23: Identify data sources | AY23: Receive reports
A24: Process / Activities | C24: Stakeholder engagement | D24: Stakeholder engagement | E24: intergovernmental coordination | F24: Develop budgets | G24: Create posts | H24: Undertake communication | I24: Develop capacity plan | J24: Put in place monitoring processes | K24: Put in place oversight processes | L24: Identify data sources | M24: Review and consolidate | O24: Create posts | P24: Develop provincial specific policies | Q24: Stakeholder engagement | R24: Formulate implementation plan | S24: Develop budgets | T24: Update national system | U24: Undertake communication | V24: Develop capacity plan | W24: Register assets on provincial assets list | X24: Coordination with provincial departments and municipalities | Y24: Providing training on system and process | Z24: Put in place oversight processes | AA24: Identify data sources | AC24: Create posts | AD24: Develop municipal specific policies | AE24: Develop input into the Housing Chapter of the Integrated Development Plan | AF24: Develop implementation plan | AG24: Geotechnical investigation | AH24: Design internal services | AI24: Relocate households if required | AK24: ward councillor training | AL24: Register assets on municipal assets list | AM24: Put in place oversight processes | AN24: Identify data sources | AP24: Create posts | AQ24: Stakeholder coordination | AR24: Develop budgets | AS24: Ongoing engagement | AT24: Undertake communication | AU24: Develop capacity plan | AV24: Appoint service provider | AW24: Providing training on system and process | AX24: Undertake evaluation | AY24: Consolidate
A25: Process / Activities | C25: Pilot | D25: Legislative process | E25: Finalise implementation plan | G25: Fill posts | I25: Provide support | J25: Providing training on system and process | K25: Manage oversight process | L25: Undertake evaluation | M25: Report to ministry, cabinet etc | O25: Fill posts | Q25: Pilot | R25: Stakeholder consultation | S25: Obtain approval | V25: Provide support | X25: Finalise implementation plan | Y25: Submit reports as required | Z25: Manage oversight process | AA25: Undertake evaluation | AC25: Fill posts | AE25: Determine cost inputs | AF25: Stakeholder coordination | AG25: Acquire | AH25: Implement internal services | AI25: Construction | AM25: Manage oversight process | AN25: Undertake evaluation | AP25: Fill posts | AQ25: Finalise implementation plan | AR25: Obtain approval | AU25: Provide support | AV25: Manage implementation | AW25: Submit reports as required | AX25: Review processes and amend | AY25: Submit reports to stakeholders as required
A26: Process / Activities | C26: Finalise review and approve policy | D26: Promulgation | E26: Develop guidelines | K26: Manage exceptions | L26: Review processes and amend | M26: Undertake remedial activities | Q26: Finalise review and approve policy | R26: Finalise implementation plan | Z26: Manage exceptions | AA26: Review processes and amend | AE26: Develop budgets | AF26: Finalise implementation plan | AG26: Land legal requirements (planning, surveying and pegging, design services, contour survey, township establishment) | AI26: Registration & Transfer | AM26: Manage exceptions | AN26: Review processes and amend | AQ26: Obtain approval
A27: Process / Activities | D27: Regulations | R27: Servicing | AG27: release
A28: Process / Activities | R28: Construction | AG28: management & control
A29: Process / Activities | R29: Registration & Transfer
A30: Process / Activities
A31: Process / Activities
A32: Process / Activities
A33: Inputs
A34: Responsibility
A36: Current Programme Elements | C36: Policy development | D36: Legislation | E36: Implementation planning | F36: Costing and budgeting | G36: Establish capacity | H36: Communication | I36: Capacity Development Support | J36: Monitoring | K36: Entities Oversight | L36: Evaluation | M36: Reporting | O36: Establish capacity | P36: Policy development | Q36: Legislation | R36: Implementation planning | S36: Funding Systems & Disbursement | T36: Beneficiary Management | U36: Communication | V36: Capacity Development Support | W36: Asset Management | X36: Implementation | Y36: Monitoring | Z36: Entities Oversight | AA36: Evaluation | AC36: Capacity | AD36: Policy Development | AE36: Planning & Budgeting | AF36: Implementation Planning & Mgt | AG36: Land | AH36: Services | AI36: Top-structure Construction | AJ36: Post--Construction Support | AK36: Beneficiary Management | AL36: Asset Management | AM36: Monitoring | AN36: Reporting | AP36: Capacity | AQ36: Implementation planning | AR36: Funding Systems & Disbursement | AS36: Beneficiary Management | AT36: Communication | AU36: Capacity Development Support | AV36: Implementation | AW36: Monitoring | AX36: Evaluation | AY36: Reporting
A38: Eastern Cape Programme Elements
A40: Free State Programme Elements
A42: Gauteng Programme Elements
A44: KwaZulu-Natal Programme Elements
A46: Limpopo Programme Elements
A48: Mpumalanga Programme Elements
A50: Northern Cape Programme Elements
A52: North West Programme Elements
A54: Western Cape Programme Elements
A55: Location of budget
A57: Budget Allocations (R millions) | C57: Note: Expenditure Allocation against ideal elements are included in other tables
A58: 2011/12
A59: 2012/13
A60: 2013/14
A61: 2014/15

Sheet L3.2. SR-SH
A1: ='00. Contents'!A1 -> Project: | B1: ='00. Contents'!B1 -> Expenditure and Performance Review - Human Settlements Programmes
A2: ='00. Contents'!A2 -> Client: | B2: ='00. Contents'!B2 -> National Treasury | H2: RETURN TO CONTENTS
A3: ='00. Contents'!A3 -> Version: | B3: ='00. Contents'!B3 -> Step 3 Logframe V.1.0 Client (Draft)
A4: ='00. Contents'!A4 -> Date: | B4: ='00. Contents'!B4 -> 2013-10-31
A6: ='00. Contents'!C44 -> Logic Model for Programme 3.2: Social & Rental Housing: Social Housing Programme
A7: Sphere | C7: National | P7: Provincial | AE7: Local | AR7: National & Provincial
A8: Sphere & Actor | C8: National Department of Human Settlements | P8: Provincial Departments of Human Settlements | AE8: Metro's, District & Local Municipalities | AR8: Public Entities
A10: Impacts | C10: “a comprehensive (housing) programme dealing with human settlement and social infrastructure, including rental-housing stock for the poor”& promote the achievment of a non-racial, integrated society through the development of sustainable human settlements and quality housing
A11: Indicator / Measure | C11: Projects contribute to densification of urban areas | D11: SHIP investments promote affordable rental accommodation | E11: Budget allocations prudently spent | F11: [proportion of average unit value contributed by RCG]
A12: Data Sources | C12: HDA & SHRA Database | D12: SHRA Database | E12: Annual Reviews, Treasury Data | F12: SHRA Database
A13: Outcomes | C13: Using housing as an instrument for development of sustainable human settlements, in support of spatial restructuring | D13: Combating crime, promoting social cohesiion and improving quality of life of the poor | E13: Leveraging growth in the economy | F13: Utilising the provision of housing as a major job creation strategy | G13: Strong and vibrant Social Housing sector
A14: Indicator / Measure | C14: More efficient cities, towns & regions | D14: More integrated cities (& spatial restructuring) | E14: Participation of private sector in SH sector (% of funded units) | F14: Direct & indirect job creation (initial and ongoing) | G14: Total units under management?
A15: Data Sources | C15: BNG & Housing Code (2009: Part 3) | D15: BNG & Housing Code (2009: Part 3) | E15: BNG & Housing Code (2009: Part 3) | F15: ?? | G15: SHRA database
A16: Outputs | C16: Number of (govt subsidised) rental units under management | D16: Number of SHIs under Regulation | E16: SHI capacity to develop and manage stock
A17: Indicator / Measure | C17: Units under regulation (subsidised & unsubsidised) | D17: Number of SHIS per accreditation status | E17: Number of SHIs managing over 2 500 units
A18: Data Sources | C18: SHRA Database | D18: SHRA Database | E18: SHRA Database
A19: Intermediate Outputs | C19: Annual Delivery Targets | D19: Growth in Regulated SHIs
A20: Indicator / Measure | C20: APP Targets
A21: Data Sources | C21: SHRA Database
A23: Process / Activities | C23: *[NDHS: Research Rental & Social Housing Sector (NDHS)] | D23: NDHS: Social Housing Policy Development (Green Paper, White Paper, Draft Policy) | E23: NDHS: Negotiate and approve Social Housing targets in relation to "Outcome 8" targets & NDHS Annual Performance Plan | F23: Treasury & NDHS: Define MTF allocations to SHRA & Social Housing Investment Programme (SHIP) | G23: NDHS: Administer National Housing Demand Database (NHDD) | H23: NDHS: Establsh National Departmental Capacity (Rental Housing Directorate) | I23: NDHS: Internal Human Settlements Function meetings & reports: Departmental Meetings, MinMec, Portfolio Committee | J23: NDHS: Human Settlements sector capacitation re Rental & Social Housing (Accredited Courses?) | K23: NDHS: Monitor Performance of SHRA based on Annual Reviews & State of the Sector Report | L23: HS Portfolio Committee: Evaluate preformance of SH in relation to overall housing sector | M23: NDHS: Evaluate performance of Provinces & SHRA re Social housing programme | N23: Internal Human Settlements Function Reports: Monthly & quarterly reports | P23: Provincial HS Departments (PHSD): Establish provincial capacity for facilitating social rental housing delivery | Q23: *[Provincial HS Departments: Develop provincial social rental housing (policy / support) frameworks] | R23: PHSD: Promulgate related legislation (where required) as concurrent competency (e.g. Gauteng Rental Housing Act) | S23: SHRA Investments Division: Call for SHIP project funding proposals from SHIs | T23: PHSD: Develop Provincial Rental Housing Plans in liaison with Metros, Municipalities & SHIs | U23: Establish "Provincial Account" with SHRA for holding and disbursing Institutional Subsidies to SHIP projects | V23: ?? Add / Remove occupants of subsidised social housing from National Housing Subsidy System (NHSS) | W23: PHSD: Communication with stakeholders | X23: PHSD: Sign Memorandum of Understanding with SHRA | Y23: No Assets managed at Provincial level | Z23: Guide implementation of Provincial Rental Housing Plan | AA23: Montor implementation of Provincial Rental Housing Pl;an | AB23: Oversignt of Provincial Entities and Instruments (e.g. Gauteng Partnership Fund) | AC23: Evaluate performance of Provincial Rental Housing Plan | AE23: Establish capacity to implement Social Housing | AF23: Assigned Metros develop social housing policy & supports | AG23: Municipalities develop Housing Plans | AH23: Municipalities with MoEs develop project applications for SHRA | AI23: Land identification for housing development | AJ23: Invest in bulk services required for SHIP & housing development | AK23: MoE manages project development cycle in accordance with SHRA requirements | AL23: Administrative and political support for SHIs / MoEs | AM23: MoEs manage waitlisting, identification, contracting, management and eviction of tenants | AN23: MoEs manage Social Housing assets through maintenance and long term investment plans | AO23: Monitor MoE performance with Social housing management, administration and maintenance | AP23: Report Social Housing delivery success in standard reports to Province / National department | AR23: SHRA: Research Rental and Social Housing Sector | AS23: SHRA: Contribute to Policy Development (Green Paper, White Paper, Draft Policy) | AT23: SHRA: Develop Social Housing targets in relation to "Outcome 8" targets & NDHS Annual Performance Plan with NDHS, provinces & Assigned Metros | AU23: SHRA: Lobby for appropriations from Treasury & NDHS | AV23: SHRA: Monitor beneficiary management by Registered and Accredited SHIs | AW23: SHRA: Develop organisation structure, operational plans and capacitate organisation | AX23: SHRA: Contribute to Internal Human Settlements Function meetings & reports: Departmental Meetings, MinMec, Portfolio Committee | AY23: SHRA Interventions Division: Receive, adjudicate, disburse and manage SHI & project capacitation budgets i.r.o SHI finanical, tenant & stock management. | AZ23: SHRA Regulations Division: Review Quarterly Reports & Annual Reports submitted from Regisered SHIs | BA23: SHRA Regulations Division: Regulate SHIs utilising or wanting to access public funds (including Municipal Owned Entities)
A24: Process / Activities | C24: Financial & Fiscal Commission (FFC): Research & propose alternative public sector funding approaches | D24: NDHS: Draft, lobby for and obtain legislative revisions (Social Housing Act, 2008) | E24: NDHS: Approve Annual Performance Plan for SHRA | F24: NDHS: Monitor Delivery projections and statistics from Provices and Metros | G24: NDHS: Verification of beneficiary information on NHDD | H24: NDHS & PHDs: Establish Provincial rental / social housing capacity | I24: NDHS: Inter-departmental communications: Social Cluster (HS, Education, Sports & Rec, Security, Soc Dev) | K24: HS Portfolio Committee: Monitor & Input into SHRA APP & Outcomes | L24: NDHS: Monitor, evaluate and guide SHRA performance in line with Social Housing Act | M24: *[DPME: Formal programme evaluation - check if included in National Evaluation Framework] | N24: NDHS: Annual Report | Q24: PHSD: Contribute to national social housing policy development (via SHRA / NDHS) | S24: SHRA Investments Division: Call for SHIP project funding proposals from SHIs | T24: PHSD: Plan Institutional Subsidy allocations to support SHIP projects | V24: PHSD: Manage Provincial Housing Demand Database | X24: PHSD: Sign Memorandum of Understanding with Housing Development Agency | AA24: Report to National DHS and Stakeholders on Provincial Rental Plan implementation & Social Housing delivery | AG24: Ensure housing targets are reflected in IDP | AH24: Municipalities with MoEs Assist to implement RCG projects | AI24: Land assembly and acquisition for housing development | AJ24: Invest in connector services required for SHIP & housing developments | AK24: Registration & Transfer of stock onto MoE Balance Sheet | AM24: ?? Add / Remove occupants of subsidised social housing from National Housing Subsidy System (NHSS) | AN24: [MoEs manage Public Rental Housing / Discount Benefit Stock] | AP24: MoE quarterly report on performance to SHRA Regulations Division | AR24: SHRA: Suggest policy, legislative, regulatory and institutional reviews required | AS24: SHRA: Draft legislative revisions (Social Housing Act, 2008) | AT24: SHRA: Develop Annual Performance Plan for SHRA | AU24: SHRA (with PDHS): Aggregate delivery projections / project pipelines from Provincial Rental Housing Plans | AV24: SHRA: Assist with Exceptions (e.g. Rent Boycotts) | AW24: SHRA: Identify and procure external consulting capacity for Regulatory,, Investment and Capacitation and Research functions | AX24: SHRA: Contribute to Inter-departmental communications: Social Cluster (HS, Education, Sports & Rec, Security, Soc Dev) | AY24: [SHRA: Capacitation of SHIs?] | AZ24: SHRA Regulations Division: Assess financial & operational performance of SHIs | BA24: SHRA Investment Division: Maintain oversight of SHIP projects during implementation
A25: Process / Activities | C25: Financial & Fiscal Commission (FFC): Research & propose alternative public sector funding approaches | D25: NDHS: Obrtain approvals for regulatory changes to Social Housing Regs and Housing Code | E25: NDHS: Influence (& fund?) creation of Provincial Rental Housing Plans | H25: NDHS: Establish & Capacitate Social Housing Regulatory Authority (SHRA) | L25: NDHS: Monitor, evaluate and guide SHRA performance in line with Social Housing Act | S25: SHRA Investments Division: Evaluate, adjudicate & negotiate with SHIs re projects | AG25: Ensure Institutional subsidies are aligned with SHIP projects (SHRA Accounts) | AH25: Municpalities manage Intergovernmental Relationships to ensure integrated development | AI25: Project preparation | AM25: ward councillor training | AN25: [MoEs manage Community Residential unit Stock] | AP25: MoE reports to SHRA Investments division during construction | AS25: SHRA: Lobby for and obtain Legislative amendments | AT25: SHRA: Influence (& fund) development of Provincial Rental Housing Plans | AU25: SHRA: Develop projections & project pipelines for SHIP with SHIs & private sector | AW25: SHRA: Sign MoUs with key agencies (e.g. H.D.A, NHFC, Provincial HS Depts, Metros, financial institutions, etc) | AX25: SHRA: Sector communications with SHIs, private sector, finance role players, non-government bodies | AZ25: NDHS: Monitor Performance of SHRA based on Annual Reviews & State of the Sector Report
A26: Process / Activities | C26: NDHS: Define policy, legislative, regulatory and institutional reviews required with SHRA | D26: HS Ministry: Approve & Gazette Restructuring Zones | E26: NDHS: Assist provinces & metros with identification of Restructuring Zones | H26: NDHS: Engage with NASHO & SHiFT re sector capacitation | S26: SHRA Investments Division: Approve projects for SHIP funding | AI26: Land / Legal functions to plan and title land for project | AM26: waiting lists | AS26: SHRA: Develop Social Housing Regulations & Code revisions | AT26: SHRA: Assist Provinces & Municipalities with identification & proclamation of Restructuring Zones | AU26: SHRA Investments Division: Assess. negotiate & approve project applications from SHIs & private sector | AW26: SHRA: Engage with NASHO & SHiFT regarding sector capacitation | AX26: SHRA: Publish Annual Reviews | AZ26: *[DPME: Formal programme evaluation - check if included in National Evaluation Framework]
A27: Process / Activities | S27: SHRA Investments Division: | AI27: Release public land for housing development | AS27: SHRA: Lobby for and assist with MEC and Ministerial approval / gazetting of Rstructuring Zones | AW27: SHRA: Engage with NASHO & SHiFT regarding sector capacitation | AX27: SHRA: Research, produce & disseminate annual "State of the Sector" Report
A28: Process / Activities | S28: Construction
A29: Process / Activities | S29: Registration & Transfer
A30: Process / Activities
A31: Process / Activities
A32: Process / Activities
A33: Inputs
A34: Responsbility | C34: NDHS & FFC | D34: HS Ministry & NDHS | E34: NDHS | F34: Treasury & NDHS | G34: NDHS | H34: NDHS with PHDs | I34: NDHS | J34: NDHS | K34: HS Portfolio Committee & NDHS | L34: HS Portfolio Committee & NDHS | M34: NDHS | N34: NDHS | P34: PHSDs | Q34: PHSDs | R34: PHSDs | S34: PHSDs | T34: PHSDs | U34: PHSDs | V34: PHSDs | W34: PHSDs | X34: PHSDs | Y34: PHSDs | Z34: PHSDs | AA34: PHSDs | AB34: PHSDs | AC34: PHSDs | AR34: SHRA | AS34: SHRA | AT34: SHRA | AU34: SHRA | AV34: SHRA | AW34: SHRA | AX34: SHRA | AY34: SHRA | AZ34: SHRA | BA34: SHRA
A36: Current Programme Elements | C36: Policy development | D36: Legislation | E36: Implementation planning | F36: Costing and budgeting | G36: Beneficiary Management | H36: Establish capacity | I36: Communication | J36: Capacity Development Support | K36: Monitoring (& Evaluation) | L36: Entities Oversight | M36: Evaluation | N36: Reporting | P36: Establish capacity | Q36: Policy development (Concurrent Competency) | R36: Legislation (Concurrent Competency) | S36: Implementation planning | T36: Costing and budgeting | U36: Funding Systems & Disbursement | V36: Beneficiary Management | W36: Communication | X36: Capacity Development Support | Y36: Asset Management | Z36: Implementation | AA36: Monitoring and Reporting | AB36: Entities Oversight | AC36: Evaluation | AE36: Capacity | AF36: Policy Development | AG36: Planning & Budgeting | AH36: Implementation Planning & Mgt | AI36: Land | AJ36: Services | AK36: Top-structure Construction | AL36: Post--Construction Support | AM36: Beneficiary Management | AN36: Asset Management | AO36: Monitoring | AP36: Reporting | AR36: Policy development | AS36: Legislation | AT36: Implementation planning | AU36: Costing and budgeting | AV36: Beneficiary Management | AW36: Establish capacity | AX36: Communication | AY36: Capacity Development Support | AZ36: Monitoring (& Evaluation) | BA36: Entities Oversight
A38: Eastern Cape Programme Elements
A40: Free State Programme Elements
A42: Gauteng Programme Elements
A44: KwaZulu-Natal Programme Elements
A46: Limpopo Programme Elements
A48: Mpumalanga Programme Elements
A50: Northern Cape Programme Elements
A52: North West Programme Elements
A54: Western Cape Programme Elements
A56: Location of budget
A58: Budget Allocations (R millions) | C58: Note: Expenditure Allocation against ideal elements are included in other tables
A59: 2011/12
A60: 2012/13
A61: 2013/14
A62: 2014/15

Sheet L3.3. SH-CRU
A1: Project: | B1: Expenditure and Performance Review - Human Settlements Programmes
A2: Client: | B2: National Treasury | H2: RETURN TO CONTENTS
A3: Version: | B3: V.2.0 Client (Final)
A4: Date: | B4: 2013-10-30
A6: ='00. Contents'!C46 -> Logic Model for Programme 3.3: Social & Rental Housing: Community Residential Units
A7: Sphere | C7: National | P7: Provincial | AG7: Local | AW7: National & Provincial
C8: National Department of Human Settlements | P8: Provincial Departments of Human Settlements | AG8: Metro's, District & Local Municipalities | AW8: Public Entities
A10: Impacts | C10: Redevelopment of Hostels and creation of rental accommodation affordable to households earning less than R3 500 per month
A11: Indicator / Measure | C11: Increase in number of families living together | D11: increase in decent rental accommodation for low income households
A12: Data Sources | C12: StatsSA | D12: HSS
A13: Outcomes
A14: Indicator / Measure
A15: Data Sources
A16: Outputs | C16: Number of hostel units upgraded to family accommodation | D16: Number of new affordable rental units developed
A17: Indicator / Measure
A18: Data Sources
A19: Intermediate Outputs
A20: Indicator / Measure
A21: Data Sources
A23: Process / Activities | C23: Approve CRU Policy & Guidelines | D23: Maintain Housing Code Chapter Part 6. | E23: Administration of CRU Programme and funding | F23: N/A | G23: Apprve Funding for CRUP | H23: Create expert body to facilitate and support CRUP | I23: Implement overall communcation plan for CRUP | J23: Tenant education programme | K23: Maintain Oversight of CRUP | L23: N/A | M23: *Programme Evaluation (on National Evaluation Framework) | N23: Report on performance of CRUP to Ministry, DPME & Treasury. | P23: Establish CRU Programme implementation team | Q23: Provide inputs into NDHS policy process | R23: N/A? Related legislation (e.g. Rental Act) | S23: Administration of CRU Programme and funding | T23: Conduct audits of all PD-owned stock | U23: Consolidate project funding applications from PD and LMs | V23: Survey occupants | W23: Procure Implementing Agents | X23: Road Show and Workshops on CRUP | Y23: Procure capacity for municipal support | Z23: Manage PD Owned CRU Facilities | AD23: Report on project implementation and completion | AI23: Prepare project funding applications for CRU projects | AJ23: Road Show and Workshops on CRUP | AK23: Conduct audits of all PD-owned stock | AL23: Issue tenders for Implementation Service Providers | AM23: identification | AN23: Bulk services | AO23: Construction | AP23: Assist | AQ23: First-line support to residents associations | AR23: Manage LM Owned CRU Facilities | AS23: CRU Programme monitoring | AT23: Evaluate CRU projects | AU23: CRU Programme reporting to PD | AW23: [SHRA Role?} | AX23: [SHRA Role?} | AY23: [SHRA Role?} | AZ23: [SHRA Role?} | BA23: [SHRA Role?} | BB23: [SHRA Role?} | BC23: [SHRA Role?} | BD23: [SHRA Role?} | BE23: [SHRA Role?} | BF23: [SHRA Role?}
A24: Process / Activities | G24: Prepare for long term maintenance requirements | I24: Road Shows and Workshops on CRUP | T24: Consolidate audits of PD and LM owned stock | U24: Commit funding streams to projects (Letter of Commitment) | V24: Identify beneficiaries of upgraded / converted CRU stock | W24: Assess CRU project bids | X24: Communicate with municipalities, residents assocations and tenants | Y24: Offer first-line support to Municipalities | AI24: Submit project funding applications for CRU projects to PD | AJ24: Communicate with municipalities, residents assocations and tenants (with PD) | AK24: Consolidate audits of PD and LM owned stock | AL24: Adjudicate and appoint Implementation Service Providers | AM24: assembly & acquisition | AN24: connector | AO24: Registration & Transfer | AQ24: Establish rental tribunals in conjunction with PD
A25: Process / Activities | T25: Include CRU Programme targets in Provincial Housing Plan. | U25: Receipt and disbursement of funding from NDHS | V25: Identify alternative accommodation for displacees | W25: Approve CRU Projects | Y25: Create Rental Tribunals at Municipalities | AI25: Receive Letters of Commitment of funding from PD | AK25: Procure Implementing Agents | AL25: Manage Implementation Service Provicers during implementation | AM25: preparation | AN25: internal | AQ25: Survey occupants
A26: Process / Activities | U26: Management of project expenditure and deviations | V26: Identify transitional / temporary accommodation during construction | W26: Complete contractual arrangements | AI26: Manage project expenditure and deviations | AL26: Monitor Implementation of projects | AM26: land legal | AQ26: Identify beneficiaries of upgraded / converted CRU stock
A27: Process / Activities | U27: Compilation of budget for long-term maintenance | W27: Monitor Implementation of CRU projects | AI27: Compilation of budgets for long-term maintenance | AL27: Completion certificate | AM27: release | AQ27: Identify alternative accommodation for displacees
A28: Process / Activities | AM28: management & control | AQ28: Identify transitional / temporary accommodation during construction
A29: Process / Activities
A30: Process / Activities
A31: Process / Activities
A32: Process / Activities
A33: Inputs
A34: Responsbility
A36: Current Programme Elements | C36: Policy development | D36: Legislation & Regulations | E36: Administration | F36: Implementation planning | G36: Costing and budgeting | H36: Establish capacity | I36: Communication | J36: Capacity Development Support | K36: Monitoring | L36: Entities Oversight | M36: Evaluation | N36: Reporting | P36: Establish Capacity | Q36: Policy development | R36: Legislation | S36: Programme Administration | T36: Implementation planning | U36: Funding Systems & Disbursement | V36: Beneficiary Management | W36: Implementation | X36: Communication | Y36: Capacity Development Support | Z36: Asset Management | AA36: Implementation | AB36: Monitoring | AC36: Entities Oversight | AD36: Reporting | AE36: Evaluation | AG36: Capacity | AH36: Policy Development | AI36: Planning & Budgeting | AJ36: Communication | AK36: Implementation Planning & Mgt | AL36: Procurement | AM36: Land | AN36: Services | AO36: Top-structure Construction | AP36: Post--Construction Support | AQ36: Beneficiary Management | AR36: Asset Management | AS36: Monitoring | AT36: Evaluation | AU36: Reporting | AW36: Capacity | AX36: Implementation planning | AY36: Funding Systems & Disbursement | AZ36: Beneficiary Management | BA36: Communication | BB36: Capacity Development Support | BC36: Implementation | BD36: Monitoring | BE36: Evaluation | BF36: Reporting
A37: Eastern Cape Programme Elements
A39: Free State Programme Elements
A41: Gauteng Programme Elements
A43: KwaZulu-Natal Programme Elements
A45: Limpopo Programme Elements
A47: Mpumalanga Programme Elements
A49: Northern Cape Programme Elements
A51: North West Programme Elements
A53: Western Cape Programme Elements
A55: Location of budget
A57: Budget Allocations (R millions) | C57: Note: Expenditure Allocation against ideal elements are included in other tables
A58: 2011/12
A59: 2012/13
A60: 2013/14
A61: 2014/15
C63: Mumis that have developed new stock, appointing SHIs to manage it
C64: Interpretation of Act - SHRA processes not apolicable, not governed by SHRA
C65: KZN - biggest, no data. One hostel - 30 000 people
C66: Gauteng backyards.
C67: Institutional - some rural areas
C70: New starndards: variations not approved by MECs
C72: FLISP is R15 000.
C73: Renovation of existing stock - flats and hostels.
C74: have been uses for new developments and conversions (WC and GP)
C75: Use business plans to interrogage CRU; cost variations, refurb, rebuilding
C76: Eight options with variations (one option has five variations)
C77: Business has two: upgrade and conversion
C78: Is a cost calculator tool, but few are using this.
C79: Louis spreadsheet

Sheet x. Information Structure (hidden)
D1: OVERVIEW OF DATA SOURCES, CONTENT AND RELEVANCE TO GOVERNMENT TIERS
D2: HUMAN SETTLEMENTS PROGRAMME | F2: NATIONAL GOVERNMENT | I2: PROVINCIAL GOVERNMENT | R2: METRO & LOCAL GOVT | U2: NATIONAL STATE OWNED ENTITIES (SOEs)
F3: Treasury | G3: NDHS | H3: Other? | I3: EC | J3: FS | K3: GP | L3: KZN | M3: LP | N3: MP | O3: NC | P3: NW | Q3: WC | R3: Metro | S3: Municipality | T3: Other | U3: SHRA | V3: NHFC | W3: RHLF | X3: Nurcha | Y3: NHBRC | Z3: H.D.A
D4: GOVERNMENT REVENUE FOR HUMAN SETTLEMENTS
D5: A | E5: DORA Allocation (HS budget)
D6: B | E6: Human Settlements Develoment Grant (HSDG)
D7: C | E7: Urban Services Development Grant (USDG)
D8: D | E8: Provincial Revenue
D9: E | E9: Assigned Revenue
D10: F | E10: Metro / Local Revenue
D11: G | E11: SoE Budgets / Capital
D12: H | E12: NON-GOVERNMENT REVENUE FOR HUMAN SETTLEMENT
D13: A | E13: Private / NPO Capital / Loan Facilities
D14: B | E14: Small Loan / Mortgage Finance
D15: HUMAN SETTLEMENTS PROGRAMME | F15: NATIONAL | I15: PROVINCIAL | R15: LOCAL | U15: STATE ENTITY
F16: Treasury | G16: NDHS | H16: Other? | I16: EC | J16: FS | K16: GP | L16: KZN | M16: LP | N16: MP | O16: NC | P16: NW | Q16: WC | R16: Metro | S16: Municipality | T16: Other
D17: A | E17: Overall HS Budget Categories
D18: 1.1 | E18: Administration
D19: 1.2 | E19: xx
D20: 1.3 | E20: Capital Programmes (Incl HSDG)
D21: 1.4 | E21: xx
D23: 1 | E23: ='00. Contents'!#REF! ->  | I23: OK
E24: Budget Data
E25: Expenditure Data
E26: Delivery Data
D27: 2 | E27: ='00. Contents'!#REF! ->  | I27: OK
E28: Budget Data
E29: Expenditure Data
E30: Delivery Data
D31: 3 | E31: ='00. Contents'!#REF! ->  | I31: OK
E32: Budget Data
E33: Expenditure Data
E34: Delivery Data
D35: 4 | E35: ='00. Contents'!#REF! ->  | I35: OK
E36: Budget Data
E37: Expenditure Data
E38: Delivery Data
D39: 5 | E39: ='00. Contents'!#REF! ->  | I39: OK
E40: Budget Data
E41: Expenditure Data
E42: Delivery Data
D43: 6 | E43: ='00. Contents'!#REF! -> 
E44: Budget Data
E45: Expenditure Data
E46: Delivery Data
D47: 1. | E47: INFORMATION SYSTEMS
D48: 1.1 | E48: Budget Allocation System (BAS)
E49: Level 1:
E50: Level 2:
E51: Level 3:
E52: Level 4:
D53: 1.2 | E53: Housing Subsidy System (HSS)
E54: Budget Information (can we compare with BAS?) | I54: OK | K54: "Data cleanup" | L54: Good but no hostel data | M54: Lapse in implmt | N54: Lapse | O54: Pretty good | P54: Pretty good | Q54: Best
E55: Budget Allocated to Programmes | I55: OK
E56: Delivery Statistics (non-financials) | I56: OK
D58: 1.3 | E58: Provincial Systems?
E59: Provincial Systems (Spreadsheets)
D61: 1.4 | E61: Local / Metro Systems
D65: 1.5 | E65: Other
D67: 2 | E67: STATUTORY REPORTING
E68: HSDG Business Plan
E69: Annual Reports
E70: Annual Performance Plans?
E71: DORA report
E72: : Dora montly expenditure report to
E73: : Quarterly report: progress on approved business plans
E75: Other?
D76: 3 | E76: OTHER INFORMATION SOURCES
E79: Link between HSS and BAS project numbers?
E80: BAS? Project Milestone
E81: Idea was to have paymen approved on BAS before HSS
E82: Provinces: do capture data in BAS.
E83: Provincial systems are not all shared
E84: DORA report - total amount spent in province | F84: Expenditure against budget
E85: Quarterly reports - breakdown into what expenditure was on
E86: Some not adding
E88: Policy and legislation not through HSDG -
E89: Classification of projects not always according to programmes (e.g project linked vs IRDP)
E90: : NW very bad with this
E91: : Interpret and implement differently, or not using policy to implement programmes
E92: : EG: IRDP and IRDP (Informal Settlements)
E94: Natiioal has templates: provinces should use these (based on agreement with Provinces)
E95: : Monthly Report: DORA Reporting
E96: : Quarterly Reports (DORA quarterly report) | F96: Qtrly report is best information: Expenditure per key programme, but will not tell you what it was spent on. Per houses and sites. Then need to go to HSS for what it was spent on
E97: : Not necessarily populated into HSS
D99: Victor | E99: Victor's Historical Reporting Tool: Try to use that for basis of reporting delivery of sites and top structures
E100: : Unable to rectify this with HSS
E101: : Cannot link that to Annual Reports | G101: Can we get this?
E102: : Therefore re-engineer data from
E103: : Dept reports on Quarter and Annual report.
E104: (FY, Serviced Sites and Houses completed) | F104: Can't unpack which are rental, social, giveaways, and FLISP units. All aggregated for Houses / Units
E105: Rectification programme (new policy) not the one in the code
D106: MV | E106: Practice Note Report (previous financial years):
E107: : Annual report dept submits to Treasury, for whole FY - broken donw to prgramme and sub-programme
E108: : What provinces report to NT and what DHS reports to NT are not the same
E109: : Prescribed format, is a consolidation of data. By 31 july.
E110: : Financial, Non-financial
D111: Prov | E111: Provinces Reports to Provincial Treasury, Prov to National | G111: Who can we contact?
E112: : Treasury reports that this does not match Practice Notes
D114: MV | E114: Quarterly Report Template based on HSDG Business Plan (same data as practice note, and as provinces annual reports)
E115: : Structured from Prog 1 to Prog 5 (prov priority)
E116: 1. Intervention 1: Financial Interventions (individual subsidies, OpsCap and Rectification etc)
E117: 2. Intervention 2: Incremental Programmes
E118: : IRDP
E119: 3. Intervention 3: Social and Rental Interventions
E120: : SHIP
E121: 4. Intervention 4: Rural
E122: Province meant to add up quarters: but not necessarily done:
E124: Provincial HSDG Business Plan
E125: : No of units and sites, per programme
E126: : Helps to see treatment and costing of programmes
E127: : Access these from Martie's CD
E129: HSS (based on policy intent):
E130: : Financial data pretty good, non finanical not great
E131: : Technically, province shouldn't implement project if not approved, cannot attach budget or funding
E132: : If approved, gets uploaded to HSS and gets assigned a number in HSS
E133: : This number must be identified in Business Plan
E134: : Not intended to be project management or budgeting system, but as a subsidy administration system
E135: : Who gets, how much, what project, date approved, date implemented, and
E136: : Now evolved into different modules
E137: : Project Maagement
E138: : Budgeting
E139: : should be able to track all milestone payments, right up to title deed registration
E140: : some provinces link down to beneficiaries and sites allocated, not 100%)
E141: : not all payments on HSS,
E143: Provincial Systems
E144: : These should be detailed data
E145: : MP manually reconciles spreadsheet, HSS and BAS | F145: Should approve on HSS, pay on BAS
E147: BAS:
E148: : Reporting system on budget and expenditure
E149: : Provinces meant to capture and track expenditure
E150: : Payments done through BAS - all
E151: : what are payments recorded against?
E152: : Wcand KZN using project code,
E153: : EC using project names
E155: Annual Performance Plan (APP)
E156: : Conditional Grant and Equitable Share (Just provinces)
E157: : Housing Development subset is Conditional Grant
E158: : Operational budget
E160: 3. Housing Development
E161: 4. Asset Management
E162: 5. Property Management 9may have changed)
E164: Service delivery indicators SDIs (sites, houses)
E165: Outcome 8 Report
E167: FLISP will only be 0,5%, of delivery.
E169: House costs: Have to take into account business plan interventions to get unit costs.
E170: : Residual delivery from previous financial year
E171: : Propvincial variances in costs (WC was R120? LP: Under subsidy quantum)
E173: : Limpopo - no requrements for establish townshipo, road standards, etc. Munis doing it differently
E174: SUBSIDY QUANTUM
E175: : Subsidy quantum used, based on 500 unit devt on Gauteng
E177: How do we correlate inputs from different programmes into single area
E178: : Poicy is clear, implementation is not
E180: Operation Hlatsela (Free State Recrification) | F180: Different interpretation - DBS under guise of rectification, reporting as new unit, but after demolition

Sheet x. Subsidy Quantum (hidden)
A1: ANNEXURE: SUBSIDY AMOUNTS FOR 2013 PER PROGRAMME
B2: RETURN TO CONTENTS
A3: ANNEXURE G: SUBSIDY AMOUNTS SUMMARY
A4: The subsidy amounts with effect from 6 December 2012
A6: Subsidy Programme | B6: Municipal services | C6: Top structure funding | D6: Product price
A7: Project linked (IRDP) Subsidies:
A8: R0 to R3 500 | B8: 25696 | C8: 64666 | D8: 90362
A10: Consolidation Subsidies:
A11: R0 to R1 500 | B11: 0 | C11: 64666 | D11: 64666
A13: Institutional subsidies:
A14: R0 to R3 500 | B14: 25696 | C14: 63666 | D14: 89362
A15: (Institution to contribute capital)
A17: Individual Subsidies:
A18: R0 to R3 500 | B18: 25696 | C18: 64666 | D18: R 96,362.00 *
A20: Rural subsidies:
A21: R0 to R3 500 | B21: 25696 | C21: 63666 | D21: 89362
A23: People’s Housing Process:
A24: R0 to R3 500 | B24: 25696 | C24: 64666 | D24: 64666
A26: Farm Resident Subsidies
A27: R0 to R3 500 | B27: 25696 | C27: 63366 | D27: 89062
B29: * Includes R 6,000.00 for raw land cost
A31: ANNEXURE A: TOP STRUCTURE
A32: Detailed cost breakdown of a 40sqm subsidised house effective from 6 December 2012
B33: Earthworks (provisional) | C33: 916.075109
B34: Concrete, Formwork and Reinforcement | C34: 4975.517153
B35: Brickwork | C35: 16507.34545
B36: Roof structure | C36: 4332.010108
B37: Windows | C37: 1610.458059
B38: Doors and Frames | C38: 1921.678806
B39: Finishing and Paintwork | C39: 2565.250869
A40: Constuction cost and subsidy amount | B40: Electrical | C40: 1275.961178
A41: of a 40sqm house | B41: Plumbing and Toilet | C41: 7660.854661
B42: Material | C42: 41765.1514
B43: Labour | C43: 11284.56815
B44: Sub Total | C44: 53049.71955
B45: P & G | C45: 5760.501474
B46: Overheads | C46: 2429.495101
B47: Profit | C47: 2125.800086
B48: Transfer costs | C48: 1000
B49: Beneficiary Administration | C49: 300
B50: Total | C50: 64665.51621
B51: Total Cost (Rounded Off) | C51: 64666
A53: ANNEXURE B: SERVICED STAND
A54: Detailed cost breakdown of a serviced stand effective from 6 December 2012
B55: Indirect Cost
B56: Professional fees
B57: Safety Inspector (DoL) | C57: 79.14210163
B58: Environmental Control Officer | C58: 63.31043045
B59: Pre-planning Studies | C59: 423.4078056
B60: Project Management | C60: 868.5150783
B61: Geotechnical Evaluation | C61: 104.2387139
B62: Contour Survey | C62: 69.48705781
B63: Land Surveying and Site Pegging | C63: 347.4027805
B64: Land Survey examination fee | C64: 107.700876
B65: Town Planning | C65: 468.9685595
B66: Civil Engineer : Services | C66: 1042.208341
B67: Site Supervision : Clerk of Works - Civil | C67: 264.0183111
B68: Social Facilitation | C68: 347.4190348
B69: Legal Fees | C69: 23.78001534
B70: Sub Total : Indirect Cost | C70: 4209.599106
B72: Direct Cost
B73: Water Reticulation (including meter) | C73: 5349.999568
B74: Sanitation Reticulation | C74: 6218.482138
B75: Roads | C75: 3995.107594
B76: Storm Water | C76: 5784.232726
B77: Street Lighting | C77: 138.941607
B78: Sub Total Direct Cost | C78: 21486.76363
B80: Total Cost of a Serviced Stand:
B81: Sub Total : Indirect Cost | C81: 4209.599106
B82: Sub Total : Direct Cost | C82: 21486.76363
B83: Total : | C83: 25696.36274
B84: Total Cost (Rounded Off) | C84: 25696
A86: ANNEXURE C: INFORMAL SETTLEMENT UPGRADING PROGRAMME
B87: Informal settlement upgrading programme: Grant amounts availible with
B88: effect from 6 December 2012
B89: Phase 1
B90: Survey, registration, participation, facilitation, dispute resolution etc | C90: 3% of project cost
B91: Geotechnical investigation | C91: 106.5955848
B92: Land acquisition | C92: 3035.194685
B93: Pre-Planning | C93: 914.6122236
B94: Interim engineering services | C94: 3439.893811
B96: Phases 2 and 3
B97: Detailed town planning | C97: 479.6476231
B98: land surveying and pegging | C98: 355.3023618
B99: Contour survey | C99: 71.06372321
B100: Land survey examination fee | C100: 110.1390184
B101: Civil engineer's fee | C101: 1065.890831
B102: Site supervision fees | C102: 269.9998871
B103: Permanent engineering services provision | C103: 21975.12355
B104: Project management | C104: 8% of total cost
B106: Relocation grants
B107: Transportations and loading costs for people and household effects | C107: 455.2824536
B108: Social service support including support for the registration of social | C108: 343.9893811
B109: benefits, school registration and other welfare support
B110: Relocation food support to households | C110: 566.5755261
B111: Maximum cost per household | C111: 1365.847361
A113: ANNEXURE D: BLOCKED PROJECTS
A114: The housing subsidy effective from 6 December 2012 for the conclusion of blocked projects
B116: Item Description | C116: Amount
B117: Indirect Costs:
B118: Professional Fees:
B119: Benificiary Administration | C119: 300
B120: Safety inspector (DoL) | C120: 79.14210163
B121: Environmental Control Officer | C121: 63.31043045
B122: Pre-planning studies | C122: 423.4078056
B123: Project management | C123: 868.5150783
B124: Geo-technical Investigation | C124: 104.2387139
B125: Contour Survey | C125: 69.48705781
B126: Land surveying and site pegging | C126: 347.4027805
B127: Land survey examination fee | C127: 107.700876
B128: Town Planning | C128: 468.9685595
B129: Civil Engineer: Services | C129: 1042.208341
A130: 1. The Serviced | B130: Site supervision: Clerk of Works- civils | C130: 264.0183111
A131: Stand Cost | B131: Social facilitation | C131: 347.4190348
B132: Legal Fees- Agreement | C132: 23.78001534
B133: Sub Total: Indirect Costs | C133: 4509.599106
B135: Direct Cost:
B136: Water reticulation (incl. Meter) | C136: 5349.999568
B137: Sanitation reticulation | C137: 6218.482138
B138: Roads | C138: 3995.107594
B139: Storm Water | C139: 5784.232726
B140: Street lighting | C140: 138.941607
B141: Sub Total: Direct Cost | C141: 21486.76363
B143: Total cost of a serviced stand:
B144: Sub Total: Indirect Costs | C144: 4509.599106
B145: Sub Total: Direct Cost | C145: 21486.76
B146: Total | C146: 25996.36274
B147: Total cost (rounded off) | C147: 25996
B148: Earthworks (provisional) | C148: 2210.988781
B149: Concrete, Formwork and Reinforcement | C149: 2975.687757
B150: Brickwork | C150: 7875.573733
B151: Roofstructure | C151: 6345.493102
A152: 2. Construction | B152: Windows | C152: 2690.083758
A153: cost of 30m2 | B153: Doors and frames | C153: 1772.236933
A154: House | B154: Finishing and Paintwork | C154: 1109.371037
B155: Plumbing and Toilet | C155: 1662.390491
B156: Material | C156: 26641.82559
B157: Labour | C157: 6553.889258
B158: Sub Total | C158: 33195.71485
B159: P&G | C159: 1327.844848
B160: Overheads | C160: 1493.801073
B161: Profit | C161: 1161.856115
B162: Total | C162: 37179.21689
B163: Total cost (rounded off) | C163: 37179
B164: Grand Total | C164: 63175
A168: ANNEXURE E: EMERGENCY ASSISTANCE PROGRAMME: Grant amounts applicable as from 6 December 2012
A169: TEMPORARY ASSISTANCE | B169: ITEM | C169: AMOUNT
B170: a) Indirect Costs:
B171: Beneficiary Administration | C171: 300
B172: Safety inspector (DoL) | C172: 80.94632699
B173: Environmental Control Officer | C173: 64.75706159
B174: Pre-planning studies | C174: 433.0140865
B175: Project Management [1] | C175: 86.39151164
B176: Geo-technical Investigation (if applicable) | C176: 24.30015238
B177: Contour Survey [2] | C177: 16.17301112
B178: Land surveying and site pegging [3] | C178: 81.01134412
B179: Land survey (Surveyor General) examination fee [4] | C179: 25.11286651
B180: Town Planning – (i) Layout | C180: 44.91058262
B181: (ii)Township establishment | C181: 64.43197594
B182: Environmental Impact Assessment | C182: 28.80258864
B183: Civil Engineer: Services design & Site supervision: | C183: 132.439894
A184: 1. Basic Municipal Engineering | B184: Social facilitation | C184: 57.588923
A185: Services in respect of temporary | B185: Legal Fees (if applicable) (rental agreements) [5] | C185: 5.754016015
A186: assistance on a shared basis | B186: Mediation & Conflict Resolution [6] | C186: 46.06463668
A187: (Inc. VAT) | B187: Sub-Total: Indirect Costs per stand | C187: =SUM(C171:C186) -> 1491.698978
B188: b) Direct Cost:
B189: Water reticulation on shared basis | C189: 1161.823607
B190: Sanitation on shared basis | C190: 1086.062396
B191: Roads (Main access) | C191: 858.7462545
B192: Storm Water | C192: 303.0936063
B193: Sub-Total: Direct Cost | C193: =SUM(C189:C192) -> 3409.725863
B194: TOTAL STAND COST (portion of an ordinary stand shared between 5 units) (rounded off) | C194: =+(C187+C193) -> 4901.424841
B195: Total cost rounded off | C195: 4901
A196: EMERGENCY ASSISTANCE PROGRAMME: 2009/2010 grant amounts
A198: TEMPORARY ASSISTANCE | B198: ITEM | C198: AMOUNT
B199: Roof sheeting / covering | C199: 6117.315484
B200: Side Cladding / Wall Cladding | C200: 10075.1195
B201: Columns and anchor bolts | C201: 5973.351303
B202: Column footings: Concrete bases for structure posts | C202: 1437.138644
B203: Rafters | C203: 2770.721254
B204: Purlins | C204: 3596.633858
B205: Door & Window posts and frames | C205: 2409.551096
A206: 2. Construction Cost of | B206: Side rails to support side cladding | C206: 2950.054753
A207: temporary shelter (Inc. VAT). | B207: Flashings | C207: 863.8013364
B208: Door | C208: 2222.643101
B209: Window | C209: 2149.401304
B210: Flooring: Concrete | C210: 7198.322798
B211: Thermal improvement under roof | C211: 2591.404009
B212: Sub-Total: | C212: =SUM(C199:C211) -> 50355.45844
B213: TOTAL SHELTER COST | C213: 50355
B215: GRAND TOTAL PER GRANT | C215: =+(C213+C194) -> 55256.42484
A217: REPAIR OF DAMAGED FORMAL PERMANENT HOUSING(EXCL. VAT) | C217: Amount
A218: Existing services | B218: Repair of services to National Norms and Standards | C218: 25696
A220: ANNEXURE F: SOCIAL AND ECOONOMIC AMENITIES GRANT
B221: National Housing Programme: Social and Economic Amennities Grant quantum
B222: grant amounts with effect from 6 December 2012
B223: Type of facility | C223: Cost per facility (incl VAT)
B225: Medical care facility | C225: 314895.1874
B226: Ablution facility if required | C226: 293902.1749
B227: Subtotal: | C227: 608797.3623
... 28 more rows

Sheet z. 4.1 PN Summary per Prov (hidden)
A1: Project: | C1: ='00. Contents'!B1 -> Expenditure and Performance Review - Human Settlements Programmes
A2: Client: | C2: ='00. Contents'!B2 -> National Treasury
A3: Version: | C3: ='00. Contents'!B3 -> Step 3 Logframe V.1.0 Client (Draft)
A4: Date: | C4: ='00. Contents'!B4 -> 2013-10-31
A5: RETURN TO CONTENTS
A6: Table 4.1: PRACTICE NOTE EXPENDITURE DATA (CONSOLIDATED PER PROVINCE PER PROGRAMME)
A7: Year: 2011-2012 | C7: EXPENDITURE PER PROVINCE | L7: TOTAL | M7: Number of Provinces with this programme | N7: Names of provinces | O7: Units delivered (reported) | P7: totals per prog type | Q7: Tentative cost per unit | S7: Sites | T7: Houses
B8: National | C8: Eastern Cape | D8: Free State | E8: Gauteng | F8: KwaZulu Natal | G8: Limpopo | H8: Mpumalanga | I8: Northern Cape | J8: North West | K8: Western Cape | L8: Total EXPENDITURE | M8: Total
A9: FINANCIAL INTERVENTIONS (FI) | C9: 645921000 | D9: 92999000 | E9: 368723772 | F9: 909040754 | G9: 65648814 | H9: 127431545 | I9: 31161522 | J9: 109831950 | K9: 200809379 | L9: =SUM(C9:K9) -> 2551567736 | O9: =SUM(O10:O27) -> 44567 | S9: 0 | T9: 6036
A10: Individual Housing Subsidies (Credit Linked) <R3 500 | C10: 14697000 | D10: 0 | E10: 2995000 | F10: 0 | G10: 0 | H10: 20224000 | I10: 0 | J10: 22549782 | K10: 1218762 | L10: =SUM(C10:K10) -> 61684544 | M10: 5 | N10: EC;G;MPU;NW;WC | O10: 405 | Q10: =+L10/O10 -> 152307.516 | S10: 0 | T10: 4040
A11: Individual Housing Subsidies (Non-Credit Linked) < R3 500 | C11: 3551000 | D11: 9007000 | E11: 6351000 | F11: 70790386 | G11: 0 | H11: 0 | I11: 1633917 | J11: 0 | K11: 63033719 | L11: =SUM(C11:K11) -> 154367022 | M11: 7 | N11: EC;FS;G;KZN;MPU;NW;WC | O11: 1282 | P11: =+O10+O11 -> 1687 | Q11: =+L11/O11 -> 120411.0936 | S11: 0 | T11: 1282
A12: Housing Finance Linked Individual Subsidy (R3500-R7000) | C12: 0 | D12: 0 | E12: 0 | F12: 0 | G12: 0 | H12: 0 | I12: 0 | J12: 2709808 | K12: 0 | L12: 2709808 | M12: 1 | N12: NW | O12: 162 | Q12: =+L12/O12 -> 16727.20988 | S12: 0 | T12: 162
A13: Inclusionary Housing | C13: 0 | D13: 0 | E13: 0 | F13: 0 | G13: 0 | H13: 0 | I13: 0 | J13: 0 | K13: 0 | L13: 0 | M13: 0 | O13: 0 | S13: 0 | T13: 0
A14: Enhanced Extended Discount Benefit Scheme (Properties Transferred) | C14: 604000 | D14: 225000 | E14: 0 | F14: 1106085 | G14: 380190 | H14: 0 | I14: 2952164 | J14: 0 | K14: 36985900 | L14: 42253339 | M14: 5 | N14: EC;FS;KZN;L;NC; | O14: 12112 | Q14: =+L14/O14 -> 3488.551767 | S14: 0 | T14: 0
A15: Relocation Assistance | C15: 0 | D15: 2326000 | E15: 0 | F15: 0 | G15: 0 | H15: 0 | I15: 0 | J15: 0 | K15: 0 | L15: 2326000 | M15: 1 | N15: FS | S15: 0 | T15: 0
A16: State Asset Maintenance Programme | C16: 11606000 | D16: 0 | E16: 57905000 | F16: 100994241 | G16: 0 | H16: 0 | I16: 0 | J16: 0 | K16: 0 | L16: 170505241 | M16: 3 | N16: EC;G;KZN | S16: 0 | T16: 0
A17: Rectification of Certain Residential Properties 1994 -2002) | C17: 361081000 | D17: 0 | E17: 0 | F17: 109552742 | G17: 0 | H17: 10676000 | I17: 17823548 | J17: 0 | K17: 9472697 | L17: 508605987 | M17: 5 | N17: EC;KZNMPU;NC;WC | O17: 5200 | Q17: =+L17/O17 -> 97808.84365 | R17: add to RDP unit cost? | S17: 0 | T17: 0
A18: Rectification of Certain Residential Properties (pre-1994) | C18: 7785000 | D18: 18706000 | E18: 0 | F18: 15800000 | G18: 0 | H18: 463000 | I18: 0 | J18: 0 | K18: 0 | L18: 42754000 | M18: 4 | N18: EC;FS;KZN;MPU | O18: 880 | Q18: =+L18/O18 -> 48584.09091 | S18: 0 | T18: 0
A19: Provision of Social and Economic Facilities | C19: 7333000 | D19: 1475000 | E19: 0 | F19: 11022150 | G19: 0 | H19: 3110000 | I19: 0 | J19: 0 | K19: 3655000 | L19: 26595150 | M19: 5 | N19: EC;FS;KZN;MPUWC | S19: 0 | T19: 0
A20: Operational Capital Budget | C20: 96695000 | D20: 12695000 | E20: 156945772 | F20: 12507816 | G20: 61689216 | H20: 31139000 | I20: 0 | J20: 65793415 | K20: 58561044 | L20: 496026263 | M20: 8 | N20: EC;FS;G;KZN;L;MPU;NW;WC | S20: 0 | T20: 0
A21: Unblocking of Blocked Projects | C21: 0 | D21: 43301000 | E21: 0 | F21: 0 | G21: 0 | H21: 0 | I21: 0 | J21: 0 | K21: 0 | L21: 43301000 | M21: 1 | N21: FS | O21: 552 | Q21: =+L21/O21 -> 78443.84058 | S21: 0 | T21: 552
A22: NHBRC Enrolment Fees | C22: 61152000 | D22: 1602000 | E22: 13534000 | F22: 48530091 | G22: 3579408 | H22: 0 | I22: 0 | J22: 18062100 | K22: 20649417 | L22: 167109016 | M22: 7 | N22: EC;FS;G;KZN;L;NW;WC | O22: 23974 | Q22: =+L22/O22 -> 6970.426963 | R22: suspect under reporting of approx 20 000 units | S22: 0 | T22: 0
A23: Land Parcels Procured (IHAHSD Grant) | C23: 70011000 | D23: 2662000 | E23: 130993000 | F23: 368737243 | G23: 0 | H23: 58719545 | I23: 0 | J23: 0 | K23: 7232840 | L23: 638355628 | M23: 6 | N23: EC | R23: no reporting on no. o f hectares purchased, cannot calculate cost per ha | S23: 0 | T23: 0
A24: Land Parcels Procured (Other Funding) | C24: 0 | D24: 0 | E24: 0 | F24: 0 | G24: 0 | H24: 0 | I24: 0 | J24: 0 | K24: 0 | L24: 0 | S24: 0 | T24: 0
A25: EPWP job creation | C25: 0 | D25: 0 | E25: 0 | F25: 0 | G25: 0 | H25: 0 | I25: 0 | J25: 0 | K25: 0 | L25: 0 | S25: 0 | T25: 0
A26: Housing Chapters of an Integrated Development Plan | C26: 6406000 | D26: 0 | E26: 0 | F26: 170000000 | G26: 0 | H26: 0 | I26: 0 | J26: 0 | K26: 0 | L26: 176406000 | M26: 2 | N26: EC;KZN | R26: no reporting on no. of IDPs supported , cannot calculate unit cost | S26: 0 | T26: 0
A27: Accreditation of Municipalities | C27: 5000000 | D27: 1000000 | E27: 0 | F27: 0 | G27: 0 | H27: 3100000 | I27: 8751893 | J27: 716845 | K27: 0 | L27: 18568738 | M27: 5 | N27: EC;FS;MPU;NC;NW; | S27: 0 | T27: 0
A28: Accredited Municipalities (Level 1& 2): Housing Programmes to be Approved & Funded | C28: 0 | D28: 0 | E28: 0 | F28: 0 | G28: 0 | H28: 0 | I28: 0 | J28: 0 | K28: 0 | L28: 0 | S28: 0 | T28: 0
A29: PN Total for Financial Intevention | C29: 645921000 | D29: 92998000 | E29: 415047158 | F29: 739210178 | G29: 65648814 | H29: 127427545 | I29: 31161520 | J29: 109831953 | K29: 200809000 | L29: 2428055168 | M29: =SUM(L10:L28) -> 2551567736 | S29: 0 | T29: 0
A30: INCREMENTAL INTERVENTIONS (II) | C30: 846657000 | D30: 678780000 | E30: 2267714211 | F30: 1065418188 | G30: 103903374 | H30: 570565732 | I30: 280613048 | J30: 738366383 | K30: 1329745804 | L30: 7881763740 | O30: =SUM(O31:O44) -> 119436 | S30: 34632 | T30: 81295
A31: Project-Linked Subsidies (Sites & Units Approved to 03/2007) | C31: 70758000 | D31: 0 | E31: 60212000 | F31: 298328353 | G31: 24242293 | H31: 0 | I31: 17590255 | J31: 644096224 | K31: 98697035 | L31: 1213924160 | M31: 6 | N31: EC;G;L;NC;NW;WC | O31: 14759 | Q31: =+L31/O31 -> 82249.75676 | S31: 8229 | T31: 0
A32: Project-Linked Subsidies (Units Approved to 03/2007) | C32: 0 | D32: 0 | E32: 0 | F32: 0 | G32: 0 | H32: 42458000 | I32: 0 | J32: 0 | K32: 0 | L32: 42458000 | M32: 2 | N32: FS;MPU | O32: 15432 | P32: =+O32+O31 -> 30191 | Q32: 2751.296008 | S32: 0 | T32: 17386
A33: IRDP Phase 1 (Planning & Services) | C33: 56053000 | D33: 22084000 | E33: 13140011 | F33: 112423566 | G33: 59694853 | H33: 43667000 | I33: 44217584 | J33: 2358205 | K33: 156523000 | L33: 510161219 | M33: 9 | N33: ALL | O33: 17978 | Q33: 28376.97291 | S33: 18730 | T33: 0
A34: IRDP Phase 2 (Top Structure) Excl IS? | C34: 411740000 | D34: 18551000 | E34: 265365000 | F34: 83530118 | G34: 0 | H34: 68335000 | I34: 84189584 | J34: 0 | K34: 478625000 | L34: 1410335702 | M34: 6 | N34: EC;G;KZN;MPU;NC;WC | O34: 19376 | Q34: 72787.76332 | S34: 0 | T34: 19687
A35: IRDP Phase 4 (Top Structure Construction) | C35: 0 | D35: 500165000 | E35: 204081972 | F35: 0 | G35: 0 | H35: 0 | I35: 0 | J35: 19268667 | K35: 0 | L35: 723515639 | M35: 3 | N35: FS;G;NW | O35: 7705 | P35: =+O33+O34+O35 -> 45059 | Q35: 93902.09461 | R35: not sure how this phase is different from phase 2 - maybe its for informal settlements only and phase 2 is for RDP subsidy houses | S35: 0 | T35: 7705
A36: Enhanced Peoples Housing Process | C36: 87079000 | D36: 0 | E36: 0 | F36: 301378934 | G36: 13702560 | H36: 268600000 | I36: 2218657 | J36: 23889643 | K36: 277427062 | L36: 974295856 | M36: 7 | N36: EC;KZN;L;MPU;NC;NW;WC | O36: 13071 | Q36: 74538.73889 | S36: 0 | T36: 13075
A37: Consolidation Subsidy Programme (Excluding Blocked Projects) | C37: 1906000 | D37: 0 | E37: 179897228 | F37: 0 | G37: 0 | H37: 4878000 | I37: 0 | J37: 0 | K37: 0 | L37: 186681228 | M37: 3 | N37: EC;G;MPU | O37: 3605 | Q37: 51783.97448 | S37: 0 | T37: 3605
A38: Consolidation Subsidy Programme (Blocked Projects) | C38: 0 | D38: 0 | E38: 0 | F38: 0 | G38: 0 | H38: 0 | I38: 0 | J38: 0 | K38: 0 | L38: 0 | M38: 0 | S38: 0 | T38: 0
A39: Informal Settlement Upgrading (With Sites) | C39: 0 | D39: 131089000 | E39: 1545018000 | F39: 0 | G39: 0 | H39: 0 | I39: 131526165 | J39: 29322295 | K39: 221996600 | L39: 2058952060 | M39: 4 | N39: G;NC;NW;WC | O39: 5842 | Q39: =+L39/O39 -> 352439.5858 | R39: inconsistent reporting (e.g.big uudget for sites but no report of number of sites but instead report on units) - maybe need to look at total budget and total sites and units to get unit costs = R99 819 | S39: 5842 | T39: 0
A40: Informal Settlement Upgrading (With Units) | C40: 126190000 | D40: 0 | E40: 0 | F40: 124318217 | G40: 0 | H40: 94505000 | I40: 0 | J40: 0 | K40: 0 | L40: 345013217 | M40: 3 | N40: EC;KZN;MPU | O40: 16928 | P40: =+O39+O40 -> 22770 | Q40: =+L40/O40 -> 20381.21556 | S40: 0 | T40: 16928
A41: Emergency Housing (Current Commitments -sites & houses) | C41: 92931000 | D41: 6891000 | E41: 0 | F41: 0 | G41: 0 | H41: 0 | I41: 0 | J41: 0 | K41: 0 | L41: 99822000 | M41: 2 | N41: EC;FS | O41: 1831 | Q41: =+L41/O41 -> 54517.74986 | S41: 1831 | T41: 0
A42: Emergency Housing - Units (Gemey Defn) | C42: 0 | D42: 0 | E42: 0 | F42: 145439000 | G42: 6263668 | H42: 13916000 | I42: 870803 | J42: 19431349 | K42: 96477107 | L42: 282397927 | M42: 6 | N42: KZN;L;MPU;NC;NW;WC | O42: 2909 | P42: =+O41+O42 -> 4740 | Q42: =+L42/O42 -> 97077.32107 | S42: 0 | T42: 2909
A43: Emergency Housing (planned projects -possible disaster areas) | C43: 0 | D43: 0 | E43: 0 | F43: 0 | G43: 0 | H43: 10835732 | I43: 0 | J43: 0 | K43: 0 | L43: 10835732 | M43: 1 | N43: MPU | O43: 0 | S43: 0 | T43: 0
A44: Township Establishment (Mpumalanga) | C44: 0 | D44: 0 | E44: 0 | F44: 0 | G44: 0 | H44: 23371000 | I44: 0 | J44: 0 | K44: 0 | L44: 23371000 | M44: 1 | N44: MPU | S44: 0 | T44: 0
A45: BP Total for Incremental Housing | C45: 0 | D45: 0 | E45: 0 | F45: 0 | G45: 0 | H45: 0 | I45: 0 | J45: 0 | K45: 0 | L45: 0 | S45: 0 | T45: 0
A46: PN totals incl units | C46: 960329000 | D46: 678780000 | E46: 2396042459 | F46: 981887477 | G46: 103903373 | H46: 559730000 | I46: 280626154 | J46: 710581314 | K46: 1231048517 | L46: 7902928294 | M46: =SUM(L31:L44) -> 7881763740 | S46: 0 | T46: 0
A47: PN sites | C47: 0 | D47: 0 | E47: 0 | F47: 0 | G47: 0 | H47: 0 | I47: 0 | J47: 0 | K47: 0 | L47: 0 | S47: 0 | T47: 0
A48: SOCIAL AND RENTAL INTERVENTIONS (SR) | C48: 173996000 | D48: 100088000 | E48: 647309891 | F48: 142563000 | G48: 17615523 | H48: 180645000 | I48: 0 | J48: 19170521 | K48: 206987702 | L48: 1488375637 | O48: =SUM(O49:O58) -> 3512 | S48: 0 | T48: 5001
A49: Institutional Subsidies Programme (SR-ISP) | C49: 23924000 | D49: 17413000 | E49: 0 | F49: 53491000 | G49: 0 | H49: 0 | I49: 0 | J49: 0 | K49: 12406000 | L49: 107234000 | M49: 3 | N49: EC;KZN;WC | S49: 0 | T49: 586
A50: 3.1 Institutional Subsidies - value of units | C50: 0 | D50: 0 | E50: 0 | F50: 0 | G50: 0 | H50: 0 | I50: 0 | J50: 0 | K50: 0 | L50: 0 | M50: 1 | N50: FS | S50: 0 | T50: 0
A51: Social Housing Programme: Operational Support | C51: 0 | D51: 0 | E51: 0 | F51: 69700000 | G51: 0 | H51: 0 | I51: 0 | J51: 0 | K51: 0 | L51: 69700000 | M51: 1 | N51: KZN | S51: 0 | T51: 0
A52: Social Housing Programme: Capital Grants for Rental Housing | C52: 148000000 | D52: 0 | E52: 0 | F52: 0 | G52: 0 | H52: 18750000 | I52: 0 | J52: 0 | K52: 0 | L52: 166750000 | M52: 1 | N52: MPU | S52: 0 | T52: 0
A53: 3.2b Social Housing: Capital Grants for rental housing ( funded by NDoH) | C53: 0 | D53: 0 | E53: 2113891 | F53: 0 | G53: 0 | H53: 0 | I53: 0 | J53: 0 | K53: 0 | L53: 2113891 | M53: 2 | N53: EC;G | S53: 0 | T53: 903
A54: 3.2b - amount for completed units excluding informal settlement upgrading | C54: 0 | D54: 0 | E54: 0 | F54: 0 | G54: 0 | H54: 0 | I54: 0 | J54: 0 | K54: 12425507 | L54: 12425507 | M54: 1 | N54: WC | S54: 0 | T54: 0
A55: Community Residential Units Programme | C55: 2072000 | D55: 82675000 | E55: 634801000 | F55: 19372000 | G55: 17615523 | H55: 112351000 | I55: 0 | J55: 19170521 | K55: 182156195 | L55: 1070213239 | M55: 8 | N55: EC;FS;G;KZN;L;MPU;NW;WC | O55: 3185 | Q55: =+L55/O55 -> 336016.7155 | R55: EC, FS, KZN and MPU all spent on this item but reported no units (budgeted for about 300 each) = cost would reduce to about R261 986 per uni | S55: 0 | T55: 3185
A56: value of units completed | C56: 0 | D56: 0 | E56: 0 | F56: 0 | G56: 0 | H56: 0 | I56: 0 | J56: 0 | K56: 0 | L56: 0 | S56: 0 | T56: 0
A57: Gauteng Backyard Rental Programme | C57: 0 | D57: 0 | E57: 10395000 | F57: 0 | G57: 0 | H57: 0 | I57: 0 | J57: 0 | K57: 0 | L57: 10395000 | M57: 1 | N57: G | O57: 327 | Q57: =+L57/O57 -> 31788.99083 | S57: 0 | T57: 327
A58: Rental stock | C58: 0 | D58: 0 | E58: 0 | F58: 0 | G58: 0 | H58: 49544000 | I58: 0 | J58: 0 | K58: 0 | L58: 49544000 | S58: 0 | T58: 0
A59: Total for Social and Rental Housing | C59: 0 | D59: 0 | E59: 647311207 | F59: 0 | G59: 17615523 | H59: 0 | I59: 0 | J59: 0 | K59: 0 | L59: 664926730 | S59: 0 | T59: 0
A60: PN totals incl units | C60: 173996000 | D60: 100088000 | E60: 0 | F60: 142563000 | G60: 0 | H60: 163770000 | I60: 0 | J60: 19170521 | K60: 206987000 | L60: 806574521 | M60: =+C60+D60+F60+H60+J60+K60+E59+G59 -> 1471501251 | S60: 0 | T60: 0
A61: PN sites | C61: 0 | D61: 0 | E61: 0 | F61: 0 | G61: 0 | H61: 0 | I61: 0 | J61: 0 | K61: 0 | L61: 0 | S61: 0 | T61: 0
A62: RURAL INTERVENTIONS (RI) | C62: 105227000 | D62: 36014000 | E62: 37304816 | F62: 906208680 | G62: 1055529221 | H62: 66766000 | I62: 21194942 | J62: 311267166 | K62: 0 | L62: 2539511825 | O62: =SUM(O63:O67) -> 31983 | S62: 84 | T62: 31899 | XFD62: =SUM(C62:XFC62) -> 5079087616
A63: UISP - amt disbursed (could be 4.1?) | C63: 0 | D63: 0 | E63: 0 | F63: 0 | G63: 0 | H63: 0 | I63: 0 | J63: 0 | K63: 0 | L63: 0 | S63: 0 | T63: 0
A64: Rural Housing: Farm Residents Housing Assistance Programme | C64: 0 | D64: 585000 | E64: 35317000 | F64: 0 | G64: 3665411 | H64: 957000 | I64: 820620 | J64: 0 | K64: 0 | L64: 41345031 | M64: 5 | N64: FS;G;L;MPU;NC | O64: 327 | Q64: =+L64/O64 -> 126437.4037 | S64: 0 | T64: 327
A65: Rural Housing: Communal Land Rights (Serviced Sites) | C65: 0 | D65: 0 | E65: 0 | F65: 0 | G65: 0 | H65: 0 | I65: 0 | J65: 0 | K65: 0 | L65: 0 | O65: 84 | S65: 84 | T65: 0
A66: Rural Housing: Communal Land Rights (Planning) | C66: 0 | D66: 0 | E66: 0 | F66: 0 | G66: 0 | H66: 0 | I66: 0 | J66: 0 | K66: 0 | L66: 0 | S66: 0 | T66: 0
A67: Rural Housing: Communal Land Rights (Housing Units Completed) | C67: 105227000 | D67: 35429000 | E67: 1987816 | F67: 906208680 | G67: 1051863810 | H67: 65809000 | I67: 20374322 | J67: 311267166 | K67: 0 | L67: 2498166794 | M67: 8 | N67: EC;FS;G;KZN;L;MPU;NC;NW | O67: 31572 | P67: 31911 | Q67: =+L67/O67 -> 79126.02287 | S67: 0 | T67: 31572
A68: Total Rural Housing | C68: 0 | D68: 0 | E68: 0 | F68: 0 | G68: 0 | H68: 0 | I68: 0 | J68: 0 | K68: 0 | L68: 0 | S68: 0 | T68: 0
A69: PN totals incl units | C69: 105227000 | D69: 36014000 | E69: 37304816 | F69: 906208680 | G69: 1055529221 | H69: 66766000 | I69: 21194942 | J69: 311267166 | K69: 0 | L69: 2539511825 | S69: 0 | T69: 0
A70: PN sites | C70: 0 | D70: 0 | E70: 0 | F70: 0 | G70: 0 | H70: 0 | I70: 0 | J70: 0 | K70: 0 | L70: 0 | M70: 1 | N70: EC | S70: 0 | T70: 0
A71: NATIONAL SPATIAL PROGRAMMES | C71: 11602000 | D71: 0 | E71: 0 | F71: 0 | G71: 0 | H71: 0 | I71: 0 | J71: 0 | K71: 0 | L71: 11602000 | M71: 1 | N71: EC | O71: =SUM(O72:O73) -> 0 | S71: 0 | T71: 0
A72: Provision for Vulnerable Groups | C72: 11376000 | D72: 0 | E72: 0 | F72: 0 | G72: 0 | H72: 0 | I72: 0 | J72: 0 | K72: 0 | L72: 11376000 | S72: 0 | T72: 0
A73: Housing Assistance to Provincial Military Veterans | C73: 226000 | D73: 0 | E73: 0 | F73: 0 | G73: 0 | H73: 0 | I73: 0 | J73: 0 | K73: 0 | L73: 226000 | S73: 0 | T73: 0
A74: Total NSProgs | C74: 0 | D74: 0 | E74: 0 | F74: 0 | G74: 0 | H74: 0 | I74: 0 | J74: 0 | K74: 0 | L74: 0 | M74: =+C73 -> 226000 | S74: 0 | T74: 0
A75: PN totals incl units | C75: 11602000 | D75: 0 | E75: 0 | F75: 0 | G75: 0 | H75: 0 | I75: 0 | J75: 0 | K75: 0 | L75: =SUM(C75:K75) -> 11602000 | S75: 0 | T75: 0
A76: ?? Unknown | C76: 0 | D76: 0 | E76: 0 | F76: 0 | G76: 0 | H76: 0 | I76: 0 | J76: 0 | K76: 0 | L76: 0 | S76: 0 | T76: 0
A77: Development of Land | C77: 0 | D77: 0 | E77: 0 | F77: 0 | G77: 0 | H77: 0 | I77: 0 | J77: 0 | K77: 0 | L77: 0 | S77: 0 | T77: 0
A78: Acqusition of property | C78: 0 | D78: 0 | E78: 0 | F78: 0 | G78: 0 | H78: 0 | I78: 0 | J78: 0 | K78: 0 | L78: 0 | S78: 0 | T78: 0
M79: Total vertical
A80: Auto Total from PN | C80: 1897075000 | D80: 907880000 | E80: 0 | F80: 0 | G80: 0 | H80: 0 | I80: 0 | J80: 0 | K80: 0 | L80: 2804955000 | M80: total horizontal | S80: 0 | T80: 0
A81: Total from BP | C81: 0 | D81: 0 | E81: 0 | F81: 0 | G81: 0 | H81: 0 | I81: 0 | J81: 0 | K81: 0 | L81: 0 | S81: 0 | T81: 0
A82: HSDG total from Ann Reports | C82: 0 | D82: 0 | E82: 0 | F82: 0 | G82: 0 | H82: 0 | I82: 0 | J82: 0 | K82: 0 | L82: 0 | S82: 0 | T82: 0
A83: Total for financial programme called housing finance from Ann Reps | C83: 0 | D83: 0 | E83: 0 | F83: 0 | G83: 0 | H83: 0 | I83: 0 | J83: 0 | K83: 0 | L83: 0 | S83: 0 | T83: 0
A84: GRAND TOTALS | C84: 1783403000 | D84: 907881000 | E84: 3321052690 | F84: 3023230622 | G84: 1242696932 | H84: 945408277 | I84: 332969512 | J84: 1178636020 | K84: 1737542885 | L84: 14472820938 | O84: =O71+O62+O48+O30+O9 -> 199498 | S84: 34716 | T84: 124231
A85: PN comments: disaster relief adjustment included in above | L85: 0 | S85: 0 | T85: 0
A86: surplus/underspend | C86: 337301000 | D86: 30186000 | E86: 0 | F86: 0 | G86: 0 | H86: 0 | I86: 0 | J86: 0 | K86: 0 | L86: 367487000 | S86: 0 | T86: 0
C87: 0 | D87: 0 | E87: 0 | F87: 0 | G87: 0 | H87: 0 | I87: 0 | J87: 136861 | K87: 0 | L87: 136861 | S87: 0 | T87: 0
C88: 85 | D88: 97 | E88: 0 | F88: 99 | G88: 75 | H88: 100 | I88: 100 | J88: 113 | K88: 100 | L88: 769 | S88: 0 | T88: 0
C89: 0 | D89: 0 | E89: 0 | F89: 0 | G89: 0 | H89: 0 | I89: 0 | J89: 0 | K89: 0 | L89: 0 | S89: 0 | T89: 0
C90: 0 | D90: 0 | E90: 0 | F90: 0 | G90: 0 | H90: 0 | I90: 0 | J90: 0 | K90: 0 | L90: 0 | S90: 0 | T90: 0
S91: 0 | T91: 0
S92: 0 | T92: 0

Sheet z 2.5 BAS Prog Prov Sum (hidden)
A1: Project: | B1: Expenditure and Performance Review - Housing Programmes
A2: Client: | B2: National Treasury
A3: Version: | B3: 1.10 (Draft)
A4: Date: | B4: 2013-10-10
A5: RETURN TO CONTENTS
A6: 2.5 BAS EPR DATA PER HUMAN SETTLEMENTS PROGRAMME PER PROVINCE
A7: FY | B7: 2011_12
A9: Sum of Total_Expenditure | B9: Column Labels | N9: Eastern Cape
A10: Row Labels | B10: Eastern Cape | C10: Free State | D10: Gauteng | E10: KwaZulu Natal | F10: Limpopo Province | G10: Mpumalanga | H10: North West | I10: Northern Cape | J10: Western Cape | K10: Grand Total | M10: Row Labels | N10: BAS | O10: PN | P10: Var | Q10: Free State | R10: Gauteng | S10: KwaZulu Natal | T10: Limpopo Province | U10: Mpumalanga | V10: North West | W10: Northern Cape | X10: Western Cape | Y10: Grand Total
A11: FI | D11: 119295730.2 | E11: 58800 | H11: 377472918.1 | K11: 496827448.3 | M11: FI | P11: =N11-O11 -> 0
A12: FI-AOM | B12: 12147086.51 | C12: 999999.99 | I12: 7448275.23 | J12: 10000000 | K12: 30595361.73 | M12: FI-AOM | N12: 12147086.51 | O12: 10000000 | P12: =N12-O12 -> 2147086.51
A13: FI-EEDBS | B13: 95327928.06 | C13: 26073065.02 | E13: 149986278 | J13: 132898775.3 | K13: 404286046.4 | M13: FI-EEDBS | N13: 95327928.06
A14: FI-HCIDP | B14: 6405418.85 | E14: 169719 | I14: 2627852.55 | J14: 0 | K14: 9202990.4 | M14: FI-HCIDP | N14: 6405418.85
A15: FI-IHSCL | D15: 2994650 | J15: 0 | K15: 2994650 | M15: FI-IHSCL
A16: FI-IHSNCL | D16: 6246420 | E16: 70790891.9 | K16: 77037311.9 | M16: FI-IHSNCL
A17: FI-IS | B17: 24356029.08 | C17: 9006598.95 | G17: 68710570.31 | I17: 1529252.13 | J17: 78886461.93 | K17: 182488912.4 | M17: FI-IS | N17: 24356029.08
A18: FI-LP | B18: 70011257.65 | C18: 2662281.36 | E18: 368737060.7 | J18: 7232840.14 | K18: 448643439.9 | M18: FI-LP | N18: 70011257.65
A19: FI-NHBRC | B19: 61151607.4 | C19: 1602000 | D19: 13533508.8 | E19: 48530460.79 | J19: 9288720 | K19: 134106297 | M19: FI-NHBRC | N19: 61151607.4
A20: FI-OPSCAP | B20: 96695326.54 | C20: 12695000.01 | D20: 177648068.2 | E20: 12508739.49 | J20: 47581898.31 | K20: 347129032.6 | M20: FI-OPSCAP | N20: 96695326.54
A21: FI-RHS | B21: 7785373.89 | C21: 70171885.49 | E21: 15800000 | I21: 13830500.93 | K21: 107587760.3 | M21: FI-RHS | N21: 7785373.89
A22: FI-RRDP | B22: 361080132.6 | E22: 135899007.8 | K22: 496979140.3 | M22: FI-RRDP | N22: 361080132.6
A23: FI-SAM | B23: 14448340.19 | D23: 40814030.63 | E23: 68311294.21 | J23: 30246935.02 | K23: 153820600.1 | M23: FI-SAM | N23: 14448340.19
A24: FI-SEF | B24: 7333324.7 | C24: 1474055.34 | E24: 11022438.22 | J24: 3655206.33 | K24: 23485024.59 | M24: FI-SEF | N24: 7333324.7
A25: FI-UBP | C25: 53293177.36 | K25: 53293177.36 | M25: FI-UBP
A26: II | D26: 2605668970 | H26: 321504098.1 | K26: 2927173068 | M26: II
A27: II-CS | B27: 1906625.49 | I27: 0 | J27: 0 | K27: 1906625.49 | M27: II-CS | N27: 1906625.49
A28: II-EHD | B28: 0 | D28: 12033009.55 | I28: 8037721.67 | K28: 20070731.22 | M28: II-EHD | N28: 0
A29: II-EPHP | B29: 87079040.29 | C29: 0 | E29: 301378609.3 | I29: 6466781.87 | J29: 276534303.5 | K29: 671458735 | M29: II-EPHP | N29: 87079040.29
A30: II-IRDP | B30: 467794033.9 | C30: 540799551.8 | E30: 96836832.37 | I30: 101104052.7 | J30: 74494676.89 | K30: 1281029148 | M30: II-IRDP | N30: 467794033.9
A31: ii-PLSP | B31: 70757370.58 | E31: 289747292.6 | G31: 560522671.2 | I31: 49129755.46 | J31: 562756339.6 | K31: 1532913429 | M31: ii-PLSP | N31: 70757370.58
A32: II-UISP | B32: 246022083.4 | C32: 131088991.5 | E32: 124318587.8 | I32: 145329504.3 | J32: 228528516 | K32: 875287683 | M32: II-UISP | N32: 246022083.4
A33: NS-DG | J33: 0 | K33: 0 | M33: NS-DG
A34: NS-MV | B34: 226156.18 | K34: 226156.18 | M34: NS-MV | N34: 226156.18
A35: NS-VG | B35: 11377089.02 | K35: 11377089.02 | M35: NS-VG | N35: 11377089.02
A36: RI | E36: 902864526.6 | H36: 433540206 | K36: 1336404733 | M36: RI
A37: RI-CLR | B37: 105227106.9 | C37: 35429219.37 | K37: 140656326.2 | M37: RI-CLR | N37: 105227106.9
A38: RI-FR | C38: 584450 | G38: 127030234.1 | K38: 127614684.1 | M38: RI-FR
A39: SH-CRU | B39: 2072437.54 | C39: 82675465.93 | I39: 0 | J39: 182155795.3 | K39: 266903698.8 | M39: SH-CRU | N39: 2072437.54
A40: SH-IS | B40: 23923993.01 | C40: 17413207.76 | E40: 123191331.8 | G40: 163769900.7 | J40: 24831466.8 | K40: 353129900.1 | M40: SH-IS | N40: 23923993.01
A41: SR | B41: 5668626.46 | D41: 697866682.5 | E41: 25200 | H41: 27470981.19 | K41: 731031490.1 | M41: SR | N41: 5668626.46
A42: SR-SHCG | B42: 148000000 | E42: 19371779.97 | K42: 167371780 | M42: SR-SHCG | N42: 148000000
A43: #N/A | B43: 216356917.8 | C43: 75286127.47 | D43: 784508720.8 | E43: 270262934.7 | F43: 1917106946 | G43: 175789282.7 | H43: 138413699.2 | I43: 254038694.3 | J43: 165307025.1 | K43: 3997070348 | M43: #N/A | N43: 216356917.8
A44: Grand Total | B44: 2143153306 | C44: 1061255077 | D44: 4460609790 | E44: 3009811785 | F44: 1917106946 | G44: 1095822659 | H44: 1298401903 | I44: 589542391.2 | J44: 1834398960 | K44: 1.741010282e+10 | M44: Grand Total | N44: 2143153306
A45: Practice Note Totals | B45: 1783403000 | C45: 907881000 | D45: 3321052690 | E45: 3023230622 | F45: 1242696932 | G45: 945408277 | H45: 1178636020 | I45: 332969512 | J45: 1737542885 | K45: =SUM(B45:J45) -> 14472820938
A46: BAS > PN Variance | B46: =B44-B45 -> 359750305.9 | C46: =C44-C45 -> 153374077.4 | D46: 1139557100 | E46: -13418836.65 | F46: 674410013.8 | G46: 150414382 | H46: 119765882.6 | I46: 256572879.2 | J46: 96856075.08 | K46: 2937281880
A47: Variance % | B47: =B46/B44 -> 0.1678602762 | C47: =C46/C44 -> 0.1445214074 | D47: 0.2554711472 | E47: -0.004458364046 | F47: 0.3517852853 | G47: 0.1372616096 | H47: 0.09224099437 | I47: 0.4352068367 | J47: 0.05279989642 | K47: 0.168711346
A48: KEY:
B49: Human Settlements Code To be Recoded | G49: NOTES:
B50: HS Programme not implemented in province | G50: 1. Specific allocation exercises are still required from uncategorised expenditure per category (numbers in black rows). Detail assessments of provincial programme expenditure from Practice Notes will be used as basis
B51: HS Programme implemented in Province, BAS EPR Data & Practice Note Data match | G51: 2. N/A Row indicates expenditure that is not allocated to a housing programme. See other allocation tables for these figures.
A52: R XXX XXX | B52: HS Programme implemented in Province, BAS EPR Data & Practice Note Data do not match | G52: 3. File must be updated in BAS manipulation file. Copied and pasted here.
B53: HS Programme implemented in Province, BAS EPR Data not yet traced to populate programme
